Workbook

Sheet Dashboard
C14: Model input
C17: Choose fuel: | D17: MK1 Diesel
C21: Other variables:
C22: Amount of fuel | D22: 20 | E22: m3
C23: Water temperature | D23: 10 | E23: °C
C24: Depth, raw water intake | D24: 5 | E24: m
C25: Water velocity towards intake | D25: 2 | E25: cm/s
C28: If concentration values fall outside of scale ->

Sheet Med avgång_exp2 (hidden)
O1: with evaporation | P1: odour threshold
A2: Mängd bränsle | B2: =Dashboard!D22 -> 20 | C2: m3 | F2: Tid (min) | G2: Radie (m) | H2: Volym (m3) | I2: Vol% etanol | J2: Mängd eter (g) | K2: Koncentration eter (ug/l) | L2: Teoretisk eter | M2: Avgång eter (andel) | N2: Avgång eter (g) | O2: Ether concentration (ug/l) | P2: Odour threshold (ug/L)
A3: Temperatur | B3: =Dashboard!D23 -> 10 | C3: C | F3: 0 | G3: =B4 -> 15 | H3: =B7 -> 3534.291735 | I3: =($B$10/H3)*100 -> 0 | J3: =B9 -> 15.34 | K3: =IFERROR(ROUND((J3)*1000000/(H3*1000),2-INT(LOG10(ABS((J3)*1000000/(H3*1000))))),0) -> 4.34 | L3: =IF((EXP(11.15)*EXP((0.001642*F3)+(0.5454*B$3)+(0.01115*I3)-(0.0003752*F3*B$3)-(0.00001946*F3*I3)-(0.001607*B$3*I3)+(0.00000282*F3*B$3*I3)))>=0,(EXP(11)*EXP((0.001642*F3)+(0.5454*B$3)+(0.01115*I3)-(0.0003752*F3*B$3)-(0.00001946*F3*I3)-(0.001607*B$3*I3)+(0.00000282*F3*B$3*I3))),0) -> 13992051.83 | O3: =K3-N3 -> 4.34 | P3: =GEOMEAN($B$15:$C$15) -> 2.449489743
A4: Initial spridningsradie | B4: 15 | C4: m | F4: =F3+B$12 -> 0.3599555802 | G4: =G3+(B$6/100)*(F4-F3)*60 -> 15.4319467 | H4: =($B$7-$B$7*($B$11/360.000000000001))+$B$5*PI()*(G4^2)*($B$11/360.000000000001) -> 3560.101841 | I4: =($B$10/H4)*100 -> 0 | J4: =J3 -> 15.34 | K4: =IFERROR(ROUND((J4)*1000000/(H4*1000),2-INT(LOG10(ABS((J4)*1000000/(H4*1000))))),0) -> 4.31 | L4: =IF((EXP(11.15)*EXP((0.001642*F4)+(0.5454*B$3)+(0.01115*I4)-(0.0003752*F4*B$3)-(0.00001946*F4*I4)-(0.001607*B$3*I4)+(0.00000282*F4*B$3*I4)))>=0,(EXP(11)*EXP((0.001642*F4)+(0.5454*B$3)+(0.01115*I4)-(0.0003752*F4*B$3)-(0.00001946*F4*I4)-(0.001607*B$3*I4)+(0.00000282*F4*B$3*I4))),0) -> 13981428.81 | M4: =IFERROR(IF((1-L4/L3)>0,(1-L4/L3),0),0) -> 0.0007592179224 | N4: =M4*J4 -> 0.01164640293 | O4: =(J4-N4)*1000000/(H4*1000) -> 4.305594132 | P4: =GEOMEAN($B$15:$C$15) -> 2.449489743
A5: Djup råvattenintag | B5: =Dashboard!D24 -> 5 | C5: m | F5: 0.7199111605 | G5: 15.86389339 | H5: =($B$7-$B$7*($B$11/360.000000000001))+$B$5*PI()*(G5^2)*($B$11/360.000000000001) -> 3586.644636 | I5: 0 | J5: =J4-N4 -> 15.3283536 | K5: =IFERROR(ROUND((J5)*1000000/(H5*1000),2-INT(LOG10(ABS((J5)*1000000/(H5*1000))))),0) -> 4.27 | L5: =IF((EXP(11.15)*EXP((0.001642*F5)+(0.5454*B$3)+(0.01115*I5)-(0.0003752*F5*B$3)-(0.00001946*F5*I5)-(0.001607*B$3*I5)+(0.00000282*F5*B$3*I5)))>=0,(EXP(11)*EXP((0.001642*F5)+(0.5454*B$3)+(0.01115*I5)-(0.0003752*F5*B$3)-(0.00001946*F5*I5)-(0.001607*B$3*I5)+(0.00000282*F5*B$3*I5))),0) -> 13970813.86 | M5: =IFERROR(IF((1-L5/L4)>0,(1-L5/L4),0),0) -> 0.0007592179224 | N5: =M5*J5 -> 0.01163756077 | O5: =(J5-N5)*1000000/(H5*1000) -> 4.270486092 | P5: 2.449489743
A6: Vattenhastighet | B6: =Dashboard!D25 -> 2 | C6: cm/s | F6: 1.079866741 | G6: 16.29584009 | H6: 3613.920122 | I6: 0 | J6: =J5-N5 -> 15.31671604 | K6: =IFERROR(ROUND((J6)*1000000/(H6*1000),2-INT(LOG10(ABS((J6)*1000000/(H6*1000))))),0) -> 4.24 | L6: =IF((EXP(11.15)*EXP((0.001642*F6)+(0.5454*B$3)+(0.01115*I6)-(0.0003752*F6*B$3)-(0.00001946*F6*I6)-(0.001607*B$3*I6)+(0.00000282*F6*B$3*I6)))>=0,(EXP(11)*EXP((0.001642*F6)+(0.5454*B$3)+(0.01115*I6)-(0.0003752*F6*B$3)-(0.00001946*F6*I6)-(0.001607*B$3*I6)+(0.00000282*F6*B$3*I6))),0) -> 13960206.97 | M6: 0.0007592179224 | N6: 0.01162872533 | O6: 4.23503752 | P6: 2.449489743
A7: Inital volym | B7: =B5*PI()*B4^2 -> 3534.291735 | C7: m3 | F7: 1.439822321 | G7: 16.72778679 | H7: 3641.928297 | I7: 0 | J7: 15.30508731 | K7: 4.2 | L7: 13949608.13 | M7: 0.0007592179224 | N7: 0.01161989659 | O7: 4.199277462 | P7: 2.449489743
A8: Initial mängd eter | B8: =B2*B21*1000 -> 4000 | C8: g | F8: 1.799777901 | G8: 17.15973348 | H8: 3670.669162 | I8: 0 | J8: 15.29346741 | K8: 4.17 | L8: 13939017.34 | M8: 0.0007592179224 | N8: 0.01161107456 | O8: 4.163234458 | P8: 2.449489743
A9: Initial mängd eter i lösning | B9: =B8*B23 -> 15.34 | C9: g | F9: 2.159733481 | G9: 17.59168018 | H9: 3700.142717 | I9: 0 | J9: 15.28185634 | K9: 4.13 | L9: 13928434.59 | M9: 0.0007592179224 | N9: 0.01160225922 | O9: 4.126936512 | P9: 2.449489743
A10: Initial vol etanol i lösning | B10: =B2*B24/100 -> 0 | C10: m3 | F10: 2.519689062 | G10: 18.02362687 | H10: 3730.348962 | I10: 0 | J10: 15.27025408 | K10: 4.09 | L10: 13917859.87 | M10: 0.0007592179224 | N10: 0.01159345058 | O10: 4.090411054 | P10: 2.449489743
A11: Spridningvinkel | B11: 45 | C11: grader | F11: 2.879644642 | G11: 18.45557357 | H11: 3761.287897 | I11: 0 | J11: 15.25866063 | K11: 4.06 | L11: 13907293.18 | M11: 0.0007592179224 | N11: 0.01158464862 | O11: 4.053684908 | P11: 2.449489743
A12: delta t | B12: 0.3599555802 | C12: min | F12: 3.239600222 | G12: 18.88752027 | H12: 3792.959522 | I12: 0 | J12: 15.24707598 | K12: 4.02 | L12: 13896734.52 | M12: 0.0007592179224 | N12: 0.01157585335 | O12: 4.016784266 | P12: 2.449489743
F13: 3.599555802 | G13: 19.31946696 | H13: 3825.363836 | I13: 0 | J13: 15.23550013 | K13: 3.98 | L13: 13886183.87 | M13: 0.0007592179224 | N13: 0.01156706475 | O13: 3.979734664 | P13: 2.449489743
B14: högsta | C14: lägsta | F14: 3.959511383 | G14: 19.75141366 | H14: 3858.500841 | I14: 0 | J14: 15.22393306 | K14: 3.95 | L14: 13875641.23 | M14: 0.0007592179224 | N14: 0.01155828283 | O14: 3.94256096 | P14: 2.449489743
A15: Tröskelvärde: | B15: 4 | C15: 1.5 | D15: ug/l | F15: 4.319466963 | G15: 20.18336036 | H15: 3892.370535 | I15: 0 | J15: 15.21237478 | K15: 3.91 | L15: 13865106.59 | M15: 0.0007592179224 | N15: 0.01154950758 | O15: 3.905287314 | P15: 2.449489743
F16: 4.679422543 | G16: 20.61530705 | H16: 3926.972919 | I16: 0 | J16: 15.20082527 | K16: 3.87 | L16: 13854579.95 | M16: 0.0007592179224 | N16: 0.01154073898 | O16: 3.867937173 | P16: 2.449489743
F17: 5.039378123 | G17: 21.04725375 | H17: 3962.307994 | I17: 0 | J17: 15.18928453 | K17: 3.83 | L17: 13844061.31 | M17: 0.0007592179224 | N17: 0.01153197705 | O17: 3.83053326 | P17: 2.449489743
F18: 5.399333704 | G18: 21.47920044 | H18: 3998.375758 | I18: 0 | J18: 15.17775256 | K18: 3.8 | L18: 13833550.65 | M18: 0.0007592179224 | N18: 0.01152322176 | O18: 3.793097561 | P18: 2.449489743
A19: Insert bränsle | F19: 5.759289284 | G19: 21.91114714 | H19: 4035.176212 | I19: 0 | J19: 15.16622934 | K19: 3.76 | L19: 13823047.97 | M19: 0.0007592179224 | N19: 0.01151447313 | O19: 3.755651319 | P19: 2.449489743
F20: 6.119244864 | G20: 22.34309384 | H20: 4072.709355 | I20: 0 | J20: 15.15471486 | K20: 3.72 | L20: 13812553.26 | M20: 0.0007592179224 | N20: 0.01150573113 | O20: 3.718215028 | P20: 2.449489743
A21: koncentration eter | B21: =_xlfn.XLOOKUP(Dashboard!D17,Table1[[#All],[Bränsle]],Table1[[#All],[Mean Ether (g/l)]]) -> 0.2 | C21: g/l | F21: 6.479200444 | G21: 22.77504053 | H21: 4110.975189 | I21: 0 | J21: 15.14320913 | K21: 3.68 | L21: 13802066.52 | M21: 0.0007592179224 | N21: 0.01149699577 | O21: 3.680808431 | P21: 2.449489743
A22: koncentration eter i lösning | B22: =_xlfn.XLOOKUP(Dashboard!D17,Table1[[#All],[Bränsle]],Table1[[#All],[WAF Ether (ug/l)]]) -> 767 | C22: ug/l | F22: 6.839156024 | G22: 23.20698723 | H22: 4149.973713 | I22: 0 | J22: 15.13171214 | K22: 3.65 | L22: 13791587.75 | M22: 0.0007592179224 | N22: 0.01148826705 | O22: 3.643450517 | P22: 2.449489743
A23: Löslighet | B23: =B22/(B21*1000000) -> 0.003835 | F23: 7.199111605 | G23: 23.63893393 | H23: 4189.704926 | I23: 0 | J23: 15.12022387 | K23: 3.61 | L23: 13781116.93 | M23: 0.0007592179224 | N23: 0.01147954495 | O23: 3.606159524 | P23: 2.449489743
A24: Andel etanol (%) | B24: =_xlfn.XLOOKUP(Dashboard!D17,Table1[[#All],[Bränsle]],Table1[[#All],[Ethanol (vol%)]]) -> 0 | F24: 7.559067185 | G24: 24.07088062 | H24: 4230.16883 | I24: 0 | J24: 15.10874432 | K24: 3.57 | L24: 13770654.06 | M24: 0.0007592179224 | N24: 0.01147082948 | O24: 3.568952943 | P24: 2.449489743
F25: 7.919022765 | G25: 24.50282732 | H25: 4271.365423 | I25: 0 | J25: 15.09727349 | K25: 3.53 | L25: 13760199.13 | M25: 0.0007592179224 | N25: 0.01146212062 | O25: 3.531847519 | P25: 2.449489743
B26: with evaporation | C26: without evaporation | F26: 8.278978345 | G26: 24.93477401 | H26: 4313.294706 | I26: 0 | J26: 15.08581137 | K26: 3.5 | L26: 13749752.14 | M26: 0.0007592179224 | N26: 0.01145341837 | O26: 3.494859262 | P26: 2.449489743
F27: 8.638933926 | G27: 25.36672071 | H27: 4355.956679 | I27: 0 | J27: 15.07435795 | K27: 3.46 | L27: 13739313.08 | M27: 0.0007592179224 | N27: 0.01144472273 | O27: 3.458003452 | P27: 2.449489743
A28: Tid till tröskelvärde | B28: =INDEX(F$3:F$603, _xlfn.XMATCH(MIN(ABS(O$3:O$603-$P$3)), ABS(O$3:O$603-$P$3), 0)) -> 19.43760133 | C28: =INDEX('Utan avgång'!F3:F603, _xlfn.XMATCH(MIN(ABS('Utan avgång'!J3:J603-$P$3)), ABS('Utan avgång'!J3:J603-$P$3), 0)) -> 20.87742365 | D28: min | F28: 8.998889506 | G28: 25.79866741 | H28: 4399.351342 | I28: 0 | J28: 15.06291323 | K28: 3.42 | L28: 13728881.95 | M28: 0.0007592179224 | N28: 0.01143603369 | O28: 3.421294647 | P28: 2.449489743
A29: Radie till tröskelvärde | B29: =INDEX(G$3:G$603, _xlfn.XMATCH(MIN(ABS(O$3:O$603-$P$3)), ABS(O$3:O$603-$P$3), 0)) -> 38.3251216 | C29: =INDEX('Utan avgång'!G3:G603, _xlfn.XMATCH(MIN(ABS('Utan avgång'!J3:J603-$P$3)), ABS('Utan avgång'!J3:J603-$P$3), 0)) -> 40.05290838 | D29: m | F29: 9.358845086 | G29: 26.2306141 | H29: 4443.478695 | I29: 0 | J29: 15.0514772 | K29: 3.39 | L29: 13718458.74 | M29: 0.0007592179224 | N29: 0.01142735125 | O29: 3.384746699 | P29: 2.449489743
F30: 9.718800666 | G30: 26.6625608 | H30: 4488.338738 | I30: 0 | J30: 15.04004985 | K30: 3.35 | L30: 13708043.44 | M30: 0.0007592179224 | N30: 0.0114186754 | O30: 3.348372761 | P30: 2.449489743
F31: 10.07875625 | G31: 27.0945075 | H31: 4533.93147 | I31: 0 | J31: 15.02863117 | K31: 3.31 | L31: 13697636.04 | M31: 0.0007592179224 | N31: 0.01141000613 | O31: 3.3121853 | P31: 2.449489743
F32: 10.43871183 | G32: 27.52645419 | H32: 4580.256893 | I32: 0 | J32: 15.01722117 | K32: 3.28 | L32: 13687236.55 | M32: 0.0007592179224 | N32: 0.01140134345 | O32: 3.276196112 | P32: 2.449489743
F33: 10.79866741 | G33: 27.95840089 | H33: 4627.315005 | I33: 0 | J33: 15.00581982 | K33: 3.24 | L33: 13676844.96 | M33: 0.0007592179224 | N33: 0.01139268735 | O33: 3.240416336 | P33: 2.449489743
F34: 11.15862299 | G34: 28.39034758 | H34: 4675.105808 | I34: 0 | J34: 14.99442713 | K34: 3.21 | L34: 13666461.25 | M34: 0.0007592179224 | N34: 0.01138403782 | O34: 3.20485647 | P34: 2.449489743
F35: 11.51857857 | G35: 28.82229428 | H35: 4723.6293 | I35: 0 | J35: 14.9830431 | K35: 3.17 | L35: 13656085.43 | M35: 0.0007592179224 | N35: 0.01137539485 | O35: 3.169526386 | P35: 2.449489743
F36: =F35+B$12 -> 11.87853415 | G36: 29.25424098 | H36: 4772.885482 | I36: 0 | J36: 14.9716677 | K36: 3.14 | L36: 13645717.48 | M36: 0.0007592179224 | N36: 0.01136675845 | O36: 3.134435343 | P36: 2.449489743
F37: 12.23848973 | G37: 29.68618767 | H37: 4822.874354 | I37: 0 | J37: 14.96030094 | K37: 3.1 | L37: 13635357.41 | M37: 0.0007592179224 | N37: 0.0113581286 | O37: 3.099592011 | P37: 2.449489743
F38: 12.59844531 | G38: 30.11813437 | H38: 4873.595916 | I38: 0 | J38: 14.94894281 | K38: 3.07 | L38: 13625005.2 | M38: 0.0007592179224 | N38: 0.01134950531 | O38: 3.065004479 | P38: 2.449489743
F39: 12.95840089 | G39: 30.55008107 | H39: 4925.050167 | I39: 0 | J39: 14.93759331 | K39: 3.03 | L39: 13614660.86 | M39: 0.0007592179224 | N39: 0.01134088856 | O39: 3.03068028 | P39: 2.449489743
F40: 13.31835647 | G40: 30.98202776 | H40: 4977.237109 | I40: 0 | J40: 14.92625242 | K40: 3 | L40: =IF((EXP(11.15)*EXP((0.001642*F40)+(0.5454*B$3)+(0.01115*I40)-(0.0003752*F40*B$3)-(0.00001946*F40*I40)-(0.001607*B$3*I40)+(0.00000282*F40*B$3*I40)))>=0,(EXP(11)*EXP((0.001642*F40)+(0.5454*B$3)+(0.01115*I40)-(0.0003752*F40*B$3)-(0.00001946*F40*I40)-(0.001607*B$3*I40)+(0.00000282*F40*B$3*I40))),0) -> 13604324.36 | M40: =IFERROR(IF((1-L40/L39)>0,(1-L40/L39),0),0) -> 0.0007592179224 | N40: =M40*J40 -> 0.01133227835 | O40: =(J40-N40)*1000000/(H40*1000) -> 2.996626405 | P40: 2.449489743
F41: 13.67831205 | G41: 31.41397446 | H41: 5030.156741 | I41: 0 | J41: 14.91492014 | K41: 2.97 | L41: 13593995.71 | M41: 0.0007592179224 | N41: 0.01132367468 | O41: 2.962849318 | P41: 2.449489743
F42: 14.03826763 | G42: 31.84592115 | H42: 5083.809062 | I42: 0 | J42: 14.90359647 | K42: 2.93 | L42: 13583674.91 | M42: 0.0007592179224 | N42: 0.01131507755 | O42: 2.92935498 | P42: 2.449489743
F43: 14.39822321 | G43: 32.27786785 | H43: 5138.194073 | I43: 0 | J43: 14.89228139 | K43: 2.9 | L43: 13573361.94 | M43: 0.0007592179224 | N43: 0.01130648694 | O43: 2.896148859 | P43: 2.449489743
F44: 14.75817879 | G44: 32.70981455 | H44: 5193.311774 | I44: 0 | J44: 14.8809749 | K44: 2.87 | L44: 13563056.8 | M44: 0.0007592179224 | N44: 0.01129790285 | O44: 2.863235956 | P44: 2.449489743
F45: 15.11813437 | G45: 33.14176124 | H45: 5249.162166 | I45: 0 | J45: 14.869677 | K45: 2.83 | L45: 13552759.48 | M45: 0.0007592179224 | N45: 0.01128932528 | O45: 2.830620813 | P45: 2.449489743
F46: 15.47808995 | G46: 33.57370794 | H46: 5305.745246 | I46: 0 | J46: 14.85838768 | K46: 2.8 | L46: 13542469.99 | M46: 0.0007592179224 | N46: 0.01128075422 | O46: 2.798307539 | P46: 2.449489743
F47: 15.83804553 | G47: 34.00565464 | H47: 5363.061017 | I47: 0 | J47: 14.84710692 | K47: 2.77 | L47: 13532188.3 | M47: 0.0007592179224 | N47: 0.01127218967 | O47: 2.766299821 | P47: 2.449489743
F48: 16.19800111 | G48: 34.43760133 | H48: 5421.109478 | I48: 0 | J48: 14.83583473 | K48: 2.74 | L48: 13521914.42 | M48: 0.0007592179224 | N48: 0.01126363162 | O48: 2.734600945 | P48: 2.449489743
F49: 16.55795669 | G49: 34.86954803 | H49: 5479.890629 | I49: 0 | J49: 14.8245711 | K49: 2.71 | L49: 13511648.34 | M49: 0.0007592179224 | N49: 0.01125508007 | O49: 2.703213809 | P49: 2.449489743
F50: 16.91791227 | G50: 35.30149473 | H50: 5539.404469 | I50: 0 | J50: 14.81331602 | K50: 2.67 | L50: 13501390.05 | M50: 0.0007592179224 | N50: 0.01124653501 | O50: 2.672140943 | P50: 2.449489743
F51: 17.27786785 | G51: 35.73344142 | H51: 5599.651 | I51: 0 | J51: 14.80206948 | K51: 2.64 | L51: 13491139.56 | M51: 0.0007592179224 | N51: 0.01123799644 | O51: 2.641384524 | P51: 2.449489743
F52: 17.63782343 | G52: 36.16538812 | H52: 5660.63022 | I52: 0 | J52: 14.79083149 | K52: 2.61 | L52: 13480896.84 | M52: 0.0007592179224 | N52: 0.01122946435 | O52: 2.610946387 | P52: 2.449489743
F53: 17.99777901 | G53: 36.59733481 | H53: 5722.34213 | I53: 0 | J53: 14.77960202 | K53: 2.58 | L53: 13470661.9 | M53: 0.0007592179224 | N53: 0.01122093874 | O53: 2.580828051 | P53: 2.449489743
F54: 18.35773459 | G54: 37.02928151 | H54: 5784.78673 | I54: 0 | J54: 14.76838109 | K54: 2.55 | L54: 13460434.74 | M54: 0.0007592179224 | N54: 0.0112124196 | O54: 2.551030721 | P54: 2.449489743
F55: 18.71769017 | G55: 37.46122821 | H55: 5847.96402 | I55: 0 | J55: 14.75716867 | K55: 2.52 | L55: 13450215.33 | M55: 0.0007592179224 | N55: 0.01120390693 | O55: 2.521555315 | P55: 2.449489743
F56: 19.07764575 | G56: 37.8931749 | H56: 5911.874 | I56: 0 | J56: 14.74596476 | K56: 2.49 | L56: 13440003.69 | M56: 0.0007592179224 | N56: 0.01119540073 | O56: 2.49240247 | P56: 2.449489743
F57: 19.43760133 | G57: 38.3251216 | H57: 5976.51667 | I57: 0 | J57: 14.73476936 | K57: 2.47 | L57: 13429799.8 | M57: 0.0007592179224 | N57: 0.01118690098 | O57: 2.463572557 | P57: 2.449489743
F58: 19.79755691 | G58: 38.7570683 | H58: 6041.89203 | I58: 0 | J58: 14.72358246 | K58: 2.44 | L58: 13419603.65 | M58: 0.0007592179224 | N58: 0.01117840768 | O58: 2.435065701 | P58: 2.449489743
F59: 20.15751249 | G59: 39.18901499 | H59: 6108.000079 | I59: 0 | J59: 14.71240405 | K59: 2.41 | L59: 13409415.25 | M59: 0.0007592179224 | N59: 0.01116992084 | O59: 2.406881784 | P59: 2.449489743
F60: 20.51746807 | G60: 39.62096169 | H60: 6174.840819 | I60: 0 | J60: 14.70123413 | K60: 2.38 | L60: 13399234.58 | M60: 0.0007592179224 | N60: 0.01116144043 | O60: 2.379020467 | P60: 2.449489743
F61: 20.87742365 | G61: 40.05290838 | H61: 6242.414248 | I61: 0 | J61: 14.69007269 | K61: 2.35 | L61: 13389061.64 | M61: 0.0007592179224 | N61: 0.01115296647 | O61: 2.351481196 | P61: 2.449489743
F62: 21.23737923 | G62: 40.48485508 | H62: 6310.720367 | I62: 0 | J62: 14.67891972 | K62: 2.33 | L62: 13378896.43 | M62: 0.0007592179224 | N62: 0.01114449893 | O62: 2.324263217 | P62: 2.449489743
F63: 21.59733481 | G63: 40.91680178 | H63: 6379.759176 | I63: 0 | J63: 14.66777522 | K63: 2.3 | L63: 13368738.93 | M63: 0.0007592179224 | N63: 0.01113603783 | O63: 2.297365587 | P63: 2.449489743
F64: 21.95729039 | G64: 41.34874847 | H64: 6449.530675 | I64: 0 | J64: 14.65663918 | K64: 2.27 | L64: 13358589.14 | M64: 0.0007592179224 | N64: 0.01112758315 | O64: 2.270787184 | P64: 2.449489743
F65: 22.31724597 | G65: 41.78069517 | H65: 6520.034864 | I65: 0 | J65: 14.6455116 | K65: 2.25 | L65: 13348447.06 | M65: 0.0007592179224 | N65: 0.01111913489 | O65: 2.24452672 | P65: 2.449489743
F66: 22.67720155 | G66: 42.21264187 | H66: 6591.271743 | I66: 0 | J66: 14.63439247 | K66: 2.22 | L66: 13338312.68 | M66: 0.0007592179224 | N66: 0.01111069304 | O66: 2.218582748 | P66: 2.449489743
F67: 23.03715714 | G67: 42.64458856 | H67: 6663.241312 | I67: 0 | J67: 14.62328177 | K67: 2.19 | L67: 13328185.99 | M67: 0.0007592179224 | N67: 0.01110225761 | O67: 2.192953674 | P67: 2.449489743
F68: =F67+B$12 -> 23.39711272 | G68: =G67+(B$6/100)*(F68-F67)*60 -> 43.07653526 | H68: 6735.94357 | I68: =($B$10/H68)*100 -> 0 | J68: 14.61217952 | K68: =IFERROR(ROUND((J68)*1000000/(H68*1000),2-INT(LOG10(ABS((J68)*1000000/(H68*1000))))),0) -> 2.17 | L68: =IF((EXP(11.15)*EXP((0.001642*F68)+(0.5454*B$3)+(0.01115*I68)-(0.0003752*F68*B$3)-(0.00001946*F68*I68)-(0.001607*B$3*I68)+(0.00000282*F68*B$3*I68)))>=0,(EXP(11)*EXP((0.001642*F68)+(0.5454*B$3)+(0.01115*I68)-(0.0003752*F68*B$3)-(0.00001946*F68*I68)-(0.001607*B$3*I68)+(0.00000282*F68*B$3*I68))),0) -> 13318067 | M68: 0.0007592179224 | N68: 0.01109382857 | O68: =(J68-N68)*1000000/(H68*1000) -> 2.167637768 | P68: =GEOMEAN($B$15:$C$15) -> 2.449489743
F69: 23.7570683 | G69: 43.50848195 | H69: =($B$7-$B$7*($B$11/360.000000000001))+$B$5*PI()*(G69^2)*($B$11/360.000000000001) -> 6809.378519 | I69: 0 | J69: 14.60108569 | K69: 2.14 | L69: 13307955.68 | M69: =IFERROR(IF((1-L69/L68)>0,(1-L69/L68),0),0) -> 0.0007592179224 | N69: =M69*J69 -> 0.01108540594 | O69: 2.14263317 | P69: 2.449489743
F70: 24.11702388 | G70: 43.94042865 | H70: 6883.546157 | I70: 0 | J70: =J69-N69 -> 14.59000028 | K70: 2.12 | L70: 13297852.04 | M70: 0.0007592179224 | N70: 0.0110769897 | O70: 2.1179379 | P70: 2.449489743
F71: 24.47697946 | G71: 44.37237535 | H71: 6958.446485 | I71: 0 | J71: 14.57892329 | K71: 2.1 | L71: 13287756.08 | M71: 0.0007592179224 | N71: 0.01106857985 | O71: 2.093549867 | P71: 2.449489743
F72: 24.83693504 | G72: 44.80432204 | H72: 7034.079503 | I72: 0 | J72: 14.56785471 | K72: 2.07 | L72: 13277667.77 | M72: 0.0007592179224 | N72: 0.01106017639 | O72: 2.069466876 | P72: 2.449489743
F73: 25.19689062 | G73: 45.23626874 | H73: 7110.445211 | I73: 0 | J73: 14.55679454 | K73: 2.05 | L73: 13267587.13 | M73: 0.0007592179224 | N73: 0.0110517793 | O73: 2.045686638 | P73: 2.449489743
F74: 25.5568462 | G74: 45.66821544 | H74: 7187.543609 | I74: 0 | J74: 14.54574276 | K74: 2.02 | L74: 13257514.14 | M74: 0.0007592179224 | N74: 0.0110433886 | O74: 2.022206773 | P74: 2.449489743
F75: 25.91680178 | G75: 46.10016213 | H75: 7265.374697 | I75: 0 | J75: 14.53469937 | K75: 2 | L75: 13247448.8 | M75: 0.0007592179224 | N75: 0.01103500426 | O75: 1.999024822 | P75: 2.449489743
F76: 26.27675736 | G76: 46.53210883 | H76: 7343.938475 | I76: 0 | J76: 14.52366436 | K76: 1.98 | L76: 13237391.1 | M76: 0.0007592179224 | N76: 0.01102662628 | O76: 1.976138252 | P76: 2.449489743
B77: utifrån simulering | F77: 26.63671294 | G77: 46.96405552 | H77: 7423.234942 | I77: 0 | J77: 14.51263774 | K77: 1.96 | L77: 13227341.03 | M77: 0.0007592179224 | N77: 0.01101825467 | O77: 1.953544458 | P77: 2.449489743
A78: P98; 18,5C; 0min; 73008,6ug/l | B78: 73200 | F78: 26.99666852 | G78: 47.39600222 | H78: 7503.2641 | I78: 0 | J78: 14.50161948 | K78: 1.93 | L78: 13217298.6 | M78: 0.0007592179224 | N78: 0.01100988942 | O78: 1.931240777 | P78: 2.449489743
A79: P98; 18,5C; 1440min; 37,4ug/l | B79: 46.4 | F79: 27.3566241 | G79: 47.82794892 | H79: 7584.025947 | I79: 0 | J79: 14.49060959 | K79: 1.91 | L79: 13207263.79 | M79: 0.0007592179224 | N79: 0.01100153051 | O79: 1.909224489 | P79: 2.449489743
A80: E85; 18,5C; 0min; 63582ug/l | B80: 63100 | F80: 27.71657968 | G80: 48.25989561 | H80: 7665.520484 | I80: 0 | J80: 14.47960806 | K80: 1.89 | L80: 13197236.6 | M80: 0.0007592179224 | N80: 0.01099317795 | O80: 1.887492821 | P80: 2.449489743
A81: E85; 18,5C; 1440min; 660ug/l | B81: 446 | F81: 28.07653526 | G81: 48.69184231 | H81: 7747.747711 | I81: 0 | J81: 14.46861488 | K81: 1.87 | L81: 13187217.02 | M81: 0.0007592179224 | N81: 0.01098483173 | O81: 1.866042957 | P81: 2.449489743
A82: P98; 10C; 0min; 107328ug/l | B82: 107000 | F82: 28.43649084 | G82: 49.12378901 | H82: 7830.707628 | I82: 0 | J82: 14.45763005 | K82: 1.85 | L82: 13177205.05 | M82: 0.0007592179224 | N82: 0.01097649185 | O82: 1.84487204 | P82: 2.449489743
A83: P98; 10C; 1200min; 38324ug/l | B83: 9300 | F83: 28.79644642 | G83: 49.5557357 | H83: 7914.400235 | I83: 0 | J83: 14.44665356 | K83: 1.83 | L83: 13167200.68 | M83: 0.0007592179224 | N83: 0.0109681583 | O83: 1.823977177 | P83: 2.449489743
A84: E85; 10C; 0min; 104317ug/l | B84: 104000 | F84: 29.156402 | G84: 49.9876824 | H84: 7998.825532 | I84: 0 | J84: 14.4356854 | K84: 1.8 | L84: 13157203.9 | M84: 0.0007592179224 | N84: 0.01095983108 | O84: 1.803355444 | P84: 2.449489743
A85: E85; 10C; 1200min; 8925ug/l | B85: 22100 | F85: 29.51635758 | G85: 50.4196291 | H85: 8083.983519 | I85: 0 | J85: 14.42472557 | K85: 1.78 | L85: 13147214.72 | M85: 0.0007592179224 | N85: 0.01095151018 | O85: 1.78300389 | P85: 2.449489743
A86: P98; 5C; 0min; 78455ug/l | B86: 78300 | F86: 29.87631316 | G86: 50.85157579 | H86: 8169.874195 | I86: 0 | J86: 14.41377406 | K86: 1.76 | L86: 13137233.12 | M86: 0.0007592179224 | N86: 0.0109431956 | O86: 1.762919541 | P86: 2.449489743
A87: P98; 5C; 1440min; 32663ug/l | B87: 55000 | F87: 30.23626874 | G87: 51.28352249 | H87: 8256.497562 | I87: 0 | J87: 14.40283087 | K87: 1.74 | L87: 13127259.09 | M87: 0.0007592179224 | N87: 0.01093488733 | O87: 1.743099404 | P87: 2.449489743
A88: E85; 5C; 0min; 110472ug/l | B88: 110000 | F88: 30.59622432 | G88: 51.71546918 | H88: 8343.853618 | I88: 0 | J88: 14.39189598 | K88: 1.72 | L88: 13117292.64 | M88: 0.0007592179224 | N88: 0.01092658536 | O88: 1.723540471 | P88: 2.449489743
A89: E85; 5C; 1440min; 44850ug/l | B89: 38300 | F89: 30.9561799 | G89: 52.14741588 | H89: 8431.942365 | I89: 0 | J89: 14.38096939 | K89: 1.71 | L89: 13107333.76 | M89: 0.0007592179224 | N89: 0.0109182897 | O89: 1.704239721 | P89: 2.449489743
F90: 31.31613548 | G90: 52.57936258 | H90: 8520.763801 | I90: 0 | J90: 14.3700511 | K90: 1.69 | L90: 13097382.44 | M90: 0.0007592179224 | N90: 0.01091000034 | O90: 1.685194126 | P90: 2.449489743
F91: 31.67609106 | G91: 53.01130927 | H91: 8610.317927 | I91: 0 | J91: 14.3591411 | K91: 1.67 | L91: 13087438.67 | M91: 0.0007592179224 | N91: 0.01090171728 | O91: 1.66640065 | P91: 2.449489743
F92: 32.03604664 | G92: 53.44325597 | H92: 8700.604743 | I92: 0 | J92: 14.34823939 | K92: 1.65 | L92: 13077502.45 | M92: 0.0007592179224 | N92: 0.0108934405 | O92: 1.647856255 | P92: 2.449489743
F93: 32.39600222 | G93: 53.87520267 | H93: 8791.624248 | I93: 0 | J93: 14.33734595 | K93: 1.63 | L93: 13067573.78 | M93: 0.0007592179224 | N93: 0.01088517 | O93: 1.629557903 | P93: 2.449489743
F94: 32.7559578 | G94: 54.30714936 | H94: 8883.376444 | I94: 0 | J94: 14.32646078 | K94: 1.61 | L94: 13057652.64 | M94: 0.0007592179224 | N94: 0.01087690579 | O94: 1.611502559 | P94: 2.449489743
F95: 33.11591338 | G95: 54.73909606 | H95: 8975.86133 | I95: 0 | J95: 14.31558387 | K95: 1.59 | L95: 13047739.04 | M95: 0.0007592179224 | N95: 0.01086864784 | O95: 1.59368719 | P95: 2.449489743
F96: 33.47586896 | G96: 55.17104275 | H96: 9069.078905 | I96: 0 | J96: 14.30471522 | K96: 1.58 | L96: 13037832.96 | M96: 0.0007592179224 | N96: 0.01086039617 | O96: 1.576108773 | P96: 2.449489743
F97: 33.83582454 | G97: 55.60298945 | H97: 9163.029171 | I97: 0 | J97: 14.29385483 | K97: 1.56 | L97: 13027934.4 | M97: 0.0007592179224 | N97: 0.01085215076 | O97: 1.558764292 | P97: 2.449489743
F98: 34.19578012 | G98: 56.03493615 | H98: 9257.712126 | I98: 0 | J98: 14.28300267 | K98: 1.54 | L98: 13018043.36 | M98: 0.0007592179224 | N98: 0.01084391162 | O98: 1.541650741 | P98: 2.449489743
F99: 34.5557357 | G99: 56.46688284 | H99: 9353.127771 | I99: 0 | J99: 14.27215876 | K99: 1.53 | L99: 13008159.83 | M99: 0.0007592179224 | N99: 0.01083567872 | O99: 1.52476513 | P99: 2.449489743
F100: 34.91569128 | G100: 56.89882954 | H100: 9449.276106 | I100: 0 | J100: 14.26132308 | K100: 1.51 | L100: 12998283.8 | M100: 0.0007592179224 | N100: 0.01082745208 | O100: 1.50810448 | P100: 2.449489743
F101: 35.27564686 | G101: 57.33077624 | H101: 9546.157131 | I101: 0 | J101: 14.25049563 | K101: 1.49 | L101: 12988415.27 | M101: 0.0007592179224 | N101: 0.01081923169 | O101: 1.49166583 | P101: 2.449489743
F102: 35.63560244 | G102: 57.76272293 | H102: 9643.770846 | I102: 0 | J102: 14.2396764 | K102: 1.48 | L102: 12978554.23 | M102: 0.0007592179224 | N102: 0.01081101753 | O102: 1.475446235 | P102: 2.449489743
F103: 35.99555802 | G103: 58.19466963 | H103: 9742.117251 | I103: 0 | J103: 14.22886538 | K103: 1.46 | L103: 12968700.68 | M103: 0.0007592179224 | N103: 0.01080280961 | O103: 1.459442769 | P103: 2.449489743
F104: 36.3555136 | G104: 58.62661632 | H104: 9841.196345 | I104: 0 | J104: 14.21806257 | K104: 1.44 | L104: 12958854.61 | M104: 0.0007592179224 | N104: 0.01079460793 | O104: 1.443652526 | P104: 2.449489743
F105: 36.71546918 | G105: 59.05856302 | H105: 9941.00813 | I105: 0 | J105: 14.20726797 | K105: 1.43 | L105: 12949016.02 | M105: 0.0007592179224 | N105: 0.01078641247 | O105: 1.428072623 | P105: 2.449489743
F106: 37.07542476 | G106: 59.49050972 | H106: 10041.5526 | I106: 0 | J106: 14.19648155 | K106: 1.41 | L106: 12939184.89 | M106: 0.0007592179224 | N106: 0.01077822323 | O106: 1.412700196 | P106: 2.449489743
F107: 37.43538034 | G107: 59.92245641 | H107: 10142.82977 | I107: 0 | J107: 14.18570333 | K107: 1.4 | L107: 12929361.23 | M107: 0.0007592179224 | N107: 0.01077004021 | O107: 1.397532406 | P107: 2.449489743
F108: =F107+B$12 -> 37.79533592 | G108: =G107+(B$6/100)*(F108-F107)*60 -> 60.35440311 | H108: =($B$7-$B$7*($B$11/360.000000000001))+$B$5*PI()*(G108^2)*($B$11/360.000000000001) -> 10244.83962 | I108: 0 | J108: 14.17493329 | K108: =IFERROR(ROUND((J108)*1000000/(H108*1000),2-INT(LOG10(ABS((J108)*1000000/(H108*1000))))),0) -> 1.38 | L108: =IF((EXP(11.15)*EXP((0.001642*F108)+(0.5454*B$3)+(0.01115*I108)-(0.0003752*F108*B$3)-(0.00001946*F108*I108)-(0.001607*B$3*I108)+(0.00000282*F108*B$3*I108)))>=0,(EXP(11)*EXP((0.001642*F108)+(0.5454*B$3)+(0.01115*I108)-(0.0003752*F108*B$3)-(0.00001946*F108*I108)-(0.001607*B$3*I108)+(0.00000282*F108*B$3*I108))),0) -> 12919545.03 | M108: 0.0007592179224 | N108: 0.0107618634 | O108: 1.382566438 | P108: 2.449489743
F109: 38.1552915 | G109: 60.78634981 | H109: 10347.58217 | I109: 0 | J109: 14.16417143 | K109: 1.37 | L109: 12909736.28 | M109: 0.0007592179224 | N109: 0.0107536928 | O109: 1.367799502 | P109: 2.449489743
F110: 38.51524709 | G110: 61.2182965 | H110: 10451.0574 | I110: 0 | J110: 14.15341773 | K110: 1.35 | L110: 12899934.98 | M110: 0.0007592179224 | N110: 0.01074552841 | O110: 1.353228833 | P110: 2.449489743
F111: 38.87520267 | G111: 61.6502432 | H111: 10555.26532 | I111: 0 | J111: 14.14267221 | K111: 1.34 | L111: 12890141.11 | M111: 0.0007592179224 | N111: 0.01073737021 | O111: 1.338851692 | P111: 2.449489743
F112: 39.23515825 | G112: 62.08218989 | H112: 10660.20594 | I112: 0 | J112: 14.13193483 | K112: 1.33 | L112: 12880354.69 | M112: 0.0007592179224 | N112: 0.01072921821 | O112: 1.324665368 | P112: 2.449489743
F113: 39.59511383 | G113: 62.51413659 | H113: 10765.87924 | I113: 0 | J113: 14.12120562 | K113: 1.31 | L113: 12870575.69 | M113: 0.0007592179224 | N113: 0.01072107239 | O113: 1.310667176 | P113: 2.449489743
F114: 39.95506941 | G114: 62.94608329 | H114: 10872.28524 | I114: 0 | J114: 14.11048454 | K114: 1.3 | L114: 12860804.12 | M114: 0.0007592179224 | N114: 0.01071293276 | O114: 1.296854461 | P114: 2.449489743
F115: 40.31502499 | G115: 63.37802998 | H115: 10979.42392 | I115: 0 | J115: 14.09977161 | K115: 1.28 | L115: 12851039.97 | M115: 0.0007592179224 | N115: 0.01070479931 | O115: 1.283224595 | P115: 2.449489743
F116: 40.67498057 | G116: 63.80997668 | H116: 11087.29529 | I116: 0 | J116: 14.08906681 | K116: 1.27 | L116: 12841283.23 | M116: 0.0007592179224 | N116: 0.01069667203 | O116: 1.269774978 | P116: 2.449489743
F117: 41.03493615 | G117: 64.24192338 | H117: 11195.89935 | I117: 0 | J117: 14.07837014 | K117: 1.26 | L117: 12831533.89 | M117: 0.0007592179224 | N117: 0.01068855093 | O117: 1.256503041 | P117: 2.449489743
F118: 41.39489173 | G118: 64.67387007 | H118: 11305.23611 | I118: 0 | J118: 14.06768159 | K118: 1.24 | L118: 12821791.96 | M118: 0.0007592179224 | N118: 0.01068043599 | O118: 1.243406243 | P118: 2.449489743
F119: 41.75484731 | G119: 65.10581677 | H119: 11415.30555 | I119: 0 | J119: 14.05700115 | K119: 1.23 | L119: 12812057.43 | M119: 0.0007592179224 | N119: 0.01067232721 | O119: 1.230482072 | P119: 2.449489743
F120: 42.11480289 | G120: 65.53776346 | H120: 11526.10768 | I120: 0 | J120: 14.04632883 | K120: 1.22 | L120: 12802330.29 | M120: 0.0007592179224 | N120: 0.01066422459 | O120: 1.217728047 | P120: 2.449489743
F121: 42.47475847 | G121: 65.96971016 | H121: 11637.64251 | I121: 0 | J121: 14.0356646 | K121: 1.21 | L121: 12792610.53 | M121: 0.0007592179224 | N121: 0.01065612812 | O121: 1.205141717 | P121: 2.449489743
F122: 42.83471405 | G122: 66.40165686 | H122: 11749.91002 | I122: 0 | J122: 14.02500847 | K122: 1.19 | L122: 12782898.15 | M122: 0.0007592179224 | N122: 0.01064803779 | O122: 1.19272066 | P122: 2.449489743
F123: 43.19466963 | G123: 66.83360355 | H123: 11862.91022 | I123: 0 | J123: 14.01436044 | K123: 1.18 | L123: 12773193.14 | M123: 0.0007592179224 | N123: 0.01063995361 | O123: 1.180462485 | P123: 2.449489743
F124: 43.55462521 | G124: 67.26555025 | H124: 11976.64311 | I124: 0 | J124: 14.00372048 | K124: 1.17 | L124: 12763495.51 | M124: 0.0007592179224 | N124: 0.01063187557 | O124: 1.168364831 | P124: 2.449489743
F125: 43.91458079 | G125: 67.69749695 | H125: 12091.1087 | I125: 0 | J125: 13.99308861 | K125: 1.16 | L125: 12753805.23 | M125: 0.0007592179224 | N125: 0.01062380366 | O125: 1.156425366 | P125: 2.449489743
F126: 44.27453637 | G126: 68.12944364 | H126: 12206.30697 | I126: 0 | J126: 13.9824648 | K126: 1.15 | L126: 12744122.31 | M126: 0.0007592179224 | N126: 0.01061573788 | O126: 1.144641791 | P126: 2.449489743
F127: 44.63449195 | G127: 68.56139034 | H127: 12322.23793 | I127: 0 | J127: 13.97184906 | K127: 1.13 | L127: 12734446.75 | M127: 0.0007592179224 | N127: 0.01060767822 | O127: 1.133011833 | P127: 2.449489743
F128: 44.99444753 | G128: 68.99333704 | H128: 12438.90158 | I128: 0 | J128: 13.96124139 | K128: 1.12 | L128: 12724778.53 | M128: 0.0007592179224 | N128: 0.01059962468 | O128: 1.121533254 | P128: 2.449489743
F129: 45.35440311 | G129: 69.42528373 | H129: 12556.29792 | I129: 0 | J129: 13.95064176 | K129: 1.11 | L129: 12715117.65 | M129: 0.0007592179224 | N129: 0.01059157725 | O129: 1.110203841 | P129: 2.449489743
F130: 45.71435869 | G130: 69.85723043 | H130: 12674.42696 | I130: 0 | J130: 13.94005018 | K130: 1.1 | L130: 12705464.1 | M130: 0.0007592179224 | N130: 0.01058353594 | O130: 1.099021415 | P130: 2.449489743
F131: 46.07431427 | G131: 70.28917712 | H131: 12793.28868 | I131: 0 | J131: 13.92946665 | K131: 1.09 | L131: 12695817.89 | M131: 0.0007592179224 | N131: 0.01057550073 | O131: 1.087983825 | P131: 2.449489743
F132: 46.43426985 | G132: 70.72112382 | H132: 12912.88309 | I132: =($B$10/H132)*100 -> 0 | J132: 13.91889115 | K132: 1.08 | L132: 12686178.99 | M132: 0.0007592179224 | N132: 0.01056747162 | O132: =(J132-N132)*1000000/(H132*1000) -> 1.077088949 | P132: =GEOMEAN($B$15:$C$15) -> 2.449489743
F133: 46.79422543 | G133: 71.15307052 | H133: 13033.21019 | I133: 0 | J133: 13.90832368 | K133: 1.07 | L133: 12676547.42 | M133: =IFERROR(IF((1-L133/L132)>0,(1-L133/L132),0),0) -> 0.0007592179224 | N133: =M133*J133 -> 0.01055944861 | O133: 1.066334696 | P133: 2.449489743
F134: 47.15418101 | G134: 71.58501721 | H134: 13154.26998 | I134: 0 | J134: =J133-N133 -> 13.89776423 | K134: 1.06 | L134: 12666923.16 | M134: 0.0007592179224 | N134: 0.01055143168 | O134: 1.055719003 | P134: 2.449489743
F135: 47.51413659 | G135: 72.01696391 | H135: 13276.06246 | I135: 0 | J135: 13.8872128 | K135: 1.05 | L135: 12657306.2 | M135: 0.0007592179224 | N135: 0.01054342085 | O135: 1.045239838 | P135: 2.449489743
F136: 47.87409217 | G136: 72.44891061 | H136: 13398.58763 | I136: 0 | J136: 13.87666938 | K136: 1.04 | L136: 12647696.55 | M136: 0.0007592179224 | N136: 0.01053541609 | O136: 1.034895195 | P136: 2.449489743
F137: 48.23404775 | G137: 72.8808573 | H137: 13521.8455 | I137: 0 | J137: 13.86613396 | K137: 1.03 | L137: 12638094.19 | M137: 0.0007592179224 | N137: 0.01052741742 | O137: 1.024683099 | P137: 2.449489743
F138: 48.59400333 | G138: 73.312804 | H138: 13645.83605 | I138: 0 | J138: 13.85560654 | K138: 1.02 | L138: 12628499.12 | M138: 0.0007592179224 | N138: 0.01051942481 | O138: 1.014601602 | P138: 2.449489743
F139: 48.95395891 | G139: 73.74475069 | H139: 13770.55929 | I139: 0 | J139: 13.84508712 | K139: 1.01 | L139: 12618911.34 | M139: 0.0007592179224 | N139: 0.01051143828 | O139: 1.004648787 | P139: 2.449489743
F140: 49.31391449 | G140: 74.17669739 | H140: 13896.01522 | I140: 0 | J140: 13.83457568 | K140: 0.996 | L140: 12609330.84 | M140: 0.0007592179224 | N140: 0.0105034578 | O140: 0.9948227606 | P140: 2.449489743
F141: 49.67387007 | G141: 74.60864409 | H141: 14022.20384 | I141: 0 | J141: 13.82407222 | K141: 0.986 | L141: 12599757.61 | M141: 0.0007592179224 | N141: 0.01049548339 | O141: 0.9851216611 | P141: 2.449489743
F142: 50.03382565 | G142: 75.04059078 | H142: 14149.12515 | I142: 0 | J142: 13.81357674 | K142: 0.976 | L142: 12590191.64 | M142: 0.0007592179224 | N142: 0.01048751503 | O142: 0.9755436522 | P142: 2.449489743
F143: 50.39378123 | G143: 75.47253748 | H143: 14276.77915 | I143: 0 | J143: 13.80308922 | K143: 0.967 | L143: 12580632.95 | M143: 0.0007592179224 | N143: 0.01047955272 | O143: 0.9660869252 | P143: 2.449489743
F144: 50.75373681 | G144: 75.90448418 | H144: 14405.16584 | I144: 0 | J144: 13.79260967 | K144: 0.957 | L144: 12571081.5 | M144: 0.0007592179224 | N144: 0.01047159646 | O144: 0.9567496985 | P144: 2.449489743
F145: 51.11369239 | G145: 76.33643087 | H145: 14534.28522 | I145: 0 | J145: 13.78213807 | K145: 0.948 | L145: 12561537.31 | M145: 0.0007592179224 | N145: 0.01046364623 | O145: 0.947530217 | P145: 2.449489743
F146: 51.47364797 | G146: 76.76837757 | H146: 14664.13729 | I146: 0 | J146: 13.77167443 | K146: 0.939 | L146: 12552000.37 | M146: 0.0007592179224 | N146: 0.01045570205 | O146: 0.9384267518 | P146: 2.449489743
F147: 51.83360355 | G147: 77.20032426 | H147: 14794.72205 | I147: 0 | J147: 13.76121873 | K147: 0.93 | L147: 12542470.67 | M147: 0.0007592179224 | N147: 0.01044776389 | O147: 0.9294376005 | P147: 2.449489743
F148: 52.19355913 | G148: 77.63227096 | H148: 14926.0395 | I148: 0 | J148: 13.75077096 | K148: 0.921 | L148: 12532948.2 | M148: 0.0007592179224 | N148: 0.01043983176 | O148: 0.9205610859 | P148: 2.449489743
F149: 52.55351471 | G149: 78.06421766 | H149: 15058.08964 | I149: 0 | J149: 13.74033113 | K149: 0.912 | L149: 12523432.96 | M149: 0.0007592179224 | N149: 0.01043190565 | O149: 0.9117955566 | P149: 2.449489743
F150: 52.91347029 | G150: 78.49616435 | H150: 15190.87247 | I150: 0 | J150: 13.72989922 | K150: 0.904 | L150: 12513924.94 | M150: 0.0007592179224 | N150: 0.01042398556 | O150: 0.9031393863 | P150: 2.449489743
F151: 53.27342587 | G151: 78.92811105 | H151: 15324.38799 | I151: 0 | J151: 13.71947524 | K151: 0.895 | L151: 12504424.15 | M151: 0.0007592179224 | N151: 0.01041607149 | O151: 0.8945909734 | P151: 2.449489743
F152: 53.63338145 | G152: 79.36005775 | H152: 15458.6362 | I152: 0 | J152: 13.70905917 | K152: 0.887 | L152: 12494930.56 | M152: 0.0007592179224 | N152: 0.01040816342 | O152: 0.886148741 | P152: 2.449489743
F153: 53.99333704 | G153: 79.79200444 | H153: 15593.6171 | I153: 0 | J153: 13.698651 | K153: 0.878 | L153: 12485444.19 | M153: 0.0007592179224 | N153: 0.01040026135 | O153: 0.8778111363 | P153: 2.449489743
F154: 54.35329262 | G154: 80.22395114 | H154: 15729.33069 | I154: 0 | J154: 13.68825074 | K154: 0.87 | L154: 12475965.02 | M154: 0.0007592179224 | N154: 0.01039236529 | O154: 0.8695766305 | P154: 2.449489743
F155: 54.7132482 | G155: 80.65589783 | H155: 15865.77696 | I155: 0 | J155: 13.67785838 | K155: 0.862 | L155: 12466493.04 | M155: 0.0007592179224 | N155: 0.01038447522 | O155: 0.8614437183 | P155: 2.449489743
F156: 55.07320378 | G156: 81.08784453 | H156: 16002.95593 | I156: 0 | J156: 13.6674739 | K156: 0.854 | L156: 12457028.25 | M156: 0.0007592179224 | N156: 0.01037659114 | O156: 0.8534109178 | P156: 2.449489743
F157: 55.43315936 | G157: 81.51979123 | H157: 16140.86759 | I157: 0 | J157: 13.65709731 | K157: 0.846 | L157: 12447570.66 | M157: 0.0007592179224 | N157: 0.01036871305 | O157: 0.84547677 | P157: 2.449489743
F158: 55.79311494 | G158: 81.95173792 | H158: 16279.51194 | I158: 0 | J158: 13.6467286 | K158: 0.838 | L158: 12438120.24 | M158: 0.0007592179224 | N158: 0.01036084093 | O158: 0.8376398387 | P158: 2.449489743
F159: 56.15307052 | G159: 82.38368462 | H159: 16418.88898 | I159: 0 | J159: 13.63636776 | K159: 0.831 | L159: 12428676.99 | M159: 0.0007592179224 | N159: 0.0103529748 | O159: 0.8298987099 | P159: 2.449489743
F160: 56.5130261 | G160: 82.81563132 | H160: 16558.99871 | I160: 0 | J160: 13.62601478 | K160: 0.823 | L160: 12419240.92 | M160: 0.0007592179224 | N160: 0.01034511463 | O160: 0.8222519916 | P160: 2.449489743
F161: 56.87298168 | G161: 83.24757801 | H161: 16699.84113 | I161: 0 | J161: 13.61566967 | K161: 0.815 | L161: 12409812.01 | M161: 0.0007592179224 | N161: 0.01033726044 | O161: 0.8146983138 | P161: 2.449489743
F162: 57.23293726 | G162: 83.67952471 | H162: 16841.41623 | I162: 0 | J162: 13.60533241 | K162: 0.808 | L162: 12400390.26 | M162: 0.0007592179224 | N162: 0.0103294122 | O162: 0.8072363277 | P162: 2.449489743
F163: 57.59289284 | G163: 84.11147141 | H163: 16983.72403 | I163: 0 | J163: 13.59500299 | K163: 0.8 | L163: 12390975.66 | M163: 0.0007592179224 | N163: 0.01032156993 | O163: 0.7998647057 | P163: 2.449489743
F164: 57.95284842 | G164: 84.5434181 | H164: 17126.76452 | I164: 0 | J164: 13.58468142 | K164: 0.793 | L164: 12381568.21 | M164: 0.0007592179224 | N164: 0.01031373361 | O164: 0.7925821409 | P164: 2.449489743
F165: 58.312804 | G165: 84.9753648 | H165: 17270.5377 | I165: 0 | J165: 13.57436769 | K165: 0.786 | L165: 12372167.9 | M165: 0.0007592179224 | N165: 0.01030590324 | O165: 0.7853873472 | P165: 2.449489743
F166: 58.67275958 | G166: 85.40731149 | H166: 17415.04357 | I166: 0 | J166: 13.56406179 | K166: 0.779 | L166: 12362774.73 | M166: 0.0007592179224 | N166: 0.01029807881 | O166: 0.7782790584 | P166: 2.449489743
F167: 59.03271516 | G167: 85.83925819 | H167: 17560.28212 | I167: 0 | J167: 13.55376371 | K167: 0.772 | L167: 12353388.69 | M167: 0.0007592179224 | N167: 0.01029026032 | O167: 0.7712560284 | P167: 2.449489743
F168: 59.39267074 | G168: 86.27120489 | H168: 17706.25337 | I168: 0 | J168: 13.54347345 | K168: 0.765 | L168: 12344009.77 | M168: 0.0007592179224 | N168: 0.01028244777 | O168: 0.7643170306 | P168: 2.449489743
F169: 59.75262632 | G169: 86.70315158 | H169: 17852.95731 | I169: 0 | J169: 13.533191 | K169: 0.758 | L169: 12334637.98 | M169: 0.0007592179224 | N169: 0.01027464116 | O169: 0.7574608579 | P169: 2.449489743
F170: 60.1125819 | G170: 87.13509828 | H170: 18000.39394 | I170: 0 | J170: 13.52291636 | K170: 0.751 | L170: 12325273.3 | M170: 0.0007592179224 | N170: 0.01026684046 | O170: 0.750686322 | P170: 2.449489743
F171: 60.47253748 | G171: 87.56704498 | H171: 18148.56325 | I171: 0 | J171: 13.51264952 | K171: 0.745 | L171: 12315915.73 | M171: 0.0007592179224 | N171: 0.01025904569 | O171: 0.7439922535 | P171: 2.449489743
F172: =F171+B$12 -> 60.83249306 | G172: =G171+(B$6/100)*(F172-F171)*60 -> 87.99899167 | H172: =($B$7-$B$7*($B$11/360.000000000001))+$B$5*PI()*(G172^2)*($B$11/360.000000000001) -> 18297.46526 | I172: 0 | J172: 13.50239047 | K172: =IFERROR(ROUND((J172)*1000000/(H172*1000),2-INT(LOG10(ABS((J172)*1000000/(H172*1000))))),0) -> 0.738 | L172: =IF((EXP(11.15)*EXP((0.001642*F172)+(0.5454*B$3)+(0.01115*I172)-(0.0003752*F172*B$3)-(0.00001946*F172*I172)-(0.001607*B$3*I172)+(0.00000282*F172*B$3*I172)))>=0,(EXP(11)*EXP((0.001642*F172)+(0.5454*B$3)+(0.01115*I172)-(0.0003752*F172*B$3)-(0.00001946*F172*I172)-(0.001607*B$3*I172)+(0.00000282*F172*B$3*I172))),0) -> 12306565.27 | M172: 0.0007592179224 | N172: 0.01025125684 | O172: 0.7373775014 | P172: 2.449489743
F173: 61.19244864 | G173: 88.43093837 | H173: 18447.09996 | I173: 0 | J173: 13.49213922 | K173: 0.731 | L173: 12297221.9 | M173: 0.0007592179224 | N173: 0.0102434739 | O173: 0.7308409329 | P173: 2.449489743
F174: 61.55240422 | G174: 88.86288506 | H174: 18597.46734 | I174: 0 | J174: 13.48189574 | K174: 0.725 | L174: 12287885.63 | M174: 0.0007592179224 | N174: 0.01023569688 | O174: 0.724381433 | P174: 2.449489743
F175: 61.9123598 | G175: 89.29483176 | H175: 18748.56742 | I175: 0 | J175: 13.47166005 | K175: 0.719 | L175: 12278556.45 | M175: 0.0007592179224 | N175: 0.01022792575 | O175: 0.7179979044 | P175: 2.449489743
F176: 62.27231538 | G176: 89.72677846 | H176: 18900.40019 | I176: 0 | J176: 13.46143212 | K176: 0.712 | L176: 12269234.35 | M176: 0.0007592179224 | N176: 0.01022016053 | O176: 0.7116892672 | P176: 2.449489743
F177: 62.63227096 | G177: 90.15872515 | H177: 19052.96564 | I177: 0 | J177: 13.45121196 | K177: 0.706 | L177: 12259919.33 | M177: 0.0007592179224 | N177: 0.0102124012 | O177: 0.7054544583 | P177: 2.449489743
F178: 62.99222654 | G178: 90.59067185 | H178: 19206.26379 | I178: 0 | J178: 13.44099956 | K178: 0.7 | L178: 12250611.38 | M178: 0.0007592179224 | N178: 0.01020464776 | O178: 0.6992924317 | P178: 2.449489743
F179: 63.35218212 | G179: 91.02261855 | H179: 19360.29463 | I179: 0 | J179: 13.43079491 | K179: 0.694 | L179: 12241310.49 | M179: 0.0007592179224 | N179: 0.01019690021 | O179: 0.6932021577 | P179: 2.449489743
F180: 63.7121377 | G180: 91.45456524 | H180: 19515.05815 | I180: 0 | J180: 13.42059801 | K180: 0.688 | L180: 12232016.67 | M180: 0.0007592179224 | N180: 0.01018915854 | O180: 0.6871826231 | P180: 2.449489743
F181: 64.07209328 | G181: 91.88651194 | H181: 19670.55437 | I181: 0 | J181: 13.41040885 | K181: 0.682 | L181: 12222729.9 | M181: 0.0007592179224 | N181: 0.01018142275 | O181: 0.6812328304 | P181: 2.449489743
F182: 64.43204886 | G182: 92.31845863 | H182: 19826.78328 | I182: 0 | J182: 13.40022743 | K182: 0.676 | L182: 12213450.19 | M182: 0.0007592179224 | N182: 0.01017369283 | O182: 0.6753517981 | P182: 2.449489743
F183: 64.79200444 | G183: 92.75040533 | H183: 19983.74487 | I183: 0 | J183: 13.39005374 | K183: 0.67 | L183: 12204177.52 | M183: 0.0007592179224 | N183: 0.01016596878 | O183: 0.6695385601 | P183: 2.449489743
F184: 65.15196002 | G184: 93.18235203 | H184: 20141.43916 | I184: 0 | J184: 13.37988777 | K184: 0.664 | L184: 12194911.89 | M184: 0.0007592179224 | N184: 0.01015825059 | O184: 0.6637921656 | P184: 2.449489743
F185: 65.5119156 | G185: 93.61429872 | H185: 20299.86613 | I185: 0 | J185: 13.36972952 | K185: 0.659 | L185: 12185653.29 | M185: 0.0007592179224 | N185: 0.01015053827 | O185: 0.6581116787 | P185: 2.449489743
F186: 65.87187118 | G186: 94.04624542 | H186: 20459.0258 | I186: 0 | J186: 13.35957898 | K186: 0.653 | L186: 12176401.73 | M186: 0.0007592179224 | N186: 0.0101428318 | O186: 0.6524961784 | P186: 2.449489743
F187: 66.23182676 | G187: 94.47819212 | H187: 20618.91815 | I187: 0 | J187: 13.34943615 | K187: 0.647 | L187: 12167157.18 | M187: 0.0007592179224 | N187: 0.01013513118 | O187: 0.646944758 | P187: 2.449489743
F188: 66.59178234 | G188: 94.91013881 | H188: 20779.5432 | I188: 0 | J188: 13.33930102 | K188: 0.642 | L188: 12157919.66 | M188: 0.0007592179224 | N188: 0.0101274364 | O188: 0.6414565253 | P188: 2.449489743
F189: 66.95173792 | G189: 95.34208551 | H189: 20940.90093 | I189: 0 | J189: 13.32917358 | K189: 0.637 | L189: 12148689.15 | M189: 0.0007592179224 | N189: 0.01011974747 | O189: 0.6360306022 | P189: 2.449489743
F190: 67.3116935 | G190: 95.7740322 | H190: 21102.99136 | I190: 0 | J190: 13.31905383 | K190: 0.631 | L190: 12139465.65 | M190: 0.0007592179224 | N190: 0.01011206438 | O190: 0.6306661241 | P190: 2.449489743
F191: 67.67164908 | G191: 96.2059789 | H191: 21265.81448 | I191: 0 | J191: 13.30894177 | K191: 0.626 | L191: 12130249.15 | M191: 0.0007592179224 | N191: 0.01010438712 | O191: 0.6253622402 | P191: 2.449489743
F192: 68.03160466 | G192: 96.6379256 | H192: 21429.37028 | I192: 0 | J192: 13.29883738 | K192: 0.621 | L192: 12121039.64 | M192: 0.0007592179224 | N192: 0.01009671569 | O192: 0.6201181132 | P192: 2.449489743
F193: 68.39156024 | G193: 97.06987229 | H193: 21593.65877 | I193: 0 | J193: 13.28874066 | K193: 0.615 | L193: 12111837.13 | M193: 0.0007592179224 | N193: 0.01008905008 | O193: 0.6149329186 | P193: 2.449489743
F194: 68.75151582 | G194: 97.50181899 | H194: 21758.67996 | I194: 0 | J194: 13.27865161 | K194: 0.61 | L194: 12102641.61 | M194: 0.0007592179224 | N194: 0.01008139029 | O194: 0.6098058452 | P194: 2.449489743
F195: 69.11147141 | G195: 97.93376569 | H195: 21924.43383 | I195: 0 | J195: 13.26857022 | K195: 0.605 | L195: 12093453.07 | M195: 0.0007592179224 | N195: 0.01007373632 | O195: 0.6047360943 | P195: 2.449489743
F196: 69.47142699 | G196: 98.36571238 | H196: 22090.9204 | I196: =($B$10/H196)*100 -> 0 | J196: 13.25849649 | K196: 0.6 | L196: 12084271.5 | M196: 0.0007592179224 | N196: 0.01006608816 | O196: =(J196-N196)*1000000/(H196*1000) -> 0.5997228798 | P196: =GEOMEAN($B$15:$C$15) -> 2.449489743
F197: 69.83138257 | G197: 98.79765908 | H197: 22258.13965 | I197: 0 | J197: 13.2484304 | K197: 0.595 | L197: 12075096.91 | M197: =IFERROR(IF((1-L197/L196)>0,(1-L197/L196),0),0) -> 0.0007592179224 | N197: =M197*J197 -> 0.0100584458 | O197: 0.5947654278 | P197: 2.449489743
F198: 70.19133815 | G198: 99.22960577 | H198: 22426.0916 | I198: 0 | J198: =J197-N197 -> 13.23837195 | K198: 0.59 | L198: 12065929.28 | M198: 0.0007592179224 | N198: 0.01005080925 | O198: 0.5898629767 | P198: 2.449489743
F199: 70.55129373 | G199: 99.66155247 | H199: 22594.77623 | I199: 0 | J199: 13.22832114 | K199: 0.585 | L199: 12056768.61 | M199: 0.0007592179224 | N199: 0.0100431785 | O199: 0.5850147764 | P199: 2.449489743
F200: 70.91124931 | G200: 100.0934992 | H200: 22764.19356 | I200: 0 | J200: 13.21827797 | K200: 0.581 | L200: 12047614.89 | M200: 0.0007592179224 | N200: 0.01003555354 | O200: 0.5802200891 | P200: 2.449489743
... 403 more rows

Sheet Utan avgång (hidden)
J1: no evaporation
A2: Mängd bränsle | B2: ='Med avgång_exp2'!B2 -> 20 | C2: m3 | F2: Tid (min) | G2: Radie (m) | H2: Volym (m3) | I2: Mängd eter (g) | J2: Ether concentration (ug/l)
A3: Koncentration eter | C3: #/l | F3: 0 | G3: =B6 -> 15 | H3: =B9 -> 3534.291735 | I3: =B11 -> 15.34 | J3: =ROUND(I3*1000000/(H3*1000),2-INT(LOG10(ABS(I3*1000000/(H3*1000))))) -> 4.34
A4: Löslighet eter | C4: #/# | F4: =F3+B$13 -> 0.3599555802 | G4: =G3+(B$8/100)*(F4-F3)*60 -> 15.4319467 | H4: =($B$9-$B$9*($B$12/360.000000000001))+$B$7*PI()*(G4^2)*($B$12/360.000000000001) -> 3560.101841 | I4: =I3 -> 15.34 | J4: =ROUND(I4*1000000/(H4*1000),2-INT(LOG10(ABS(I4*1000000/(H4*1000))))) -> 4.31
A5: Temperatur | B5: ='Med avgång_exp2'!B3 -> 10 | C5: C | F5: =F4+B$13 -> 0.7199111605 | G5: =G4+(B$8/100)*(F5-F4)*60 -> 15.86389339 | H5: =($B$9-$B$9*($B$12/360.000000000001))+$B$7*PI()*(G5^2)*($B$12/360.000000000001) -> 3586.644636 | I5: =I4 -> 15.34 | J5: 4.28
A6: Initial spridningsradie | B6: ='Med avgång_exp2'!B4 -> 15 | C6: m | F6: 1.079866741 | G6: 16.29584009 | H6: 3613.920122 | I6: =I5 -> 15.34 | J6: 4.24
A7: Djup råvattenintag | B7: ='Med avgång_exp2'!B5 -> 5 | C7: m | F7: 1.439822321 | G7: 16.72778679 | H7: 3641.928297 | I7: =I6 -> 15.34 | J7: 4.21
A8: Vattenhastighet | B8: ='Med avgång_exp2'!B6 -> 2 | C8: cm/s | F8: 1.799777901 | G8: 17.15973348 | H8: 3670.669162 | I8: =I7 -> 15.34 | J8: 4.18
A9: Inital volym | B9: =B7*PI()*B6^2 -> 3534.291735 | C9: m3 | F9: 2.159733481 | G9: 17.59168018 | H9: 3700.142717 | I9: 15.34 | J9: 4.15
A10: Initial mängd eter | B10: =B2*B16*1000 -> 4000 | C10: g | F10: 2.519689062 | G10: 18.02362687 | H10: 3730.348962 | I10: 15.34 | J10: 4.11
A11: Initial mängd eter i lösning | B11: =B10*B18 -> 15.34 | C11: g | F11: 2.879644642 | G11: 18.45557357 | H11: 3761.287897 | I11: 15.34 | J11: 4.08
A12: Spridningvinkel | B12: ='Med avgång_exp2'!$B$11 -> 45 | C12: grader | F12: 3.239600222 | G12: 18.88752027 | H12: 3792.959522 | I12: 15.34 | J12: =ROUND(I12*1000000/(H12*1000),2-INT(LOG10(ABS(I12*1000000/(H12*1000))))) -> 4.04
A13: delta t | B13: ='Med avgång_exp2'!$B$12 -> 0.3599555802 | C13: min | F13: 3.599555802 | G13: 19.31946696 | H13: 3825.363836 | I13: 15.34 | J13: 4.01
F14: 3.959511383 | G14: 19.75141366 | H14: 3858.500841 | I14: 15.34 | J14: 3.98
A15: Test | F15: 4.319466963 | G15: 20.18336036 | H15: 3892.370535 | I15: 15.34 | J15: 3.94
A16: koncentration eter | B16: ='Med avgång_exp2'!B21 -> 0.2 | C16: g/l | F16: 4.679422543 | G16: 20.61530705 | H16: 3926.972919 | I16: 15.34 | J16: 3.91
A17: koncentration eter i lösning | B17: ='Med avgång_exp2'!B22 -> 767 | C17: ug/l | F17: 5.039378123 | G17: 21.04725375 | H17: 3962.307994 | I17: 15.34 | J17: 3.87
A18: Löslighet | B18: ='Med avgång_exp2'!B23 -> 0.003835 | C18: % | F18: 5.399333704 | G18: 21.47920044 | H18: 3998.375758 | I18: 15.34 | J18: 3.84
F19: 5.759289284 | G19: 21.91114714 | H19: 4035.176212 | I19: 15.34 | J19: 3.8
A20: Att fixa | F20: 6.119244864 | G20: 22.34309384 | H20: 4072.709355 | I20: 15.34 | J20: 3.77
A21: Initial volym - hur ska den radiella spridningen ut från denna beräknas?? | F21: 6.479200444 | G21: 22.77504053 | H21: 4110.975189 | I21: 15.34 | J21: 3.73
A22: Temperatur -> löslighet (har bara vid 20 grader) | F22: 6.839156024 | G22: 23.20698723 | H22: 4149.973713 | I22: 15.34 | J22: 3.7
A23: Val bränsle -> koncentration -> löslighet | F23: 7.199111605 | G23: 23.63893393 | H23: 4189.704926 | I23: 15.34 | J23: 3.66
A24: Avgång eter som funktion av tid, temperatur och koncentration | F24: 7.559067185 | G24: 24.07088062 | H24: 4230.16883 | I24: 15.34 | J24: 3.63
A25: Luktgräns, 4 ug/l | F25: 7.919022765 | G25: 24.50282732 | H25: 4271.365423 | I25: 15.34 | J25: 3.59
A26: Osäkerheter - MC | F26: 8.278978345 | G26: 24.93477401 | H26: 4313.294706 | I26: 15.34 | J26: 3.56
F27: 8.638933926 | G27: 25.36672071 | H27: 4355.956679 | I27: 15.34 | J27: 3.52
F28: 8.998889506 | G28: 25.79866741 | H28: 4399.351342 | I28: 15.34 | J28: 3.49
F29: 9.358845086 | G29: 26.2306141 | H29: 4443.478695 | I29: 15.34 | J29: 3.45
F30: 9.718800666 | G30: 26.6625608 | H30: 4488.338738 | I30: 15.34 | J30: 3.42
F31: 10.07875625 | G31: 27.0945075 | H31: 4533.93147 | I31: 15.34 | J31: 3.38
F32: 10.43871183 | G32: 27.52645419 | H32: 4580.256893 | I32: 15.34 | J32: 3.35
F33: 10.79866741 | G33: 27.95840089 | H33: 4627.315005 | I33: 15.34 | J33: 3.32
F34: 11.15862299 | G34: 28.39034758 | H34: 4675.105808 | I34: =I33 -> 15.34 | J34: 3.28
F35: 11.51857857 | G35: 28.82229428 | H35: 4723.6293 | I35: 15.34 | J35: 3.25
F36: 11.87853415 | G36: 29.25424098 | H36: 4772.885482 | I36: 15.34 | J36: 3.21
F37: 12.23848973 | G37: 29.68618767 | H37: 4822.874354 | I37: 15.34 | J37: 3.18
F38: 12.59844531 | G38: 30.11813437 | H38: 4873.595916 | I38: 15.34 | J38: 3.15
F39: 12.95840089 | G39: 30.55008107 | H39: 4925.050167 | I39: 15.34 | J39: 3.11
F40: 13.31835647 | G40: 30.98202776 | H40: 4977.237109 | I40: 15.34 | J40: 3.08
F41: 13.67831205 | G41: 31.41397446 | H41: 5030.156741 | I41: 15.34 | J41: 3.05
F42: 14.03826763 | G42: 31.84592115 | H42: 5083.809062 | I42: 15.34 | J42: 3.02
F43: 14.39822321 | G43: 32.27786785 | H43: 5138.194073 | I43: 15.34 | J43: 2.99
F44: 14.75817879 | G44: 32.70981455 | H44: 5193.311774 | I44: 15.34 | J44: 2.95
F45: 15.11813437 | G45: 33.14176124 | H45: 5249.162166 | I45: 15.34 | J45: 2.92
F46: 15.47808995 | G46: 33.57370794 | H46: 5305.745246 | I46: 15.34 | J46: 2.89
F47: 15.83804553 | G47: 34.00565464 | H47: 5363.061017 | I47: 15.34 | J47: 2.86
F48: 16.19800111 | G48: 34.43760133 | H48: 5421.109478 | I48: 15.34 | J48: 2.83
F49: 16.55795669 | G49: 34.86954803 | H49: 5479.890629 | I49: 15.34 | J49: 2.8
F50: 16.91791227 | G50: 35.30149473 | H50: 5539.404469 | I50: 15.34 | J50: 2.77
F51: 17.27786785 | G51: 35.73344142 | H51: 5599.651 | I51: 15.34 | J51: 2.74
F52: 17.63782343 | G52: 36.16538812 | H52: 5660.63022 | I52: 15.34 | J52: 2.71
F53: 17.99777901 | G53: 36.59733481 | H53: 5722.34213 | I53: 15.34 | J53: 2.68
F54: 18.35773459 | G54: 37.02928151 | H54: 5784.78673 | I54: 15.34 | J54: 2.65
F55: 18.71769017 | G55: 37.46122821 | H55: 5847.96402 | I55: 15.34 | J55: 2.62
F56: 19.07764575 | G56: 37.8931749 | H56: 5911.874 | I56: 15.34 | J56: 2.59
F57: 19.43760133 | G57: 38.3251216 | H57: 5976.51667 | I57: =I56 -> 15.34 | J57: 2.57
F58: 19.79755691 | G58: 38.7570683 | H58: 6041.89203 | I58: 15.34 | J58: 2.54
F59: 20.15751249 | G59: 39.18901499 | H59: 6108.000079 | I59: 15.34 | J59: 2.51
F60: 20.51746807 | G60: 39.62096169 | H60: 6174.840819 | I60: 15.34 | J60: 2.48
F61: 20.87742365 | G61: 40.05290838 | H61: 6242.414248 | I61: 15.34 | J61: 2.46
F62: 21.23737923 | G62: 40.48485508 | H62: 6310.720367 | I62: 15.34 | J62: 2.43
F63: 21.59733481 | G63: 40.91680178 | H63: 6379.759176 | I63: 15.34 | J63: 2.4
F64: =F63+B$13 -> 21.95729039 | G64: =G63+(B$8/100)*(F64-F63)*60 -> 41.34874847 | H64: =($B$9-$B$9*($B$12/360.000000000001))+$B$7*PI()*(G64^2)*($B$12/360.000000000001) -> 6449.530675 | I64: 15.34 | J64: =ROUND(I64*1000000/(H64*1000),2-INT(LOG10(ABS(I64*1000000/(H64*1000))))) -> 2.38
F65: 22.31724597 | G65: 41.78069517 | H65: 6520.034864 | I65: 15.34 | J65: 2.35
F66: 22.67720155 | G66: 42.21264187 | H66: 6591.271743 | I66: 15.34 | J66: 2.33
F67: 23.03715714 | G67: 42.64458856 | H67: 6663.241312 | I67: 15.34 | J67: 2.3
F68: 23.39711272 | G68: 43.07653526 | H68: 6735.94357 | I68: 15.34 | J68: 2.28
F69: 23.7570683 | G69: 43.50848195 | H69: 6809.378519 | I69: 15.34 | J69: 2.25
F70: 24.11702388 | G70: 43.94042865 | H70: 6883.546157 | I70: 15.34 | J70: 2.23
F71: 24.47697946 | G71: 44.37237535 | H71: 6958.446485 | I71: 15.34 | J71: 2.2
F72: 24.83693504 | G72: 44.80432204 | H72: 7034.079503 | I72: 15.34 | J72: 2.18
F73: 25.19689062 | G73: 45.23626874 | H73: 7110.445211 | I73: 15.34 | J73: 2.16
F74: 25.5568462 | G74: 45.66821544 | H74: 7187.543609 | I74: 15.34 | J74: 2.13
F75: 25.91680178 | G75: 46.10016213 | H75: 7265.374697 | I75: 15.34 | J75: 2.11
F76: 26.27675736 | G76: 46.53210883 | H76: 7343.938475 | I76: 15.34 | J76: 2.09
F77: 26.63671294 | G77: 46.96405552 | H77: 7423.234942 | I77: 15.34 | J77: 2.07
F78: 26.99666852 | G78: 47.39600222 | H78: 7503.2641 | I78: 15.34 | J78: 2.04
F79: 27.3566241 | G79: 47.82794892 | H79: 7584.025947 | I79: 15.34 | J79: 2.02
F80: 27.71657968 | G80: 48.25989561 | H80: 7665.520484 | I80: 15.34 | J80: 2
F81: 28.07653526 | G81: 48.69184231 | H81: 7747.747711 | I81: 15.34 | J81: 1.98
F82: 28.43649084 | G82: 49.12378901 | H82: 7830.707628 | I82: 15.34 | J82: 1.96
F83: 28.79644642 | G83: 49.5557357 | H83: 7914.400235 | I83: 15.34 | J83: 1.94
F84: 29.156402 | G84: 49.9876824 | H84: 7998.825532 | I84: 15.34 | J84: 1.92
F85: 29.51635758 | G85: 50.4196291 | H85: 8083.983519 | I85: 15.34 | J85: 1.9
F86: 29.87631316 | G86: 50.85157579 | H86: 8169.874195 | I86: 15.34 | J86: 1.88
F87: 30.23626874 | G87: 51.28352249 | H87: 8256.497562 | I87: 15.34 | J87: 1.86
F88: 30.59622432 | G88: 51.71546918 | H88: 8343.853618 | I88: 15.34 | J88: 1.84
F89: 30.9561799 | G89: 52.14741588 | H89: 8431.942365 | I89: 15.34 | J89: 1.82
F90: 31.31613548 | G90: 52.57936258 | H90: 8520.763801 | I90: 15.34 | J90: 1.8
F91: 31.67609106 | G91: 53.01130927 | H91: 8610.317927 | I91: 15.34 | J91: 1.78
F92: 32.03604664 | G92: 53.44325597 | H92: 8700.604743 | I92: 15.34 | J92: 1.76
F93: 32.39600222 | G93: 53.87520267 | H93: 8791.624248 | I93: 15.34 | J93: 1.74
F94: 32.7559578 | G94: 54.30714936 | H94: 8883.376444 | I94: 15.34 | J94: 1.73
F95: 33.11591338 | G95: 54.73909606 | H95: 8975.86133 | I95: 15.34 | J95: 1.71
F96: 33.47586896 | G96: 55.17104275 | H96: 9069.078905 | I96: 15.34 | J96: 1.69
F97: 33.83582454 | G97: 55.60298945 | H97: 9163.029171 | I97: 15.34 | J97: 1.67
F98: 34.19578012 | G98: 56.03493615 | H98: 9257.712126 | I98: 15.34 | J98: 1.66
F99: 34.5557357 | G99: 56.46688284 | H99: 9353.127771 | I99: 15.34 | J99: 1.64
F100: 34.91569128 | G100: 56.89882954 | H100: 9449.276106 | I100: 15.34 | J100: 1.62
F101: 35.27564686 | G101: 57.33077624 | H101: 9546.157131 | I101: 15.34 | J101: 1.61
F102: 35.63560244 | G102: 57.76272293 | H102: 9643.770846 | I102: 15.34 | J102: 1.59
F103: 35.99555802 | G103: 58.19466963 | H103: 9742.117251 | I103: 15.34 | J103: 1.57
F104: 36.3555136 | G104: 58.62661632 | H104: 9841.196345 | I104: 15.34 | J104: 1.56
F105: 36.71546918 | G105: 59.05856302 | H105: 9941.00813 | I105: 15.34 | J105: 1.54
F106: 37.07542476 | G106: 59.49050972 | H106: 10041.5526 | I106: 15.34 | J106: 1.53
F107: 37.43538034 | G107: 59.92245641 | H107: 10142.82977 | I107: 15.34 | J107: 1.51
F108: =F107+B$13 -> 37.79533592 | G108: =G107+(B$8/100)*(F108-F107)*60 -> 60.35440311 | H108: =($B$9-$B$9*($B$12/360.000000000001))+$B$7*PI()*(G108^2)*($B$12/360.000000000001) -> 10244.83962 | I108: 15.34 | J108: =ROUND(I108*1000000/(H108*1000),2-INT(LOG10(ABS(I108*1000000/(H108*1000))))) -> 1.5
F109: 38.1552915 | G109: 60.78634981 | H109: 10347.58217 | I109: 15.34 | J109: 1.48
F110: 38.51524709 | G110: 61.2182965 | H110: 10451.0574 | I110: 15.34 | J110: 1.47
F111: 38.87520267 | G111: 61.6502432 | H111: 10555.26532 | I111: 15.34 | J111: 1.45
F112: 39.23515825 | G112: 62.08218989 | H112: 10660.20594 | I112: 15.34 | J112: 1.44
F113: 39.59511383 | G113: 62.51413659 | H113: 10765.87924 | I113: 15.34 | J113: 1.42
F114: 39.95506941 | G114: 62.94608329 | H114: 10872.28524 | I114: 15.34 | J114: 1.41
F115: 40.31502499 | G115: 63.37802998 | H115: 10979.42392 | I115: 15.34 | J115: 1.4
F116: 40.67498057 | G116: 63.80997668 | H116: 11087.29529 | I116: 15.34 | J116: 1.38
F117: 41.03493615 | G117: 64.24192338 | H117: 11195.89935 | I117: 15.34 | J117: 1.37
F118: 41.39489173 | G118: 64.67387007 | H118: 11305.23611 | I118: 15.34 | J118: 1.36
F119: 41.75484731 | G119: 65.10581677 | H119: 11415.30555 | I119: 15.34 | J119: 1.34
F120: 42.11480289 | G120: 65.53776346 | H120: 11526.10768 | I120: 15.34 | J120: 1.33
F121: 42.47475847 | G121: 65.96971016 | H121: 11637.64251 | I121: =I120 -> 15.34 | J121: 1.32
F122: 42.83471405 | G122: 66.40165686 | H122: 11749.91002 | I122: 15.34 | J122: 1.31
F123: 43.19466963 | G123: 66.83360355 | H123: 11862.91022 | I123: 15.34 | J123: 1.29
F124: 43.55462521 | G124: 67.26555025 | H124: 11976.64311 | I124: 15.34 | J124: 1.28
F125: 43.91458079 | G125: 67.69749695 | H125: 12091.1087 | I125: 15.34 | J125: 1.27
F126: 44.27453637 | G126: 68.12944364 | H126: 12206.30697 | I126: 15.34 | J126: 1.26
F127: 44.63449195 | G127: 68.56139034 | H127: 12322.23793 | I127: 15.34 | J127: 1.24
F128: 44.99444753 | G128: 68.99333704 | H128: 12438.90158 | I128: 15.34 | J128: 1.23
F129: 45.35440311 | G129: 69.42528373 | H129: 12556.29792 | I129: 15.34 | J129: 1.22
F130: 45.71435869 | G130: 69.85723043 | H130: 12674.42696 | I130: 15.34 | J130: 1.21
F131: 46.07431427 | G131: 70.28917712 | H131: 12793.28868 | I131: 15.34 | J131: 1.2
F132: 46.43426985 | G132: 70.72112382 | H132: 12912.88309 | I132: 15.34 | J132: 1.19
F133: 46.79422543 | G133: 71.15307052 | H133: 13033.21019 | I133: 15.34 | J133: 1.18
F134: 47.15418101 | G134: 71.58501721 | H134: 13154.26998 | I134: 15.34 | J134: 1.17
F135: 47.51413659 | G135: 72.01696391 | H135: 13276.06246 | I135: 15.34 | J135: 1.16
F136: 47.87409217 | G136: 72.44891061 | H136: 13398.58763 | I136: 15.34 | J136: 1.14
F137: 48.23404775 | G137: 72.8808573 | H137: 13521.8455 | I137: 15.34 | J137: 1.13
F138: 48.59400333 | G138: 73.312804 | H138: 13645.83605 | I138: 15.34 | J138: 1.12
F139: 48.95395891 | G139: 73.74475069 | H139: 13770.55929 | I139: 15.34 | J139: 1.11
F140: 49.31391449 | G140: 74.17669739 | H140: 13896.01522 | I140: 15.34 | J140: 1.1
F141: 49.67387007 | G141: 74.60864409 | H141: 14022.20384 | I141: 15.34 | J141: 1.09
F142: 50.03382565 | G142: 75.04059078 | H142: 14149.12515 | I142: 15.34 | J142: 1.08
F143: 50.39378123 | G143: 75.47253748 | H143: 14276.77915 | I143: 15.34 | J143: 1.07
F144: 50.75373681 | G144: 75.90448418 | H144: 14405.16584 | I144: 15.34 | J144: 1.06
F145: 51.11369239 | G145: 76.33643087 | H145: 14534.28522 | I145: 15.34 | J145: 1.06
F146: 51.47364797 | G146: 76.76837757 | H146: 14664.13729 | I146: 15.34 | J146: 1.05
F147: 51.83360355 | G147: 77.20032426 | H147: 14794.72205 | I147: 15.34 | J147: 1.04
F148: 52.19355913 | G148: 77.63227096 | H148: 14926.0395 | I148: 15.34 | J148: 1.03
F149: 52.55351471 | G149: 78.06421766 | H149: 15058.08964 | I149: 15.34 | J149: 1.02
F150: 52.91347029 | G150: 78.49616435 | H150: 15190.87247 | I150: 15.34 | J150: 1.01
F151: 53.27342587 | G151: 78.92811105 | H151: 15324.38799 | I151: 15.34 | J151: 1
F152: 53.63338145 | G152: 79.36005775 | H152: 15458.6362 | I152: 15.34 | J152: 0.992
F153: 53.99333704 | G153: 79.79200444 | H153: 15593.6171 | I153: 15.34 | J153: 0.984
F154: 54.35329262 | G154: 80.22395114 | H154: 15729.33069 | I154: 15.34 | J154: 0.975
F155: 54.7132482 | G155: 80.65589783 | H155: 15865.77696 | I155: 15.34 | J155: 0.967
F156: 55.07320378 | G156: 81.08784453 | H156: 16002.95593 | I156: 15.34 | J156: 0.959
F157: 55.43315936 | G157: 81.51979123 | H157: 16140.86759 | I157: 15.34 | J157: 0.95
F158: 55.79311494 | G158: 81.95173792 | H158: 16279.51194 | I158: 15.34 | J158: 0.942
F159: 56.15307052 | G159: 82.38368462 | H159: 16418.88898 | I159: 15.34 | J159: 0.934
F160: 56.5130261 | G160: 82.81563132 | H160: 16558.99871 | I160: 15.34 | J160: 0.926
F161: 56.87298168 | G161: 83.24757801 | H161: 16699.84113 | I161: 15.34 | J161: 0.919
F162: 57.23293726 | G162: 83.67952471 | H162: 16841.41623 | I162: 15.34 | J162: 0.911
F163: 57.59289284 | G163: 84.11147141 | H163: 16983.72403 | I163: 15.34 | J163: 0.903
F164: 57.95284842 | G164: 84.5434181 | H164: 17126.76452 | I164: 15.34 | J164: 0.896
F165: 58.312804 | G165: 84.9753648 | H165: 17270.5377 | I165: 15.34 | J165: 0.888
F166: 58.67275958 | G166: 85.40731149 | H166: 17415.04357 | I166: 15.34 | J166: 0.881
F167: 59.03271516 | G167: 85.83925819 | H167: 17560.28212 | I167: 15.34 | J167: 0.874
F168: 59.39267074 | G168: 86.27120489 | H168: 17706.25337 | I168: 15.34 | J168: 0.866
F169: 59.75262632 | G169: 86.70315158 | H169: 17852.95731 | I169: 15.34 | J169: 0.859
F170: 60.1125819 | G170: 87.13509828 | H170: 18000.39394 | I170: 15.34 | J170: 0.852
F171: 60.47253748 | G171: 87.56704498 | H171: 18148.56325 | I171: 15.34 | J171: 0.845
F172: =F171+B$13 -> 60.83249306 | G172: =G171+(B$8/100)*(F172-F171)*60 -> 87.99899167 | H172: =($B$9-$B$9*($B$12/360.000000000001))+$B$7*PI()*(G172^2)*($B$12/360.000000000001) -> 18297.46526 | I172: 15.34 | J172: =ROUND(I172*1000000/(H172*1000),2-INT(LOG10(ABS(I172*1000000/(H172*1000))))) -> 0.838
F173: 61.19244864 | G173: 88.43093837 | H173: 18447.09996 | I173: 15.34 | J173: 0.832
F174: 61.55240422 | G174: 88.86288506 | H174: 18597.46734 | I174: 15.34 | J174: 0.825
F175: 61.9123598 | G175: 89.29483176 | H175: 18748.56742 | I175: 15.34 | J175: 0.818
F176: 62.27231538 | G176: 89.72677846 | H176: 18900.40019 | I176: 15.34 | J176: 0.812
F177: 62.63227096 | G177: 90.15872515 | H177: 19052.96564 | I177: 15.34 | J177: 0.805
F178: 62.99222654 | G178: 90.59067185 | H178: 19206.26379 | I178: 15.34 | J178: 0.799
F179: 63.35218212 | G179: 91.02261855 | H179: 19360.29463 | I179: 15.34 | J179: 0.792
F180: 63.7121377 | G180: 91.45456524 | H180: 19515.05815 | I180: 15.34 | J180: 0.786
F181: 64.07209328 | G181: 91.88651194 | H181: 19670.55437 | I181: 15.34 | J181: 0.78
F182: 64.43204886 | G182: 92.31845863 | H182: 19826.78328 | I182: 15.34 | J182: 0.774
F183: 64.79200444 | G183: 92.75040533 | H183: 19983.74487 | I183: 15.34 | J183: 0.768
F184: 65.15196002 | G184: 93.18235203 | H184: 20141.43916 | I184: 15.34 | J184: 0.762
F185: 65.5119156 | G185: 93.61429872 | H185: 20299.86613 | I185: =I184 -> 15.34 | J185: 0.756
F186: 65.87187118 | G186: 94.04624542 | H186: 20459.0258 | I186: 15.34 | J186: 0.75
F187: 66.23182676 | G187: 94.47819212 | H187: 20618.91815 | I187: 15.34 | J187: 0.744
F188: 66.59178234 | G188: 94.91013881 | H188: 20779.5432 | I188: 15.34 | J188: 0.738
F189: 66.95173792 | G189: 95.34208551 | H189: 20940.90093 | I189: 15.34 | J189: 0.733
F190: 67.3116935 | G190: 95.7740322 | H190: 21102.99136 | I190: 15.34 | J190: 0.727
F191: 67.67164908 | G191: 96.2059789 | H191: 21265.81448 | I191: 15.34 | J191: 0.721
F192: 68.03160466 | G192: 96.6379256 | H192: 21429.37028 | I192: 15.34 | J192: 0.716
F193: 68.39156024 | G193: 97.06987229 | H193: 21593.65877 | I193: 15.34 | J193: 0.71
F194: 68.75151582 | G194: 97.50181899 | H194: 21758.67996 | I194: 15.34 | J194: 0.705
F195: 69.11147141 | G195: 97.93376569 | H195: 21924.43383 | I195: 15.34 | J195: 0.7
F196: 69.47142699 | G196: 98.36571238 | H196: 22090.9204 | I196: 15.34 | J196: 0.694
F197: 69.83138257 | G197: 98.79765908 | H197: 22258.13965 | I197: 15.34 | J197: 0.689
F198: 70.19133815 | G198: 99.22960577 | H198: 22426.0916 | I198: 15.34 | J198: 0.684
F199: 70.55129373 | G199: 99.66155247 | H199: 22594.77623 | I199: 15.34 | J199: 0.679
F200: 70.91124931 | G200: 100.0934992 | H200: 22764.19356 | I200: 15.34 | J200: 0.674
... 403 more rows

Sheet Attribut bränslen (hidden)
A1: Bränsle | B1: Ethanol (vol%) | C1: Mean Ether (g/l) | D1: WAF Ether (ug/l)
A2: Ethanol 85 | B2: 85 | C2: 7.61 | D2: 96576.2247
A3: Petrol 95 Octane | B3: 10 | C3: 1.44 | D3: 3018.6
A4: Petrol 98 Octane | B4: 5 | C4: 14.99 | D4: 103081.0522
A5: MK1 Diesel | B5: 0 | C5: 0.2 | D5: 767
A6: HVO | B6: 0 | C6: 0.25 | D6: 941.8

Sheet Figurer (hidden)
B1: 0.5 cm/s | C1: 20C | D1: 5C | I1: 2 cm/s | J1: 20C | K1: 5C
A2: Tid (min) | B2: Concentration (without evap.) | C2: Concentration (with evap., 20℃) | D2: Concentration (with evap., 5℃) | E2: Odour threshold | H2: Tid (min) | I2: Concentration (without evap.) | J2: Concentration (with evap., 20℃) | K2: Concentration (with evap., 5℃) | L2: Odour threshold
A3: 0 | B3: 102 | C3: 102 | D3: 102 | E3: 4 | H3: 0 | I3: 102 | J3: 102 | K3: 102 | L3: 4
A4: 1 | B4: 102 | C4: 100.9744034 | D4: 101.5442075 | E4: 4 | H4: 1 | I4: 100 | J4: 99.41662012 | K4: 99.97745063 | L4: 4
A5: 2 | B5: 101 | C5: 99.87253483 | D5: 101.0028871 | E5: 4 | H5: 2 | I5: 97.9 | J5: 96.71353708 | K5: 97.80777169 | L5: 4
A6: 3 | B6: 101 | C6: 98.77552965 | D6: 100.4571696 | E6: 4 | H6: 3 | I6: 95.7 | J6: 93.98623198 | K6: 95.58579286 | L6: 4
A7: 4 | B7: 100 | C7: 97.68361538 | D7: 99.9072833 | E7: 4 | H7: 4 | I7: 93.4 | J7: 91.24826023 | K7: 93.32471995 | L7: 4
A8: 5 | B8: 99.5 | C8: 96.59701195 | D8: 99.35345408 | E8: 4 | H8: 5 | I8: 91.1 | J8: 88.51206829 | K8: 91.03692418 | L8: 4
A9: 6 | B9: 98.9 | C9: 95.51593171 | D9: 98.79590547 | E9: 4 | H9: 6 | I9: 88.9 | J9: 85.78894385 | K9: 88.73386287 | L9: 4
A10: 7 | B10: 98.4 | C10: 94.44057942 | D10: 98.23485839 | E10: 4 | H10: 7 | I10: 86.6 | J10: 83.08899633 | K10: 86.42602942 | L10: 4
A11: 8 | B11: 97.9 | C11: 93.37115226 | D11: 97.67053102 | E11: 4 | H11: 8 | I11: 84.3 | J11: 80.42116341 | K11: 84.12292923 | L11: 4
A12: 9 | B12: 97.3 | C12: 92.30783986 | D12: 97.1031387 | E12: 4 | H12: 9 | I12: 82 | J12: 77.79323921 | K12: 81.83307823 | L12: 4
A13: 10 | B13: 96.8 | C13: 91.2508243 | D13: 96.53289376 | E13: 4 | H13: 10 | I13: 79.8 | J13: 75.21191984 | K13: 79.56402007 | L13: 4
A14: 11 | B14: 96.2 | C14: 90.20028016 | D14: 95.96000541 | E14: 4 | H14: 11 | I14: 77.5 | J14: 72.68286208 | K14: 77.32235853 | L14: 4
A15: 12 | B15: 95.7 | C15: 89.15637458 | D15: 95.38467966 | E15: 4 | H15: 12 | I15: 75.3 | J15: 70.21075161 | K15: 75.1138016 | L15: 4
A16: 13 | B16: 95.1 | C16: 88.11926726 | D16: 94.80711919 | E16: 4 | H16: 13 | I16: 73.2 | J16: 67.79937728 | K16: 72.94321417 | L16: 4
A17: 14 | B17: 94.5 | C17: 87.0891106 | D17: 94.22752327 | E17: 4 | H17: 14 | I17: 71 | J17: 65.45170881 | K17: 70.81467651 | L17: 4
A18: 15 | B18: 94 | C18: 86.06604971 | D18: 93.64608768 | E18: 4 | H18: 15 | I18: 69 | J18: 63.16997533 | K18: 68.73154621 | L18: 4
A19: 16 | B19: 93.4 | C19: 85.05022249 | D19: 93.0630046 | E19: 4 | H19: 16 | I19: 66.9 | J19: 60.95574304 | K19: 66.69652148 | L19: 4
A20: 17 | B20: 92.8 | C20: 84.04175976 | D20: 92.47846259 | E20: 4 | H20: 17 | I20: 65 | J20: 58.80999038 | K20: 64.7117044 | L20: 4
A21: 18 | B21: 92.3 | C21: 83.04078531 | D21: 91.89264648 | E21: 4 | H21: 18 | I21: 63 | J21: 56.73317965 | K21: 62.77866255 | L21: 4
A22: 19 | B22: 91.7 | C22: 82.04741602 | D22: 91.30573735 | E22: 4 | H22: 19 | I22: 61.2 | J22: 54.72532436 | K22: 60.89848831 | L22: 4
A23: 20 | B23: 91.1 | C23: 81.06176194 | D23: 90.71791247 | E23: 4 | H23: 20 | I23: 59.3 | J23: 52.78605168 | K23: 59.07185504 | L23: 4
A24: 21 | B24: 90.6 | C24: 80.08392644 | D24: 90.12934524 | E24: 4 | H24: 21 | I24: 57.6 | J24: 50.9146599 | K24: 57.29906954 | L24: 4
A25: 22 | B25: 90 | C25: 79.11400626 | D25: 89.54020519 | E25: 4 | H25: 22 | I25: 55.9 | J25: 49.1101706 | K25: 55.58012082 | L25: 4
A26: 23 | B26: 89.4 | C26: 78.1520917 | D26: 88.95065792 | E26: 4 | H26: 23 | I26: 54.2 | J26: 47.37137579 | K26: 53.91472467 | L26: 4
A27: 24 | B27: 88.9 | C27: 77.19826669 | D27: 88.36086511 | E27: 4 | H27: 24 | I27: 52.6 | J27: 45.69688 | K27: 52.30236431 | L27: 4
A28: 25 | B28: 88.3 | C28: 76.25260894 | D28: 87.77098445 | E28: 4 | H28: 25 | I28: 51 | J28: 44.08513772 | K28: 50.74232711 | L28: 4
A29: 26 | B29: 87.7 | C29: 75.31519007 | D29: 87.1811697 | E29: 4 | H29: 26 | I29: 49.5 | J29: 42.53448635 | K29: 49.23373748 | L29: 4
A30: 27 | B30: 87.1 | C30: 74.38607571 | D30: 86.59157063 | E30: 4 | H30: 27 | I30: 48.1 | J30: 41.04317508 | K30: 47.77558616 | L30: 4
A31: 28 | B31: 86.6 | C31: 73.4653257 | D31: 86.00233304 | E31: 4 | H31: 28 | I31: 46.7 | J31: 39.6093899 | K31: 46.36675624 | L31: 4
A32: 29 | B32: 86 | C32: 72.55299415 | D32: 85.41359876 | E32: 4 | H32: 29 | I32: 45.3 | J32: 38.23127529 | K32: 45.00604593 | L32: 4
A33: 30 | B33: 85.4 | C33: 71.64912964 | D33: 84.82550569 | E33: 4 | H33: 30 | I33: 44 | J33: 36.90695272 | K33: 43.69218863 | L33: 4
A34: 31 | B34: 84.9 | C34: 70.75377532 | D34: 84.23818776 | E34: 4 | H34: 31 | I34: 42.7 | J34: 35.63453637 | K34: 42.42387025 | L34: 4
A35: 32 | B35: 84.3 | C35: 69.86696909 | D35: 83.65177498 | E35: 4 | H35: 32 | I35: 41.5 | J35: 34.41214644 | K35: 41.19974429 | L35: 4
A36: 33 | B36: 83.7 | C36: 68.9887437 | D36: 83.06639348 | E36: 4 | H36: 33 | I36: 40.3 | J36: 33.23792018 | K36: 40.01844472 | L36: 4
A37: 34 | B37: 83.1 | C37: 68.11912691 | D37: 82.4821655 | E37: 4 | H37: 34 | I37: 39.2 | J37: 32.11002103 | K37: 38.87859706 | L37: 4
A38: 35 | B38: 82.6 | C38: 67.25814166 | D38: 81.89920943 | E38: 4 | H38: 35 | I38: 38.1 | J38: 31.02664608 | K38: 37.77882766 | L38: 4
A39: 36 | B39: 82 | C39: 66.40580618 | D39: 81.31763987 | E39: 4 | H39: 36 | I39: 37 | J39: 29.98603203 | K39: 36.71777163 | L39: 4
A40: 37 | B40: 81.4 | C40: 65.56213413 | D40: 80.73756764 | E40: 4 | H40: 37 | I40: 36 | J40: 28.98645988 | K40: 35.69407931 | L40: 4
A41: 38 | B41: 80.9 | C41: 64.72713477 | D41: 80.15909983 | E41: 4 | H41: 38 | I41: 35 | J41: 28.02625858 | K41: 34.70642172 | L41: 4
A42: 39 | B42: 80.3 | C42: 63.90081309 | D42: 79.58233983 | E42: 4 | H42: 39 | I42: 34.1 | J42: 27.10380758 | K42: 33.75349494 | L42: 4
A43: 40 | B43: 79.8 | C43: 63.08316996 | D43: 79.0073874 | E43: 4 | H43: 40 | I43: 33.1 | J43: 26.21753881 | K43: 32.83402361 | L43: 4
A44: 41 | B44: 79.2 | C44: 62.27420223 | D44: 78.4343387 | E44: 4 | H44: 41 | I44: 32.3 | J44: 25.36593773 | K44: 31.94676374 | L44: 4
A45: 42 | B45: 78.6 | C45: 61.47390293 | D45: 77.86328634 | E45: 4 | H45: 42 | I45: 31.4 | J45: 24.54754402 | K45: 31.09050475 | L45: 4
A46: 43 | B46: 78.1 | C46: 60.68226136 | D46: 77.29431944 | E46: 4 | H46: 43 | I46: 30.6 | J46: 23.76095164 | K46: 30.26407111 | L46: 4
A47: 44 | B47: 77.5 | C47: 59.89926328 | D47: 76.72752366 | E47: 4 | H47: 44 | I47: 29.8 | J47: 23.00480857 | K47: 29.46632332 | L47: 4
A48: 45 | B48: 77 | C48: 59.12489096 | D48: 76.16298132 | E48: 4 | H48: 45 | I48: 29 | J48: 22.27781622 | K48: 28.69615868 | L48: 4
A49: 46 | B49: 76.4 | C49: 58.3591234 | D49: 75.60077135 | E49: 4 | H49: 46 | I49: 28.3 | J49: 21.57872852 | K49: 27.95251152 | L49: 4
A50: 47 | B50: 75.9 | C50: 57.60193642 | D50: 75.04096947 | E50: 4 | H50: 47 | I50: 27.5 | J50: 20.90635086 | K50: 27.23435332 | L50: 4
A51: 48 | B51: 75.3 | C51: 56.85330278 | D51: 74.48364814 | E51: 4 | H51: 48 | I51: 26.8 | J51: 20.25953883 | K51: 26.54069246 | L51: 4
A52: 49 | B52: 74.8 | C52: 56.11319234 | D52: 73.9288767 | E52: 4 | H52: 49 | I52: 26.2 | J52: 19.63719685 | K52: 25.87057383 | L52: 4
A53: 50 | B53: 74.2 | C53: 55.38157216 | D53: 73.37672139 | E53: 4 | H53: 50 | I53: 25.5 | J53: 19.03827668 | K53: 25.22307828 | L53: 4
A54: 51 | B54: 73.7 | C54: 54.65840661 | D54: 72.82724543 | E54: 4 | H54: 51 | I54: 24.9 | J54: 18.46177589 | K54: 24.59732191 | L54: 4
A55: 52 | B55: 73.2 | C55: 53.94365755 | D55: 72.28050906 | E55: 4 | H55: 52 | I55: 24.3 | J55: 17.90673625 | K55: 23.99245529 | L55: 4
A56: 53 | B56: 72.6 | C56: 53.23728436 | D56: 71.73656963 | E56: 4 | H56: 53 | I56: 23.7 | J56: 17.37224213 | K56: 23.4076626 | L56: 4
A57: 54 | B57: 72.1 | C57: 52.53924415 | D57: 71.19548165 | E57: 4 | H57: 54 | I57: 23.1 | J57: 16.85741889 | K57: 22.84216063 | L57: 4
A58: 55 | B58: 71.6 | C58: 51.84949179 | D58: 70.65729686 | E58: 4 | H58: 55 | I58: 22.6 | J58: 16.36143123 | K58: 22.29519786 | L58: 4
A59: 56 | B59: 71 | C59: 51.16798008 | D59: 70.12206428 | E59: 4 | H59: 56 | I59: 22.1 | J59: 15.88348161 | K59: 21.7660534 | L59: 4
A60: 57 | B60: 70.5 | C60: 50.49465982 | D60: 69.58983029 | E60: 4 | H60: 57 | I60: 21.5 | J60: 15.42280868 | K60: 21.25403601 | L60: 4
A61: 58 | B61: 70 | C61: 49.82947993 | D61: 69.06063869 | E61: 4 | H61: 58 | I61: 21 | J61: 14.97868572 | K61: 20.75848299 | L61: 4
A62: 59 | B62: 69.5 | C62: 49.17238756 | D62: 68.53453075 | E62: 4 | H62: 59 | I62: 20.6 | J62: 14.55041911 | K62: 20.2787592 | L62: 4
A63: 60 | B63: 69 | C63: 48.52332818 | D63: 68.01154531 | E63: 4 | H63: 60 | I63: 20.1 | J63: 14.1373469 | K63: 19.81425599 | L63: 4
A64: 61 | B64: 68.5 | C64: 47.88224568 | D64: 67.49171878 | E64: 4 | H64: 61 | I64: 19.6 | J64: 13.7388374 | K64: 19.36439018 | L64: 4
A65: 62 | B65: 68 | C65: 47.24908246 | D65: 66.97508528 | E65: 4 | H65: 62 | I65: 19.2 | J65: 13.35428774 | K65: 18.92860308 | L65: 4
A66: 63 | B66: 67.4 | C66: 46.62377953 | D66: 66.46167664 | E66: 4 | H66: 63 | I66: 18.8 | J66: 12.9831226 | K66: 18.50635948 | L66: 4
A67: 64 | B67: 66.9 | C67: 46.00627659 | D67: 65.95152249 | E67: 4 | H67: 64 | I67: 18.4 | J67: 12.62479292 | K67: 18.09714668 | L67: 4
A68: 65 | B68: 66.4 | C68: 45.39651213 | D68: 65.44465031 | E68: 4 | H68: 65 | I68: 18 | J68: 12.27877467 | K68: 17.70047359 | L68: 4
A69: 66 | B69: 66 | C69: 44.79442349 | D69: 64.94108553 | E69: 4 | H69: 66 | I69: 17.6 | J69: 11.94456766 | K69: 17.3158698 | L69: 4
A70: 67 | B70: 65.5 | C70: 44.19994698 | D70: 64.44085151 | E70: 4 | H70: 67 | I70: 17.2 | J70: 11.62169445 | K70: 16.9428847 | L70: 4
A71: 68 | B71: 65 | C71: 43.61301792 | D71: 63.94396969 | E71: 4 | H71: 68 | I71: 16.8 | J71: 11.30969921 | K71: 16.58108663 | L71: 4
A72: 69 | B72: 64.5 | C72: 43.03357074 | D72: 63.45045958 | E72: 4 | H72: 69 | I72: 16.5 | J72: 11.00814674 | K72: 16.23006208 | L72: 4
A73: 70 | B73: 64 | C73: 42.46153905 | D73: 62.96033885 | E73: 4 | H73: 70 | I73: 16.2 | J73: 10.71662148 | K73: 15.88941486 | L73: 4
A74: 71 | B74: 63.5 | C74: 41.89685569 | D74: 62.47362339 | E74: 4 | H74: 71 | I74: 15.8 | J74: 10.43472653 | K74: 15.55876538 | L74: 4
A75: 72 | B75: 63 | C75: 41.33945284 | D75: 61.99032734 | E75: 4 | H75: 72 | I75: 15.5 | J75: 10.16208281 | K75: 15.23774992 | L75: 4
A76: 73 | B76: 62.6 | C76: 40.78926205 | D76: 61.51046319 | E76: 4 | H76: 73 | I76: 15.2 | J76: 9.89832814 | K76: 14.92601989 | L76: 4
A77: 74 | B77: 62.1 | C77: 40.24621432 | D77: 61.03404178 | E77: 4 | H77: 74 | I77: 14.9 | J77: 9.64311649 | K77: 14.6232412 | L77: 4
A78: 75 | B78: 61.6 | C78: 39.71024017 | D78: 60.56107239 | E78: 4 | H78: 75 | I78: 14.6 | J78: 9.396117159 | K78: 14.32909359 | L78: 4
A79: 76 | B79: 61.2 | C79: 39.18126966 | D79: 60.09156279 | E79: 4 | H79: 76 | I79: 14.3 | J79: 9.157014061 | K79: 14.04327003 | L79: 4
A80: 77 | B80: 60.7 | C80: 38.65923251 | D80: 59.62551927 | E80: 4 | H80: 77 | I80: 14 | J80: 8.925505013 | K80: 13.76547613 | L80: 4
A81: 78 | B81: 60.3 | C81: 38.14405811 | D81: 59.16294672 | E81: 4 | H81: 78 | I81: 13.7 | J81: 8.701301071 | K81: 13.49542957 | L81: 4
A82: 79 | B82: 59.8 | C82: 37.63567557 | D82: 58.70384866 | E82: 4 | H82: 79 | I82: 13.5 | J82: 8.484125898 | K82: 13.23285956 | L82: 4
A83: 80 | B83: 59.3 | C83: 37.1340138 | D83: 58.24822728 | E83: 4 | H83: 80 | I83: 13.2 | J83: 8.273715157 | K83: 12.97750632 | L83: 4
A84: 81 | B84: 58.9 | C84: 36.63900154 | D84: 57.79608352 | E84: 4 | H84: 81 | I84: 13 | J84: 8.069815941 | K84: 12.72912062 | L84: 4
A85: 82 | B85: 58.5 | C85: 36.15056741 | D85: 57.3474171 | E85: 4 | H85: 82 | I85: 12.7 | J85: 7.872186226 | K85: 12.48746327 | L85: 4
A86: 83 | B86: 58 | C86: 35.66863996 | D86: 56.90222653 | E86: 4 | H86: 83 | I86: 12.5 | J86: 7.680594356 | K86: 12.2523047 | L86: 4
A87: 84 | B87: 57.6 | C87: 35.19314769 | D87: 56.46050923 | E87: 4 | H87: 84 | I87: 12.3 | J87: 7.494818551 | K87: 12.02342452 | L87: 4
A88: 85 | B88: 57.1 | C88: 34.72401914 | D88: 56.0222615 | E88: 4 | H88: 85 | I88: 12 | J88: 7.314646442 | K88: 11.80061112 | L88: 4
A89: 86 | B89: 56.7 | C89: 34.26118287 | D89: 55.5874786 | E89: 4 | H89: 86 | I89: 11.8 | J89: 7.139874623 | K89: 11.58366128 | L89: 4
A90: 87 | B90: 56.3 | C90: 33.80456753 | D90: 55.1561548 | E90: 4 | H90: 87 | I90: 11.6 | J90: 6.970308234 | K90: 11.37237979 | L90: 4
A91: 88 | B91: 55.9 | C91: 33.35410192 | D91: 54.72828338 | E91: 4 | H91: 88 | I91: 11.4 | J91: 6.805760562 | K91: 11.16657911 | L91: 4
A92: 89 | B92: 55.4 | C92: 32.90971494 | D92: 54.30385672 | E92: 4 | H92: 89 | I92: 11.2 | J92: 6.646052655 | K92: 10.96607904 | L92: 4
A93: 90 | B93: 55 | C93: 32.47133574 | D93: 53.8828663 | E93: 4 | H93: 90 | I93: 11 | J93: 6.491012969 | K93: 10.77070636 | L93: 4
A94: 91 | B94: 54.6 | C94: 32.03889363 | D94: 53.46530274 | E94: 4 | H94: 91 | I94: 10.8 | J94: 6.340477019 | K94: 10.58029458 | L94: 4
A95: 92 | B95: 54.2 | C95: 31.61231822 | D95: 53.05115587 | E95: 4 | H95: 92 | I95: 10.6 | J95: 6.194287056 | K95: 10.39468359 | L95: 4
A96: 93 | B96: 53.8 | C96: 31.19153935 | D96: 52.64041472 | E96: 4 | H96: 93 | I96: 10.4 | J96: 6.052291756 | K96: 10.21371945 | L96: 4
A97: 94 | B97: 53.4 | C97: 30.7764872 | D97: 52.23306759 | E97: 4 | H97: 94 | I97: 10.3 | J97: 5.91434593 | K97: 10.03725405 | L97: 4
A98: 95 | B98: 53 | C98: 30.36709224 | D98: 51.82910207 | E98: 4 | H98: 95 | I98: 10.1 | J98: 5.780310239 | K98: 9.865144903 | L98: 4
A99: 96 | B99: 52.6 | C99: 29.96328533 | D99: 51.42850507 | E99: 4 | H99: 96 | I99: 9.92 | J99: 5.65005093 | K99: 9.697254907 | L99: 4
A100: 97 | B100: 52.2 | C100: 29.56499765 | D100: 51.03126285 | E100: 4 | H100: 97 | I100: 9.75 | J100: 5.523439587 | K100: 9.533452091 | L100: 4
A101: 98 | B101: 51.8 | C101: 29.17216083 | D101: 50.63736107 | E101: 4 | H101: 98 | I101: 9.59 | J101: 5.400352888 | K101: 9.373609409 | L101: 4
A102: 99 | B102: 51.4 | C102: 28.78470687 | D102: 50.24678479 | E102: 4 | H102: 99 | I102: 9.43 | J102: 5.280672375 | K102: 9.217604532 | L102: 4
A103: 100 | B103: 51 | C103: 28.40256822 | D103: 49.85951851 | E103: 4 | H103: 100 | I103: 9.28 | J103: 5.16428424 | K103: 9.065319645 | L103: 4
A104: 101 | B104: 50.7 | C104: 28.02567778 | D104: 49.47554623 | E104: 4 | H104: 101 | I104: 9.13 | J104: 5.051079121 | K104: 8.916641258 | L104: 4
A105: 102 | B105: 50.3 | C105: 27.65396891 | D105: 49.09485143 | E105: 4 | H105: 102 | I105: 8.98 | J105: 4.940951896 | K105: 8.771460027 | L105: 4
A106: 103 | B106: 49.9 | C106: 27.28737545 | D106: 48.7174171 | E106: 4 | H106: 103 | I106: 8.84 | J106: 4.833801509 | K106: 8.629670577 | L106: 4
A107: 104 | B107: 49.5 | C107: 26.92583174 | D107: 48.34322582 | E107: 4 | H107: 104 | I107: 8.7 | J107: 4.729530782 | K107: 8.491171341 | L107: 4
A108: 105 | B108: 49.2 | C108: 26.56927261 | D108: 47.97225973 | E108: 4 | H108: 105 | I108: 8.56 | J108: 4.628046251 | K108: 8.355864398 | L108: 4
A109: 106 | B109: 48.8 | C109: 26.21763344 | D109: 47.60450055 | E109: 4 | H109: 106 | I109: 8.43 | J109: 4.529258002 | K109: 8.223655328 | L109: 4
A110: 107 | B110: 48.4 | C110: 25.87085012 | D110: 47.23992966 | E110: 4 | H110: 107 | I110: 8.3 | J110: 4.43307952 | K110: 8.094453066 | L110: 4
A111: 108 | B111: 48.1 | C111: 25.52885909 | D111: 46.87852806 | E111: 4 | H111: 108 | I111: 8.17 | J111: 4.339427544 | K111: 7.968169764 | L111: 4
A112: 109 | B112: 47.7 | C112: 25.19159734 | D112: 46.52027643 | E112: 4 | H112: 109 | I112: 8.05 | J112: 4.248221924 | K112: 7.844720663 | L112: 4
A113: 110 | B113: 47.4 | C113: 24.85900241 | D113: 46.16515515 | E113: 4 | H113: 110 | I113: 7.93 | J113: 4.15938549 | K113: 7.724023964 | L113: 4
A114: 111 | B114: 47 | C114: 24.53101244 | D114: 45.81314427 | E114: 4 | H114: 111 | I114: 7.81 | J114: 4.072843929 | K114: 7.606000714 | L114: 4
A115: 112 | B115: 46.7 | C115: 24.20756611 | D115: 45.46422363 | E115: 4 | H115: 112 | I115: 7.69 | J115: 3.988525659 | K115: 7.490574688 | L115: 4
A116: 113 | B116: 46.3 | C116: 23.88860271 | D116: 45.11837276 | E116: 4 | H116: 113 | I116: 7.58 | J116: 3.90636172 | K116: 7.377672282 | L116: 4
A117: 114 | B117: 46 | C117: 23.5740621 | D117: 44.775571 | E117: 4 | H117: 114 | I117: 7.46 | J117: 3.826285661 | K117: 7.267222411 | L117: 4
A118: 115 | B118: 45.6 | C118: 23.26388474 | D118: 44.43579745 | E118: 4 | H118: 115 | I118: 7.35 | J118: 3.748233435 | K118: 7.159156403 | L118: 4
A119: 116 | B119: 45.3 | C119: 22.9580117 | D119: 44.09903102 | E119: 4 | H119: 116 | I119: 7.25 | J119: 3.672143304 | K119: 7.053407911 | L119: 4
A120: 117 | B120: 45 | C120: 22.65638464 | D120: 43.76525044 | E120: 4 | H120: 117 | I120: 7.14 | J120: 3.59795574 | K120: 6.94991282 | L120: 4
A121: 118 | B121: 44.7 | C121: 22.35894583 | D121: 43.43443427 | E121: 4 | H121: 118 | I121: 7.04 | J121: 3.525613337 | K121: 6.848609159 | L121: 4
A122: 119 | B122: 44.3 | C122: 22.06563816 | D122: 43.10656093 | E122: 4 | H122: 119 | I122: 6.94 | J122: 3.455060722 | K122: 6.749437018 | L122: 4
A123: 120 | B123: 44 | C123: 21.77640511 | D123: 42.78160869 | E123: 4 | H123: 120 | I123: 6.84 | J123: 3.386244475 | K123: 6.65233847 | L123: 4
A124: 121 | B124: 43.7 | C124: 21.4911908 | D124: 42.4595557 | E124: 4 | H124: 121 | I124: 6.75 | J124: 3.31911305 | K124: 6.557257493 | L124: 4
A125: 122 | B125: 43.4 | C125: 21.20993994 | D125: 42.14038001 | E125: 4 | H125: 122 | I125: 6.65 | J125: 3.253616697 | K125: 6.4641399 | L125: 4
A126: 123 | B126: 43 | C126: 20.93259787 | D126: 41.82405958 | E126: 4 | H126: 123 | I126: 6.56 | J126: 3.189707395 | K126: 6.372933267 | L126: 4
A127: 124 | B127: 42.7 | C127: 20.65911056 | D127: 41.51057227 | E127: 4 | H127: 124 | I127: 6.47 | J127: 3.127338779 | K127: 6.283586867 | L127: 4
A128: 125 | B128: 42.4 | C128: 20.38942456 | D128: 41.19989588 | E128: 4 | H128: 125 | I128: 6.38 | J128: 3.066466077 | K128: 6.196051605 | L128: 4
A129: 126 | B129: 42.1 | C129: 20.12348709 | D129: 40.89200815 | E129: 4 | H129: 126 | I129: 6.29 | J129: 3.007046046 | K129: 6.110279961 | L129: 4
A130: 127 | B130: 41.8 | C130: 19.86124593 | D130: 40.58688678 | E130: 4 | H130: 127 | I130: 6.21 | J130: 2.949036912 | K130: 6.026225927 | L130: 4
A131: 128 | B131: 41.5 | C131: 19.60264952 | D131: 40.28450943 | E131: 4 | H131: 128 | I131: 6.12 | J131: 2.892398316 | K131: 5.943844952 | L131: 4
A132: 129 | B132: 41.2 | C132: 19.34764689 | D132: 39.98485372 | E132: 4 | H132: 129 | I132: 6.04 | J132: 2.837091255 | K132: 5.863093889 | L132: 4
A133: 130 | B133: 40.9 | C133: 19.09618769 | D133: 39.68789728 | E133: 4 | H133: 130 | I133: 5.96 | J133: 2.783078029 | K133: 5.783930944 | L133: 4
A134: 131 | B134: 40.6 | C134: 18.84822218 | D134: 39.39361771 | E134: 4 | H134: 131 | I134: 5.88 | J134: 2.730322197 | K134: 5.706315625 | L134: 4
A135: 132 | B135: 40.3 | C135: 18.60370124 | D135: 39.10199262 | E135: 4 | H135: 132 | I135: 5.81 | J135: 2.678788523 | K135: 5.630208696 | L135: 4
A136: 133 | B136: 40 | C136: 18.36257633 | D136: 38.81299963 | E136: 4 | H136: 133 | I136: 5.73 | J136: 2.628442933 | K136: 5.555572132 | L136: 4
A137: 134 | B137: 39.8 | C137: 18.12479955 | D137: 38.5266164 | E137: 4 | H137: 134 | I137: 5.66 | J137: 2.57925247 | K137: 5.482369072 | L137: 4
A138: 135 | B138: 39.5 | C138: 17.89032357 | D138: 38.24282057 | E138: 4 | H138: 135 | I138: 5.58 | J138: 2.531185251 | K138: 5.410563783 | L138: 4
A139: 136 | B139: 39.2 | C139: 17.65910166 | D139: 37.96158987 | E139: 4 | H139: 136 | I139: 5.51 | J139: 2.484210431 | K139: 5.340121614 | L139: 4
A140: 137 | B140: 38.9 | C140: 17.43108771 | D140: 37.68290204 | E140: 4 | H140: 137 | I140: 5.44 | J140: 2.438298158 | K140: 5.271008962 | L140: 4
A141: 138 | B141: 38.6 | C141: 17.20623618 | D141: 37.40673486 | E141: 4 | H141: 138 | I141: 5.37 | J141: 2.393419542 | K141: 5.203193233 | L141: 4
A142: 139 | B142: 38.4 | C142: 16.98450212 | D142: 37.1330662 | E142: 4 | H142: 139 | I142: 5.31 | J142: 2.349546616 | K142: 5.136642807 | L142: 4
A143: 140 | B143: 38.1 | C143: 16.76584116 | D143: 36.86187397 | E143: 4 | H143: 140 | I143: 5.24 | J143: 2.306652302 | K143: 5.071327003 | L143: 4
A144: 141 | B144: 37.8 | C144: 16.55020952 | D144: 36.59313614 | E144: 4 | H144: 141 | I144: 5.18 | J144: 2.264710381 | K144: 5.007216049 | L144: 4
A145: 142 | B145: 37.6 | C145: 16.33756399 | D145: 36.32683078 | E145: 4 | H145: 142 | I145: 5.11 | J145: 2.223695459 | K145: 4.944281048 | L145: 4
A146: 143 | B146: 37.3 | C146: 16.12786192 | D146: 36.06293602 | E146: 4 | H146: 143 | I146: 5.05 | J146: 2.183582939 | K146: 4.882493947 | L146: 4
A147: 144 | B147: 37 | C147: 15.92106125 | D147: 35.80143007 | E147: 4 | H147: 144 | I147: 4.99 | J147: 2.144348992 | K147: 4.821827512 | L147: 4
A148: 145 | B148: 36.8 | C148: 15.71712046 | D148: 35.54229125 | E148: 4 | H148: 145 | I148: 4.93 | J148: 2.105970528 | K148: 4.762255298 | L148: 4
A149: 146 | B149: 36.5 | C149: 15.51599859 | D149: 35.28549795 | E149: 4 | H149: 146 | I149: 4.87 | J149: 2.06842517 | K149: 4.703751621 | L149: 4
A150: 147 | B150: 36.3 | C150: 15.31765525 | D150: 35.03102869 | E150: 4 | H150: 147 | I150: 4.81 | J150: 2.031691231 | K150: 4.646291533 | L150: 4
A151: 148 | B151: 36 | C151: 15.12205057 | D151: 34.77886206 | E151: 4 | H151: 148 | I151: 4.75 | J151: 1.995747687 | K151: 4.589850798 | L151: 4
A152: 149 | B152: 35.8 | C152: 14.92914525 | D152: 34.52897678 | E152: 4 | H152: 149 | I152: 4.7 | J152: 1.960574154 | K152: 4.534405869 | L152: 4
A153: 150 | B153: 35.5 | C153: 14.7389005 | D153: 34.28135165 | E153: 4 | H153: 150 | I153: 4.64 | J153: 1.926150867 | K153: 4.479933863 | L153: 4
A154: 151 | B154: 35.3 | C154: 14.55127809 | D154: 34.03596563 | E154: 4 | H154: 151 | I154: 4.59 | J154: 1.892458657 | K154: 4.42641254 | L154: 4
A155: 152 | B155: 35 | C155: 14.36624029 | D155: 33.79279776 | E155: 4 | H155: 152 | I155: 4.53 | J155: 1.85947893 | K155: 4.373820281 | L155: 4
A156: 153 | B156: 34.8 | C156: 14.18374991 | D156: 33.55182722 | E156: 4 | H156: 153 | I156: 4.48 | J156: 1.827193649 | K156: 4.32213607 | L156: 4
A157: 154 | B157: 34.5 | C157: 14.00377027 | D157: 33.31303329 | E157: 4 | H157: 154 | I157: 4.43 | J157: 1.795585314 | K157: 4.271339471 | L157: 4
A158: 155 | B158: 34.3 | C158: 13.82626521 | D158: 33.07639541 | E158: 4 | H158: 155 | I158: 4.38 | J158: 1.764636941 | K158: 4.221410612 | L158: 4
A159: 156 | B159: 34.1 | C159: 13.65119905 | D159: 32.84189311 | E159: 4 | H159: 156 | I159: 4.33 | J159: 1.734332049 | K159: 4.172330164 | L159: 4
A160: 157 | B160: 33.8 | C160: 13.47853664 | D160: 32.60950609 | E160: 4 | H160: 157 | I160: 4.28 | J160: 1.70465464 | K160: 4.124079327 | L160: 4
A161: 158 | B161: 33.6 | C161: 13.30824332 | D161: 32.37921416 | E161: 4 | H161: 158 | I161: 4.23 | J161: 1.675589182 | K161: 4.076639811 | L161: 4
A162: 159 | B162: 33.4 | C162: 13.14028489 | D162: 32.15099726 | E162: 4 | H162: 159 | I162: 4.18 | J162: 1.647120598 | K162: 4.029993817 | L162: 4
A163: 160 | B163: 33.1 | C163: 12.97462768 | D163: 31.92483549 | E163: 4 | H163: 160 | I163: 4.14 | J163: 1.619234243 | K163: 3.984124028 | L163: 4
A164: 161 | B164: 32.9 | C164: 12.81123845 | D164: 31.70070908 | E164: 4 | H164: 161 | I164: 4.09 | J164: 1.591915898 | K164: 3.939013588 | L164: 4
A165: 162 | B165: 32.7 | C165: 12.65008448 | D165: 31.47859838 | E165: 4 | H165: 162 | I165: 4.05 | J165: 1.565151748 | K165: 3.89464609 | L165: 4
A166: 163 | B166: 32.5 | C166: 12.49113348 | D166: 31.25848391 | E166: 4 | H166: 163 | I166: 4 | J166: 1.538928376 | K166: 3.851005561 | L166: 4
A167: 164 | B167: 32.3 | C167: 12.33435364 | D167: 31.04034633 | E167: 4 | H167: 164 | I167: 3.96 | J167: 1.513232745 | K167: 3.80807645 | L167: 4
A168: 165 | B168: 32 | C168: 12.17971361 | D168: 30.82416643 | E168: 4 | H168: 165 | I168: 3.91 | J168: 1.488052187 | K168: 3.765843613 | L168: 4
A169: 166 | B169: 31.8 | C169: 12.02718247 | D169: 30.60992515 | E169: 4 | H169: 166 | I169: 3.87 | J169: 1.46337439 | K169: 3.724292302 | L169: 4
A170: 167 | B170: 31.6 | C170: 11.87672977 | D170: 30.3976036 | E170: 4 | H170: 167 | I170: 3.83 | J170: 1.439187389 | K170: 3.683408151 | L170: 4
A171: 168 | B171: 31.4 | C171: 11.72832549 | D171: 30.18718301 | E171: 4 | H171: 168 | I171: 3.79 | J171: 1.415479553 | K171: 3.643177167 | L171: 4
A172: 169 | B172: 31.2 | C172: 11.58194003 | D172: 29.97864477 | E172: 4 | H172: 169 | I172: 3.75 | J172: 1.392239573 | K172: 3.603585716 | L172: 4
A173: 170 | B173: 31 | C173: 11.43754425 | D173: 29.77197041 | E173: 4 | H173: 170 | I173: 3.71 | J173: 1.369456455 | K173: 3.564620513 | L173: 4
A174: 171 | B174: 30.8 | C174: 11.2951094 | D174: 29.56714164 | E174: 4 | H174: 171 | I174: 3.67 | J174: 1.347119506 | K174: 3.526268614 | L174: 4
A175: 172 | B175: 30.6 | C175: 11.15460717 | D175: 29.36414028 | E175: 4 | H175: 172 | I175: 3.63 | J175: 1.325218329 | K175: 3.488517399 | L175: 4
A176: 173 | B176: 30.4 | C176: 11.01600967 | D176: 29.16294834 | E176: 4 | H176: 173 | I176: 3.59 | J176: 1.30374281 | K176: 3.451354572 | L176: 4
A177: 174 | B177: 30.2 | C177: 10.87928938 | D177: 28.96354795 | E177: 4 | H177: 174 | I177: 3.56 | J177: 1.282683109 | K177: 3.414768141 | L177: 4
A178: 175 | B178: 30 | C178: 10.74441923 | D178: 28.76592141 | E178: 4 | H178: 175 | I178: 3.52 | J178: 1.262029655 | K178: 3.378746419 | L178: 4
A179: 176 | B179: 29.8 | C179: 10.61137251 | D179: 28.57005117 | E179: 4 | H179: 176 | I179: 3.48 | J179: 1.241773134 | K179: 3.343278006 | L179: 4
A180: 177 | B180: 29.6 | C180: 10.48012292 | D180: 28.37591983 | E180: 4 | H180: 177 | I180: 3.45 | J180: 1.221904481 | K180: 3.308351786 | L180: 4
A181: 178 | B181: 29.4 | C181: 10.35064454 | D181: 28.18351014 | E181: 4 | H181: 178 | I181: 3.41 | J181: 1.202414877 | K181: 3.27395692 | L181: 4
A182: 179 | B182: 29.2 | C182: 10.22291183 | D182: 27.992805 | E182: 4 | H182: 179 | I182: 3.38 | J182: 1.183295734 | K182: 3.240082831 | L182: 4
A183: 180 | B183: 29 | C183: 10.09689964 | D183: 27.80378749 | E183: 4 | H183: 180 | I183: 3.34 | J183: 1.164538696 | K183: 3.206719203 | L183: 4
A184: 181 | B184: 28.8 | C184: 9.972583167 | D184: 27.61644079 | E184: 4 | H184: 181 | I184: 3.31 | J184: 1.146135624 | K184: 3.173855971 | L184: 4
A185: 182 | B185: 28.6 | C185: 9.849937997 | D185: 27.43074828 | E185: 4 | H185: 182 | I185: 3.28 | J185: 1.128078596 | K185: 3.141483314 | L185: 4
A186: 183 | B186: 28.4 | C186: 9.728940064 | D186: 27.24669348 | E186: 4 | H186: 183 | I186: 3.25 | J186: 1.110359897 | K186: 3.109591648 | L186: 4
A187: 184 | B187: 28.3 | C187: 9.609565661 | D187: 27.06426003 | E187: 4 | H187: 184 | I187: 3.21 | J187: 1.092972011 | K187: 3.078171618 | L187: 4
A188: 185 | B188: 28.1 | C188: 9.491791432 | D188: 26.88343177 | E188: 4 | H188: 185 | I188: 3.18 | J188: 1.075907622 | K188: 3.047214095 | L188: 4
A189: 186 | B189: 27.9 | C189: 9.375594367 | D189: 26.70419266 | E189: 4 | H189: 186 | I189: 3.15 | J189: 1.059159598 | K189: 3.016710165 | L189: 4
A190: 187 | B190: 27.7 | C190: 9.260951799 | D190: 26.52652681 | E190: 4 | H190: 187 | I190: 3.12 | J190: 1.042720997 | K190: 2.986651126 | L190: 4
A191: 188 | B191: 27.5 | C191: 9.147841395 | D191: 26.35041849 | E191: 4 | H191: 188 | I191: 3.09 | J191: 1.026585049 | K191: 2.957028483 | L191: 4
A192: 189 | B192: 27.4 | C192: 9.036241156 | D192: 26.17585212 | E192: 4 | H192: 189 | I192: 3.06 | J192: 1.010745162 | K192: 2.927833938 | L192: 4
A193: 190 | B193: 27.2 | C193: 8.926129409 | D193: 26.00281227 | E193: 4 | H193: 190 | I193: 3.03 | J193: 0.9951949107 | K193: 2.899059389 | L193: 4
A194: 191 | B194: 27 | C194: 8.817484803 | D194: 25.83128364 | E194: 4 | H194: 191 | I194: 3 | J194: 0.9799280311 | K194: 2.870696922 | L194: 4
A195: 192 | B195: 26.8 | C195: 8.710286306 | D195: 25.6612511 | E195: 4 | H195: 192 | I195: 2.97 | J195: 0.9649384196 | K195: 2.842738807 | L195: 4
A196: 193 | B196: 26.7 | C196: 8.6045132 | D196: 25.49269966 | E196: 4 | H196: 193 | I196: 2.95 | J196: 0.9502201254 | K196: 2.815177491 | L196: 4
A197: 194 | B197: 26.5 | C197: 8.500145073 | D197: 25.32561446 | E197: 4 | H197: 194 | I197: 2.92 | J197: 0.9357673472 | K197: 2.788005597 | L197: 4
A198: 195 | B198: 26.3 | C198: 8.397161819 | D198: 25.15998082 | E198: 4 | H198: 195 | I198: 2.89 | J198: 0.9215744288 | K198: 2.761215914 | L198: 4
A199: 196 | B199: 26.2 | C199: 8.295543633 | D199: 24.99578416 | E199: 4 | H199: 196 | I199: 2.86 | J199: 0.9076358544 | K199: 2.734801399 | L199: 4
A200: 197 | B200: 26 | C200: 8.195271004 | D200: 24.83301008 | E200: 4 | H200: 197 | I200: 2.84 | J200: 0.8939462453 | K200: 2.708755165 | L200: 4
... 403 more rows

Sheet Med avgång (hidden)
A1: Mängd bränsle | B1: 1 | C1: m3 | F1: Tid (min) | G1: Radie (m) | H1: Volym (m3) | I1: Vol% etanol | J1: Mängd eter (g) | K1: Koncentration eter (ug/l) | L1: Teoretisk eter | M1: Avgång eter (%) | N1: Avgång eter (ug/l) | O1: Avgång eter (g) | P1: Koncentration eter ny (ug/l)
A2: Temperatur | B2: 5 | C2: C | F2: 0 | G2: =B3 -> 0.5 | H2: =B6 -> 0.879645943 | I2: =($B$9/H2)*100 -> 11.36821022 | J2: =B8 -> 3.0186 | K2: =IFERROR(ROUND((J2)*1000000/(H2*1000),2-INT(LOG10(ABS((J2)*1000000/(H2*1000))))),0) -> 3430 | L2: =IF((126461.5-(53.61*F2)-(1936.09*B$2)-(224.59*I2))>=0,(126461.5-(53.61*F2)-(1936.09*B$2)-(224.59*I2)),0) -> 114227.8637 | P2: =K2-N2 -> 3430
A3: Initial spridningsradie | B3: 0.5 | C3: m | F3: =F2+B$11 -> 15 | G3: =G2+(B$5/100)*(F3-F2)*60 -> 0.5 | H3: =($B$6-$B$6*($B$10/360.000000000001))+$B$4*PI()*(G3^2)*($B$10/360.000000000001) -> 0.879645943 | I3: =($B$9/H3)*100 -> 11.36821022 | J3: =J2 -> 3.0186 | K3: =IFERROR(ROUND((J3)*1000000/(H3*1000),2-INT(LOG10(ABS((J3)*1000000/(H3*1000))))),0) -> 3430 | L3: =IF((126461.5-(53.61*F3)-(1936.09*B$2)-(224.59*I3))>=0,(126461.5-(53.61*F3)-(1936.09*B$2)-(224.59*I3)),0) -> 113423.7137 | M3: =IFERROR(1-L3/L2,0) -> 0.007039876035 | N3: =M3*K3 -> 24.1467748 | O3: =N3/1000000*1000*H3 -> 0.02124061249 | P3: =K3-N3 -> 3405.853225
A4: Djup råvattenintag | B4: 1.12 | C4: m | F4: 30 | G4: 0.5 | H4: =($B$6-$B$6*($B$10/360.000000000001))+$B$4*PI()*(G4^2)*($B$10/360.000000000001) -> 0.879645943 | I4: =($B$9/H4)*100 -> 11.36821022 | J4: =P3/1000000*1000*H3 -> 2.995944972 | K4: 3410 | L4: =IF((126461.5-(53.61*F4)-(1936.09*B$2)-(224.59*I4))>=0,(126461.5-(53.61*F4)-(1936.09*B$2)-(224.59*I4)),0) -> 112619.5637 | M4: =IFERROR(1-L4/L3,0) -> 0.007089787259 | N4: =M4*K4 -> 24.17617455 | O4: =N4/1000000*1000*H4 -> 0.02126647386 | P4: =K4-N4 -> 3385.823825
A5: Vattenhastighet | B5: 0 | C5: cm/s | F5: 45 | G5: 0.5 | H5: 0.879645943 | I5: 11.36821022 | J5: =P4/1000000*1000*H4 -> 2.978326192 | K5: 3390 | L5: =IF((126461.5-(53.61*F5)-(1936.09*B$2)-(224.59*I5))>=0,(126461.5-(53.61*F5)-(1936.09*B$2)-(224.59*I5)),0) -> 111815.4137 | M5: 0.007140411256 | N5: 24.20599416 | O5: =N5/1000000*1000*H5 -> 0.02129270456 | P5: =K5-N5 -> 3365.794006
A6: Inital volym | B6: =B4*PI()*B3^2 -> 0.879645943 | C6: m3 | F6: 60 | G6: 0.5 | H6: 0.879645943 | I6: 11.36821022 | J6: 2.960707042 | K6: 3370 | L6: =IF((126461.5-(53.61*F6)-(1936.09*B$2)-(224.59*I6))>=0,(126461.5-(53.61*F6)-(1936.09*B$2)-(224.59*I6)),0) -> 111011.2637 | M6: 0.007191763404 | N6: 24.23624267 | O6: 0.02131931254 | P6: 3345.763757
A7: Initial mängd eter | B7: =B1*B16*1000 -> 1440 | C7: g | F7: 75 | G7: 0.5 | H7: 0.879645943 | I7: 11.36821022 | J7: 2.943087515 | K7: 3350 | L7: =IF((126461.5-(53.61*F7)-(1936.09*B$2)-(224.59*I7))>=0,(126461.5-(53.61*F7)-(1936.09*B$2)-(224.59*I7)),0) -> 110207.1137 | M7: 0.007243859528 | N7: 24.26692942 | O7: 0.02134630601 | P7: 3325.733071
A8: Initial mängd eter i lösning | B8: =B7*B18 -> 3.0186 | C8: g | F8: 90 | G8: 0.5 | H8: 0.879645943 | I8: 11.36821022 | J8: 2.925467603 | K8: 3330 | L8: 109402.9637 | M8: 0.007296715913 | N8: 24.29806399 | O8: 0.02137369341 | P8: 3305.701936
A9: Initial vol etanol i lösning | B9: =B1*B19/100 -> 0.1 | C9: m3 | F9: 105 | G9: 0.5 | H9: 0.879645943 | I9: 11.36821022 | J9: 2.907847297 | K9: 3310 | L9: 108598.8137 | M9: 0.007350349324 | N9: 24.32965626 | O9: 0.02140148343 | P9: 3285.670344
A10: Spridningvinkel | B10: 45 | C10: grader | F10: 120 | G10: 0.5 | H10: 0.879645943 | I10: 11.36821022 | J10: 2.890226588 | K10: 3290 | L10: 107794.6637 | M10: 0.007404777022 | N10: 24.3617164 | O10: 0.021429685 | P10: 3265.638284
A11: delta t | B11: 15 | C11: min | F11: 135 | G11: 0.5 | H11: 0.879645943 | I11: 11.36821022 | J11: 2.872605467 | K11: 3270 | L11: 106990.5137 | M11: 0.007460016782 | N11: 24.39425488 | O11: 0.02145830734 | P11: 3245.605745
F12: 150 | G12: 0.5 | H12: 0.879645943 | I12: 11.36821022 | J12: 2.854983926 | K12: 3250 | L12: 106186.3637 | M12: 0.007516086917 | N12: 24.42728248 | O12: 0.02148735993 | P12: 3225.572718
F13: 165 | G13: 0.5 | H13: 0.879645943 | I13: 11.36821022 | J13: 2.837361955 | K13: 3230 | L13: 105382.2137 | M13: 0.00757300629 | N13: 24.46081032 | O13: 0.02151685256 | P13: 3205.53919
A14: Insert bränsle | F14: 180 | G14: 0.5 | H14: 0.879645943 | I14: 11.36821022 | J14: 2.819739543 | K14: 3210 | L14: 104578.0637 | M14: 0.007630794344 | N14: 24.49484984 | O14: 0.02154679529 | P14: 3185.50515
A15: Petrol 95 Octane | F15: 195 | G15: 0.5 | H15: 0.879645943 | I15: 11.36821022 | J15: 2.802116682 | K15: 3190 | L15: 103773.9137 | M15: 0.007689471117 | N15: 24.52941286 | O15: 0.02157719851 | P15: 3165.470587
A16: koncentration eter | B16: =_xlfn.XLOOKUP(A15,'Attribut bränslen'!A2:A4,'Attribut bränslen'!C2:C4) -> 1.44 | C16: g/l | F16: 210 | G16: 0.5 | H16: 0.879645943 | I16: 11.36821022 | J16: 2.78449336 | K16: 3170 | L16: 102969.7637 | M16: 0.007749057269 | N16: 24.56451154 | O16: 0.02160807292 | P16: 3145.435488
A17: koncentration eter i lösning | B17: =_xlfn.XLOOKUP('Med avgång'!A15,'Attribut bränslen'!A2:A4,'Attribut bränslen'!D2:D4) -> 3018.6 | C17: ug/l | F17: 225 | G17: 0.5 | H17: 0.879645943 | I17: 11.36821022 | J17: 2.766869566 | K17: 3150 | L17: 102165.6137 | M17: =IFERROR(1-L17/L16,0) -> 0.007809574106 | N17: 24.60015843 | O17: 0.02163942956 | P17: 3125.399842
A18: Löslighet | B18: =B17/(B16*1000000) -> 0.00209625 | F18: 240 | G18: 0.5 | H18: 0.879645943 | I18: 11.36821022 | J18: 2.749245291 | K18: 3130 | L18: 101361.4637 | M18: 0.007871043604 | N18: 24.63636648 | O18: 0.02167127983 | P18: 3105.363634
A19: Andel etanol (%) | B19: =_xlfn.XLOOKUP(A15,'Attribut bränslen'!A2:A4,'Attribut bränslen'!B2:B4) -> 10 | F19: 255 | G19: 0.5 | H19: 0.879645943 | I19: 11.36821022 | J19: 2.731620522 | K19: 3110 | L19: 100557.3137 | M19: 0.007933488437 | N19: 24.67314904 | O19: 0.02170363545 | P19: 3085.326851
F20: 270 | G20: 0.5 | H20: 0.879645943 | I20: 11.36821022 | J20: 2.713995247 | K20: 3090 | L20: 99753.16367 | M20: 0.007996932005 | N20: 24.7105199 | O20: 0.02173650858 | P20: 3065.28948
F21: 285 | G21: 0.5 | H21: 0.879645943 | I21: 11.36821022 | J21: 2.696369455 | K21: 3070 | L21: 98949.01367 | M21: 0.00806139846 | N21: 24.74849327 | O21: 0.0217699117 | P21: 3045.251507
A22: Tröskelvärde: | B22: 4 | C22: ug/l | F22: 300 | G22: 0.5 | H22: 0.879645943 | I22: 11.36821022 | J22: 2.678743133 | K22: 3050 | L22: 98144.86367 | M22: 0.008126912742 | N22: 24.78708386 | O22: 0.02180385776 | P22: 3025.212916
A23: Tid till tröskelvärde | B23: =INDEX(F$2:F$1048576, _xlfn.XMATCH(MIN(ABS(P$2:P$1048576-B$22)), ABS(P$2:P$1048576-B$22), 0)) -> 0 | C23: min | F23: 315 | G23: 0.5 | H23: 0.879645943 | I23: 11.36821022 | J23: 2.661116268 | K23: 3030 | L23: 97340.71367 | M23: 0.008193500607 | N23: 24.82630684 | O23: 0.02183836009 | P23: 3005.173693
A24: Radie till tröskelvärde | B24: =INDEX(G$2:G$1048576, _xlfn.XMATCH(MIN(ABS(P$2:P$1048576-B$22)), ABS(P$2:P$1048576-B$22), 0)) -> 0 | C24: m | F24: 330 | G24: 0.5 | H24: 0.879645943 | I24: 11.36821022 | J24: 2.643488847 | K24: 3010 | L24: 96536.56367 | M24: 0.008261188661 | N24: 24.86617787 | O24: 0.02187343248 | P24: 2985.133822
F25: 345 | G25: 0.5 | H25: 0.879645943 | I25: 11.36821022 | J25: 2.625860856 | K25: 2990 | L25: 95732.41367 | M25: 0.008330004399 | N25: 24.90671315 | O25: 0.02190908918 | P25: 2965.093287
A26: Att fixa | F26: 360 | G26: 0.5 | H26: 0.879645943 | I26: 11.36821022 | J26: 2.60823228 | K26: 2970 | L26: 94928.26367 | M26: 0.008399976238 | N26: 24.94792943 | O26: 0.02194534491 | P26: 2945.052071
A27: Temperatur -> löslighet (har bara vid 20 grader) | F27: 375 | G27: 0.5 | H27: 0.879645943 | I27: 11.36821022 | J27: 2.590603106 | K27: 2950 | L27: 94124.11367 | M27: 0.008471133559 | N27: 24.989844 | O27: 0.02198221489 | P27: 2925.010156
F28: 390 | G28: 0.5 | H28: 0.879645943 | I28: 11.36821022 | J28: 2.572973317 | K28: 2930 | L28: 93319.96367 | M28: 0.008543506745 | N28: 25.03247476 | O28: 0.02201971487 | P28: 2904.967525
F29: 405 | G29: 0.5 | H29: 0.879645943 | I29: 11.36821022 | J29: 2.555342898 | K29: 2900 | L29: 92515.81367 | M29: =IFERROR(1-L29/L28,0) -> 0.00861712723 | N29: 24.98966897 | O29: 0.02198206092 | P29: 2875.010331
F30: 420 | G30: 0.5 | H30: 0.879645943 | I30: 11.36821022 | J30: 2.528991174 | K30: 2880 | L30: 91711.66367 | M30: 0.008692027537 | N30: 25.03303931 | O30: 0.02202021147 | P30: 2854.966961
F31: 435 | G31: 0.5 | H31: 0.879645943 | I31: 11.36821022 | J31: 2.511360104 | K31: 2850 | L31: 90907.51367 | M31: =IFERROR(1-L31/L30,0) -> 0.008768241332 | N31: 24.9894878 | O31: 0.02198190156 | P31: 2825.010512
F32: 450 | G32: 0.5 | H32: 0.879645943 | I32: 11.36821022 | J32: 2.485009036 | K32: 2830 | L32: 90103.36367 | M32: 0.008845803472 | N32: 25.03362383 | O32: 0.02202072564 | P32: 2804.966376
F33: 465 | G33: 0.5 | H33: 0.879645943 | I33: 11.36821022 | J33: 2.467377293 | K33: 2800 | L33: 89299.21367 | M33: 0.008924750057 | N33: 24.98930016 | O33: 0.0219817365 | P33: 2775.0107
F34: 480 | G34: 0.5 | H34: 0.879645943 | I34: 11.36821022 | J34: 2.441026904 | K34: 2780 | L34: 88495.06367 | M34: 0.009005118489 | N34: 25.0342294 | O34: 0.02202125833 | P34: 2754.965771
F35: 495 | G35: 0.5 | H35: 0.879645943 | I35: 11.36821022 | J35: 2.423394463 | K35: 2750 | L35: 87690.91367 | M35: 0.009086947528 | N35: 24.9891057 | O35: 0.02198156545 | P35: 2725.010894
F36: 510 | G36: 0.5 | H36: 0.879645943 | I36: 11.36821022 | J36: 2.397044778 | K36: 2730 | L36: 86886.76367 | M36: 0.009170277357 | N36: 25.03485718 | O36: 0.02202181056 | P36: 2704.965143
F37: 525 | G37: 0.5 | H37: 0.879645943 | I37: 11.36821022 | J37: 2.379411614 | K37: 2700 | L37: 86082.61367 | M37: 0.009255149646 | N37: 24.98890404 | O37: 0.02198138806 | P37: 2675.011096
F38: 540 | G38: 0.5 | H38: 0.879645943 | I38: 11.36821022 | J38: 2.353062658 | K38: 2680 | L38: 85278.46367 | M38: 0.009341607623 | N38: 25.03550843 | O38: 0.02202238342 | P38: 2654.964492
F39: 555 | G39: 0.5 | H39: 0.879645943 | I39: 11.36821022 | J39: 2.335428744 | K39: 2650 | L39: 84474.31367 | M39: 0.009429696144 | N39: 24.98869478 | O39: 0.02198120399 | P39: 2625.011305
F40: 570 | G40: 0.5 | H40: 0.879645943 | I40: 11.36821022 | J40: 2.309080545 | K40: 2630 | L40: 83670.16367 | M40: 0.009519461776 | N40: 25.03618447 | O40: 0.0220229781 | P40: 2604.963816
F41: 585 | G41: 0.5 | H41: 0.879645943 | I41: 11.36821022 | J41: 2.291445852 | K41: 2600 | L41: 82866.01367 | M41: 0.009610952874 | N41: 24.98847747 | O41: 0.02198101283 | P41: 2575.011523
F42: 600 | G42: 0.5 | H42: 0.879645943 | I42: 11.36821022 | J42: 2.265098439 | K42: 2580 | L42: 82061.86367 | M42: 0.009704219672 | N42: 25.03688675 | O42: 0.02202359586 | P42: 2554.963113
F43: 615 | G43: 0.5 | H43: 0.879645943 | I43: 11.36821022 | J43: 2.247462937 | K43: 2550 | L43: 81257.71367 | M43: 0.009799314372 | N43: 24.98825165 | O43: 0.02198081418 | P43: 2525.011748
F44: 630 | G44: 0.5 | H44: 0.879645943 | I44: 11.36821022 | J44: 2.22111634 | K44: 2530 | L44: 80453.56367 | M44: 0.009896291241 | N44: 25.03761684 | O44: 0.02202423807 | P44: 2504.962383
F45: 645 | G45: 0.5 | H45: 0.879645943 | I45: 11.36821022 | J45: 2.203479998 | K45: 2500 | L45: 79649.41367 | M45: 0.009995206717 | N45: 24.98801679 | O45: 0.0219806076 | P45: 2475.011983
F46: 660 | G46: 0.5 | H46: 0.879645943 | I46: 11.36821022 | J46: 2.17713425 | K46: 2480 | L46: 78845.26367 | M46: 0.01009611952 | N46: 25.03837641 | O46: 0.02202490623 | P46: 2454.961624
F47: 675 | G47: 0.5 | H47: 0.879645943 | I47: 11.36821022 | J47: 2.159497032 | K47: 2450 | L47: 78041.11367 | M47: 0.01019909076 | N47: 24.98777236 | O47: 0.02198039258 | P47: 2425.012228
F48: 690 | G48: 0.5 | H48: 0.879645943 | I48: 11.36821022 | J48: 2.133152168 | K48: 2430 | L48: 77236.96367 | M48: 0.01030418407 | N48: 25.03916728 | O48: 0.02202560192 | P48: 2404.960833
F49: 705 | G49: 0.5 | H49: 0.879645943 | I49: 11.36821022 | J49: 2.11551404 | K49: 2400 | L49: 76432.81367 | M49: 0.01041146573 | N49: 24.98751774 | O49: 0.02198016861 | P49: 2375.012482
F50: 720 | G50: 0.5 | H50: 0.879645943 | I50: 11.36821022 | J50: 2.089170095 | K50: 2380 | L50: 75628.66367 | M50: 0.01052100481 | N50: 25.03999144 | O50: 0.02202632688 | P50: 2354.960009
F51: 735 | G51: 0.5 | H51: 0.879645943 | I51: 11.36821022 | J51: 2.071531017 | K51: 2350 | L51: 74824.51367 | M51: 0.01063287332 | N51: 24.9872523 | O51: 0.02197993511 | P51: 2325.012748
F52: 750 | G52: 0.5 | H52: 0.879645943 | I52: 11.36821022 | J52: 2.045188031 | K52: 2330 | L52: 74020.36367 | M52: 0.01074714636 | N52: 25.04085103 | O52: =N52/1000000*1000*H52 -> 0.02202708302 | P52: 2304.959149
F53: 765 | G53: 0.5 | H53: 0.879645943 | I53: 11.36821022 | J53: 2.027547964 | K53: 2300 | L53: 73216.21367 | M53: 0.01086390231 | N53: 24.98697532 | O53: 0.02197969147 | P53: 2275.013025
F54: 780 | G54: 0.5 | H54: 0.879645943 | I54: 11.36821022 | J54: 2.001205977 | K54: 2280 | L54: 72412.06367 | M54: 0.01098322297 | N54: 25.04174838 | O54: 0.02202787237 | P54: 2254.958252
F55: 795 | G55: 0.5 | H55: 0.879645943 | I55: 11.36821022 | J55: 1.983564878 | K55: 2250 | L55: 71607.91367 | M55: 0.01110519379 | N55: 24.98668604 | O55: 0.021979437 | P55: 2225.013314
F56: 810 | G56: 0.5 | H56: 0.879645943 | I56: 11.36821022 | J56: 1.957223935 | K56: 2230 | L56: 70803.76367 | M56: =IFERROR(1-L56/L55,0) -> 0.01122990405 | N56: 25.04268604 | O56: 0.02202869718 | P56: 2204.957314
F57: 825 | G57: 0.5 | H57: 0.879645943 | I57: 11.36821022 | J57: 1.939581756 | K57: 2200 | L57: 69999.61367 | M57: 0.0113574471 | N57: 24.98638361 | O57: 0.02197917097 | P57: 2175.013616
F58: 840 | G58: 0.5 | H58: 0.879645943 | I58: 11.36821022 | J58: 1.913241904 | K58: 2180 | L58: 69195.46367 | M58: 0.01148792055 | N58: 25.04366679 | O58: 0.02202955989 | P58: 2154.956333
F59: 855 | G59: 0.5 | H59: 0.879645943 | I59: 11.36821022 | J59: 1.895598596 | K59: 2150 | L59: 68391.31367 | M59: 0.01162142657 | N59: 24.98606713 | O59: 0.02197889258 | P59: 2125.013933
F60: 870 | G60: 0.5 | H60: 0.879645943 | I60: 11.36821022 | J60: 1.869259885 | K60: 2130 | L60: 67587.16367 | M60: 0.01175807214 | N60: 25.04469366 | O60: 0.02203046317 | P60: 2104.955306
F61: 885 | G61: 0.5 | H61: 0.879645943 | I61: 11.36821022 | J61: 1.851615395 | K61: 2100 | L61: 66783.01367 | M61: 0.01189796932 | N61: 24.98573558 | O61: 0.02197860094 | P61: 2075.014264
F62: 900 | G62: 0.5 | H62: 0.879645943 | I62: 11.36821022 | J62: 1.825277879 | K62: 2080 | L62: 65978.86367 | M62: 0.01204123558 | N62: 25.04577 | O62: 0.02203140997 | P62: 2054.95423
F63: =F62+B$11 -> 915 | G63: =G62+(B$5/100)*(F63-F62)*60 -> 0.5 | H63: =($B$6-$B$6*($B$10/360.000000000001))+$B$4*PI()*(G63^2)*($B$10/360.000000000001) -> 0.879645943 | I63: =($B$9/H63)*100 -> 11.36821022 | J63: 1.807632151 | K63: 2050 | L63: 65174.71367 | M63: =IFERROR(1-L63/L62,0) -> 0.01218799408 | N63: 24.98538787 | O63: 0.02197829508 | P63: 2025.014612
F64: 930 | G64: 0.5 | H64: 0.879645943 | I64: 11.36821022 | J64: 1.781295888 | K64: 2030 | L64: 64370.56367 | M64: 0.01233837411 | N64: 25.04689945 | O64: 0.02203240349 | P64: 2004.953101
F65: 945 | G65: 0.5 | H65: 0.879645943 | I65: 11.36821022 | J65: 1.763648861 | K65: 2000 | L65: 63566.41367 | M65: 0.01249251139 | N65: 24.98502279 | O65: 0.02197797393 | P65: 1975.014977
F66: 960 | G66: 0.5 | H66: 0.879645943 | I66: 11.36821022 | J66: 1.737313912 | K66: 1980 | L66: 62762.26367 | M66: 0.01265054851 | N66: 25.04808606 | O66: 0.02203344728 | P66: 1954.951914
F67: 975 | G67: 0.5 | H67: 0.879645943 | I67: 11.36821022 | J67: 1.71966552 | K67: =IFERROR(ROUND((J67)*1000000/(H67*1000),2-INT(LOG10(ABS((J67)*1000000/(H67*1000))))),0) -> 1950 | L67: =IF((126461.5-(53.61*F67)-(1936.09*B$2)-(224.59*I67))>=0,(126461.5-(53.61*F67)-(1936.09*B$2)-(224.59*I67)),0) -> 61958.11367 | M67: 0.01281263538 | N67: 24.98463899 | O67: 0.02197763633 | P67: 1925.015361
F68: 990 | G68: 0.5 | H68: 0.879645943 | I68: 11.36821022 | J68: 1.693331953 | K68: 1930 | L68: 61153.96367 | M68: 0.01297892967 | N68: =M68*K68 -> 25.04933427 | O68: =N68/1000000*1000*H68 -> 0.02203454527 | P68: =K68-N68 -> 1904.950666
F69: 1005 | G69: 0.5 | H69: 0.879645943 | I69: 11.36821022 | J69: =P68/1000000*1000*H68 -> 1.675682125 | K69: 1900 | L69: 60349.81367 | M69: 0.01314959737 | N69: 24.98423501 | O69: 0.02197728097 | P69: 1875.015765
F70: 1020 | G70: 0.5 | H70: 0.879645943 | I70: 11.36821022 | J70: 1.649350011 | K70: 1880 | L70: 59545.66367 | M70: 0.0133248133 | N70: 25.05064901 | O70: 0.02203570177 | P70: 1854.949351
B71: utifrån simulering | F71: 1035 | G71: 0.5 | H71: 0.879645943 | I71: 11.36821022 | J71: 1.631698671 | K71: 1850 | L71: 58741.51367 | M71: 0.01350476173 | N71: 24.9838092 | O71: 0.02197690641 | P71: 1825.016191
A72: P98; 18,5C; 0min; 73008,6ug/l | B72: 73200 | F72: 1050 | G72: 0.5 | H72: 0.879645943 | I72: 11.36821022 | J72: 1.605368088 | K72: 1830 | L72: 57937.36367 | M72: 0.01368963702 | N72: 25.05203574 | O72: 0.02203692161 | P72: 1804.947964
A73: P98; 18,5C; 1440min; 37,4ug/l | B73: 10900 | F73: 1065 | G73: 0.5 | H73: 0.879645943 | I73: 11.36821022 | J73: 1.587715154 | K73: 1800 | L73: 57133.21367 | M73: 0.01387964431 | N73: 24.98335976 | O73: 0.02197651106 | P73: 1775.01664
A74: E85; 18,5C; 0min; 63582ug/l | B74: 63400 | F74: 1080 | G74: 0.5 | H74: 0.879645943 | I74: 11.36821022 | J74: 1.561386186 | K74: 1780 | L74: 56329.06367 | M74: 0.01407500031 | N74: 25.05350055 | O74: 0.02203821012 | P74: 1754.946499
A75: E85; 18,5C; 1440min; 660ug/l | B75: 1400 | F75: 1095 | G75: 0.5 | H75: 0.879645943 | I75: 11.36821022 | J75: 1.543731568 | K75: 1750 | L75: 55524.91367 | M75: 0.01427593409 | N75: 24.98288465 | O75: 0.02197609313 | P75: 1725.017115
A76: P98; 10C; 0min; 107328ug/l | B76: 107000 | F76: 1110 | G76: 0.5 | H76: 0.879645943 | I76: 11.36821022 | J76: 1.517404307 | K76: 1730 | L76: 54720.76367 | M76: 0.01448268798 | N76: 25.05505021 | O76: 0.02203957327 | P76: 1704.94495
A77: P98; 10C; 1200min; 38324ug/l | B77: 42400 | F77: 1125 | G77: 0.5 | H77: 0.879645943 | I77: 11.36821022 | J77: 1.499747908 | K77: 1700 | L77: 53916.61367 | M77: 0.0146955186 | N77: 24.98238161 | O77: 0.02197565063 | P77: 1675.017618
A78: E85; 10C; 0min; 104317ug/l | B78: 104000 | F78: 1140 | G78: 0.5 | H78: 0.879645943 | I78: 11.36821022 | J78: 1.473422452 | K78: 1680 | L78: 53112.46367 | M78: 0.01491469781 | N78: 25.05669233 | O78: 0.02204101775 | P78: 1654.943308
A79: E85; 10C; 1200min; 8925ug/l | B79: 27100 | F79: 1155 | G79: 0.5 | H79: 0.879645943 | I79: 11.36821022 | J79: 1.455764166 | K79: 1650 | L79: 52308.31367 | M79: 0.01514051401 | N79: 24.98184811 | O79: 0.02197518134 | P79: 1625.018152
A80: P98; 5C; 0min; 78455ug/l | B80: 78600 | F80: 1170 | G80: 0.5 | H80: 0.879645943 | I80: 11.36821022 | J80: 1.429440625 | K80: 1630 | L80: 51504.16367 | M80: 0.01537327326 | N80: 25.05843542 | O80: 0.02204255106 | P80: 1604.941565
A81: P98; 5C; 1440min; 32663ug/l | B81: 27000 | F81: 1185 | G81: 0.5 | H81: 0.879645943 | I81: 11.36821022 | J81: 1.411780336 | K81: 1600 | L81: 50700.01367 | M81: 0.0156133008 | N81: 24.98128129 | O81: 0.02197468274 | P81: 1575.018719
A82: E85; 5C; 0min; 110472ug/l | B82: 110000 | F82: 1200 | G82: 0.5 | H82: 0.879645943 | I82: 11.36821022 | J82: 1.385458826 | K82: 1580 | L82: 49895.86367 | M82: 0.01586094247 | N82: 25.0602891 | O82: 0.02204418164 | P82: 1554.939711
A83: E85; 5C; 1440min; 44850ug/l | B83: 22100 | F83: 1215 | G83: 0.5 | H83: 0.879645943 | I83: 11.36821022 | J83: 1.367796408 | K83: 1550 | L83: 49091.71367 | M83: 0.0161165664 | N83: 24.98067792 | O83: 0.02197415199 | P83: 1525.019322
F84: 1230 | G84: 0.5 | H84: 0.879645943 | I84: 11.36821022 | J84: 1.34147706 | K84: 1530 | L84: 48287.56367 | M84: 0.01638056486 | N84: 25.06226424 | O84: 0.02204591906 | P84: 1504.937736
F85: 1245 | G85: 0.5 | H85: 0.879645943 | I85: 11.36821022 | J85: 1.323812374 | K85: 1500 | L85: 47483.41367 | M85: 0.01665335625 | N85: 24.98003437 | O85: 0.02197358589 | P85: 1475.019966
F86: 1260 | G86: 0.5 | H86: 0.879645943 | I86: 11.36821022 | J86: 1.297495329 | K86: 1480 | L86: 46679.26367 | M86: 0.01693538728 | N86: 25.06437318 | O86: 0.02204777418 | P86: 1454.935627
F87: 1275 | G87: 0.5 | H87: 0.879645943 | I87: 11.36821022 | J87: 1.279828221 | K87: 1450 | L87: 45875.11367 | M87: 0.0172271355 | N87: 24.97934647 | O87: 0.02197298078 | P87: 1425.020654
F88: 1290 | G88: 0.5 | H88: 0.879645943 | I88: 11.36821022 | J88: 1.253513637 | K88: 1430 | L88: 45070.96367 | M88: 0.01752911188 | N88: 25.06662999 | O88: 0.02204975937 | P88: 1404.93337
F89: 1305 | G89: 0.5 | H89: 0.879645943 | I89: 11.36821022 | J89: 1.235843939 | K89: 1400 | L89: 44266.81367 | M89: 0.01784186391 | N89: 24.97860947 | O89: 0.02197233248 | P89: 1375.021391
F90: 1320 | G90: 0.5 | H90: 0.879645943 | I90: 11.36821022 | J90: 1.209531988 | K90: 1380 | L90: 43462.66367 | M90: 0.01816597883 | N90: 25.06905079 | O90: 0.02205188882 | P90: 1354.930949
F91: 1335 | G91: 0.5 | H91: 0.879645943 | I91: 11.36821022 | J91: 1.191859513 | K91: 1350 | L91: 42658.51367 | M91: 0.01850208736 | N91: 24.97781793 | O91: 0.02197163621 | P91: 1325.022182
F92: 1350 | G92: 0.5 | H92: 0.879645943 | I92: 11.36821022 | J92: 1.165550387 | K92: 1330 | L92: 41854.36367 | M92: 0.01885086776 | N92: 25.07165412 | O92: 0.02205417883 | P92: 1304.928346
F93: 1365 | G93: 0.5 | H93: 0.879645943 | I93: 11.36821022 | J93: 1.147874925 | K93: 1300 | L93: 41050.21367 | M93: 0.01921305043 | N93: 24.97696556 | O93: 0.02197088643 | P93: 1275.023034
F94: 1380 | G94: 0.5 | H94: 0.879645943 | I94: 11.36821022 | J94: 1.121568839 | K94: 1280 | L94: 40246.06367 | M94: 0.01958942301 | N94: 25.07446145 | O94: 0.02205664829 | P94: 1254.925539
F95: 1395 | G95: 0.5 | H95: 0.879645943 | I95: 11.36821022 | J95: 1.103890159 | K95: 1250 | L95: 39441.91367 | M95: 0.01998083606 | N95: 24.97604507 | O95: 0.02197007672 | P95: 1225.023955
F96: 1410 | G96: 0.5 | H96: 0.879645943 | I96: 11.36821022 | J96: 1.077587352 | K96: 1230 | L96: 38637.76367 | M96: 0.02038820953 | N96: 25.07749772 | O96: 0.02205931913 | P96: 1204.922502
F97: 1425 | G97: 0.5 | H97: 0.879645943 | I97: 11.36821022 | J97: 1.059905191 | K97: 1200 | L97: 37833.61367 | M97: 0.02081253995 | N97: 24.97504794 | O97: 0.0219691996 | P97: 1175.024952
F98: 1440 | G98: 0.5 | H98: 0.879645943 | I98: 11.36821022 | J98: 1.033605932 | K98: 1180 | L98: 37029.46367 | M98: 0.02125490859 | N98: 25.08079213 | O98: 0.02206221705 | P98: 1154.919208
F99: 1455 | G99: 0.5 | H99: 0.879645943 | I99: 11.36821022 | J99: 1.015919996 | K99: 1150 | L99: 36225.31367 | M99: 0.02171649061 | N99: 24.9739642 | O99: 0.02196824629 | P99: 1125.026036
F100: 1470 | G100: 0.5 | H100: 0.879645943 | I100: 11.36821022 | J100: 0.9896245882 | K100: 1130 | L100: 35421.16367 | M100: 0.02219856555 | N100: 25.08437907 | O100: 0.02206537228 | P100: 1104.915621
F101: 1485 | G101: 0.5 | H101: 0.879645943 | I101: 11.36821022 | J101: 0.9719345433 | K101: 1100 | L101: 34617.01367 | M101: 0.02270252913 | N101: 24.97278204 | O101: 0.02196720641 | P101: 1075.027218
F102: 1500 | G102: 0.5 | H102: 0.879645943 | I102: 11.36821022 | J102: 0.9456433309 | K102: 1080 | L102: 33812.86367 | M102: 0.02322990677 | N102: 25.08829931 | O102: 0.0220688207 | P102: 1054.911701
F103: 1515 | G103: 0.5 | H103: 0.879645943 | I103: 11.36821022 | J103: 0.9279487977 | K103: 1050 | L103: 33008.71367 | M103: 0.02378236898 | N103: 24.97148743 | O103: 0.02196606761 | P103: 1025.028513
F104: 1530 | G104: 0.5 | H104: 0.879645943 | I104: 11.36821022 | J104: 0.9016621725 | K104: 1030 | L104: 32204.56367 | M104: 0.02436174909 | N104: 25.09260156 | O104: 0.02207260516 | P104: 1004.907398
F105: 1545 | G105: 0.5 | H105: 0.879645943 | I105: 11.36821022 | J105: 0.8839627161 | K105: 1000 | L105: 31400.41367 | M105: 0.02497006351 | N105: 24.97006351 | O105: 0.02196481506 | P105: 975.0299365
F106: 1560 | G106: 0.5 | H106: 0.879645943 | I106: 11.36821022 | J106: 0.8576811279 | K106: 975 | L106: 30596.26367 | M106: 0.02560953523 | N106: 24.96929685 | O106: 0.02196414067 | P106: 950.0307032

Sheet Med avgång_ekv2 (hidden)
A1: Mängd bränsle | B1: 1 | C1: m3 | F1: Tid (min) | G1: Radie (m) | H1: Volym (m3) | I1: Vol% etanol | J1: Mängd eter (g) | K1: Koncentration eter (ug/l) | L1: Teoretisk avgång | M1: Avgång eter (%) | N1: Avgång eter (ug/l) | O1: Avgång eter (g) | P1: Koncentration eter ny (ug/l)
A2: Temperatur | B2: 18.5 | C2: C | F2: 0 | G2: =B3 -> 0.57 | H2: =B6 -> 1.53105518 | I2: =($B$9/H2)*100 -> 55.51726752 | J2: =B8 -> 96.5762247 | K2: =P2 -> 63100 | L2: =91140-26.5*F2+1480*B$2+449.5*I2-3.158*F2*B$2-0.3128*F2*I2-66.17*B$2+0.04497*F2*B$2*I2 -> 142250.8668 | P2: =IFERROR(ROUND((J2-M2)*1000000/(H2*1000),2-INT(LOG10(ABS((J2-M2)*1000000/(H2*1000))))),"") -> 63100
A3: Initial spridningsradie | B3: 0.57 | C3: m | F3: =F2+B$11 -> 15 | G3: =G2+(B$5/100)*(F3-F2)*60 -> 0.57 | H3: =($B$6-$B$6*($B$10/360.000000000001))+$B$4*PI()*(G3^2)*($B$10/360.000000000001) -> 1.53105518 | I3: =($B$9/H3)*100 -> 55.51726752 | J3: =J2 -> 96.5762247 | K3: =IFERROR(ROUND(J3*1000000/(H3*1000),2-INT(LOG10(ABS(J3*1000000/(H3*1000))))),0) -> 63100 | L3: =91140-26.5*F3+1480*B$2+449.5*I3-3.158*F3*B$2-0.3128*F3*I3-66.17*B$2+0.04497*F3*B$2*I3 -> 141409.3444 | M3: =IFERROR(1-L3/L2,0) -> 0.005915762354 | N3: =M3*K3 -> 373.2846045 | O3: =N3/1000000*1000*H3 -> 0.5715193273 | P3: =K3-N3 -> 62726.7154
A4: Djup råvattenintag | B4: 1.5 | C4: m | F4: 30 | G4: 0.57 | H4: 1.53105518 | I4: =($B$9/H4)*100 -> 55.51726752 | J4: =IF(J3-O3>=0,J3-O3,0) -> 96.00470538 | K4: =IFERROR(ROUND(J4*1000000/(H4*1000),2-INT(LOG10(ABS(J4*1000000/(H4*1000))))),0) -> 62700 | L4: 140567.8221 | M4: =IFERROR(1-L4/L3,0) -> 0.005950966859 | N4: =M4*K4 -> 373.1256221 | O4: =N4/1000000*1000*H4 -> 0.5712759164 | P4: =K4-N4 -> 62326.87438
A5: Vattenhastighet | B5: 0 | C5: cm/s | F5: 45 | G5: 0.57 | H5: 1.53105518 | I5: 55.51726752 | J5: =IF(J4-O4>=0,J4-O4,0) -> 95.43342946 | K5: 62300 | L5: 139726.2998 | M5: 0.005986592875 | N5: 372.9647361 | O5: 0.5710295911 | P5: 61927.03526
A6: Inital volym | B6: =B4*PI()*B3^2 -> 1.53105518 | C6: m3 | F6: 60 | G6: 0.57 | H6: 1.53105518 | I6: 55.51726752 | J6: 94.86239987 | K6: 62000 | L6: 138884.7775 | M6: 0.006022648017 | N6: 373.4041771 | O6: 0.5717023994 | P6: 61626.59582
A7: Initial mängd eter | B7: =B1*B16*1000 -> 7610 | C7: g | F7: 75 | G7: 0.57 | H7: 1.53105518 | I7: 55.51726752 | J7: 94.29069747 | K7: 61600 | L7: 138043.2551 | M7: 0.006059140085 | N7: 373.2430292 | O7: 0.5714556732 | P7: 61226.75697
A8: Initial mängd eter i lösning | B8: =B7*B18 -> 96.5762247 | C8: g | F8: 90 | G8: 0.57 | H8: 1.53105518 | I8: 55.51726752 | J8: 93.7192418 | K8: 61200 | L8: 137201.7328 | M8: 0.00609607707 | N8: 373.0799167 | O8: 0.5712059389 | P8: 60826.92008
A9: Initial vol etanol i lösning | B9: =B1*B19/100 -> 0.85 | C9: m3 | F9: 105 | G9: 0.57 | H9: 1.53105518 | I9: 55.51726752 | J9: 93.14803586 | K9: 60800 | L9: 136360.2105 | M9: 0.006133467158 | N9: 372.9148032 | O9: 0.5709531411 | P9: 60427.0852
A10: Spridningvinkel | B10: 45 | C10: grader | F10: 120 | G10: 0.57 | H10: 1.53105518 | I10: 55.51726752 | J10: 92.57708272 | K10: 60500 | L10: 135518.6882 | M10: 0.006171318739 | N10: 373.3647837 | O10: 0.571642086 | P10: 60126.63522
A11: delta t | B11: 15 | C11: min | F11: 135 | G11: 0.57 | H11: 1.53105518 | I11: 55.51726752 | J11: 92.00544063 | K11: 60100 | L11: 134677.1658 | M11: 0.006209640409 | N11: 373.1993886 | O11: 0.571388857 | P11: 59726.80061
F12: 150 | G12: 0.57 | H12: 1.53105518 | I12: 55.51726752 | J12: 91.43405177 | K12: 59700 | L12: 133835.6435 | M12: 0.006248440981 | N12: 373.0319266 | O12: 0.5711324634 | P12: 59326.96807
F13: 165 | G13: 0.57 | H13: 1.53105518 | I13: 55.51726752 | J13: 90.86291931 | K13: 59300 | L13: 132994.1212 | M13: 0.006287729488 | N13: 372.8623586 | O13: 0.5708728455 | P13: 58927.13764
A14: Insert bränsle | F14: 180 | G14: 0.57 | H14: 1.53105518 | I14: 55.51726752 | J14: 90.29204646 | K14: 59000 | L14: 132152.5989 | M14: 0.006327515192 | N14: 373.3233963 | O14: 0.5715787196 | P14: 58626.6766
A15: Ethanol 85 | F15: 195 | G15: 0.57 | H15: 1.53105518 | I15: 55.51726752 | J15: 89.72046774 | K15: 58600 | L15: 131311.0766 | M15: 0.006367807591 | N15: 373.1535248 | O15: 0.571318637 | P15: 58226.84648
A16: koncentration eter | B16: =_xlfn.XLOOKUP(A15,'Attribut bränslen'!A2:A4,'Attribut bränslen'!C2:C4) -> 7.61 | C16: g/l | F16: 210 | G16: 0.57 | H16: 1.53105518 | I16: 55.51726752 | J16: 89.14914911 | K16: 58200 | L16: 130469.5542 | M16: 0.006408616427 | N16: 372.9814761 | O16: 0.5710552209 | P16: 57827.01852
A17: koncentration eter i lösning | B17: =_xlfn.XLOOKUP('Med avgång_ekv2'!A15,'Attribut bränslen'!A2:A4,'Attribut bränslen'!D2:D4) -> 96576.2247 | C17: ug/l | F17: 225 | G17: 0.57 | H17: 1.53105518 | I17: 55.51726752 | J17: 88.57809389 | K17: 57900 | L17: 129628.0319 | M17: =IFERROR(1-L17/L16,0) -> 0.006449951693 | N17: 373.4522031 | O17: 0.5717759299 | P17: 57526.5478
A18: Löslighet | B18: =B17/(B16*1000000) -> 0.0126906997 | F18: 240 | G18: 0.57 | H18: 1.53105518 | I18: 55.51726752 | J18: 88.00631796 | K18: 57500 | L18: 128786.5096 | M18: 0.006491823642 | N18: 373.2798594 | O18: 0.5715120623 | P18: 57126.72014
A19: Andel etanol (%) | B19: =_xlfn.XLOOKUP(A15,'Attribut bränslen'!A2:A4,'Attribut bränslen'!B2:B4) -> 85 | F19: 255 | G19: 0.57 | H19: 1.53105518 | I19: 55.51726752 | J19: 87.43480589 | K19: 57100 | L19: 127944.9873 | M19: 0.006534242794 | N19: 373.1052636 | O19: 0.5712447463 | P19: 56726.89474
F20: 270 | G20: 0.57 | H20: 1.53105518 | I20: 55.51726752 | J20: 86.86356115 | K20: 56700 | L20: 127103.4649 | M20: 0.006577219946 | N20: 372.928371 | O20: 0.570973914 | P20: 56327.07163
F21: 285 | G21: 0.57 | H21: 1.53105518 | I21: 55.51726752 | J21: 86.29258723 | K21: 56400 | L21: 126261.9426 | M21: 0.006620766182 | N21: 373.4112126 | O21: 0.5717131713 | P21: 56026.58879
A22: Tröskelvärde: | B22: 1.4 | C22: ug/l | F22: 300 | G22: 0.57 | H22: 1.53105518 | I22: 55.51726752 | J22: 85.72087406 | K22: 56000 | L22: 125420.4203 | M22: 0.006664892879 | N22: 373.2340012 | O22: 0.5714418508 | P22: 55626.766
A23: Tid till tröskelvärde | B23: =INDEX(F$2:F$1048576, _xlfn.XMATCH(MIN(ABS(P$2:P$1048576-B$22)), ABS(P$2:P$1048576-B$22), 0)) -> 0 | C23: min | F23: 315 | G23: 0.57 | H23: 1.53105518 | I23: 55.51726752 | J23: 85.14943221 | K23: 55600 | L23: 124578.898 | M23: 0.006709611722 | N23: 373.0544118 | O23: 0.5711668895 | P23: 55226.94559
A24: Radie till tröskelvärde | B24: =INDEX(G$2:G$1048576, _xlfn.XMATCH(MIN(ABS(P$2:P$1048576-B$22)), ABS(P$2:P$1048576-B$22), 0)) -> 0 | C24: m | F24: 330 | G24: 0.57 | H24: 1.53105518 | I24: 55.51726752 | J24: 84.57826532 | K24: 55200 | L24: 123737.3757 | M24: 0.006754934712 | N24: 372.8723961 | O24: 0.5708882134 | P24: 54827.1276
F25: 345 | G25: 0.57 | H25: 1.53105518 | I25: 55.51726752 | J25: 84.00737711 | K25: 54900 | L25: 122895.8533 | M25: 0.006800874173 | N25: 373.3679921 | O25: 0.5716469982 | P25: 54526.63201
A26: Att fixa | F26: 360 | G26: 0.57 | H26: 1.53105518 | I26: 55.51726752 | J26: 83.43573011 | K26: 54500 | L26: 122054.331 | M26: 0.006847442769 | N26: 373.1856309 | O26: 0.5713677932 | P26: 54126.81437
A27: Temperatur -> löslighet (har bara vid 20 grader) | F27: 375 | G27: 0.57 | H27: 1.53105518 | I27: 55.51726752 | J27: 82.86436232 | K27: 54100 | L27: 121212.8087 | M27: 0.006894653515 | N27: 373.0007551 | O27: 0.5710847382 | P27: 53726.99924
A28: Luktgräns | F28: 390 | G28: 0.57 | H28: 1.53105518 | I28: 55.51726752 | J28: 82.29327758 | K28: 53700 | L28: 120371.2864 | M28: 0.006942519783 | N28: 372.8133123 | O28: 0.5707977529 | P28: 53327.18669
A29: Plocka ut radie när under 4 ug/l | F29: 405 | G29: 0.57 | H29: 1.53105518 | I29: 55.51726752 | J29: 81.72247983 | K29: 53400 | L29: 119529.764 | M29: 0.006991055323 | N29: 373.3223542 | O29: 0.5715771242 | P29: 53026.67765
F30: 420 | G30: 0.57 | H30: 1.53105518 | I30: 55.51726752 | J30: 81.1509027 | K30: 53000 | L30: 118688.2417 | M30: 0.00704027427 | N30: 373.1345363 | O30: 0.5712895645 | P30: 52626.86546
F31: 435 | G31: 0.57 | H31: 1.53105518 | I31: 55.51726752 | J31: 80.57961314 | K31: 52600 | L31: 117846.7194 | M31: 0.00709019116 | N31: 372.944055 | O31: 0.5709979272 | P31: 52227.05594
F32: 450 | G32: 0.57 | H32: 1.53105518 | I32: 55.51726752 | J32: 80.00861521 | K32: 52300 | L32: 117005.1971 | M32: 0.007140820946 | N32: 373.4649355 | O32: 0.5717954239 | P32: 51926.53506
F33: 465 | G33: 0.57 | H33: 1.53105518 | I33: 55.51726752 | J33: 79.43681979 | K33: 51900 | L33: 116163.6748 | M33: 0.007192179008 | N33: 373.2740905 | O33: 0.5715032298 | P33: 51526.72591
F34: 480 | G34: 0.57 | H34: 1.53105518 | I34: 55.51726752 | J34: 78.86531656 | K34: 51500 | L34: 115322.1524 | M34: 0.007244281175 | N34: 373.0804805 | O34: 0.5712068022 | P34: 51126.91952
F35: 495 | G35: 0.57 | H35: 1.53105518 | I35: 55.51726752 | J35: 78.29410975 | K35: 51100 | L35: 114480.6301 | M35: 0.007297143736 | N35: 372.8840449 | O35: 0.5709060484 | P35: 50727.11596
F36: 510 | G36: 0.57 | H36: 1.53105518 | I36: 55.51726752 | J36: 77.72320371 | K36: 50800 | L36: 113639.1078 | M36: 0.00735078346 | N36: 373.4197998 | O36: 0.5717263186 | P36: 50426.5802
F37: 525 | G37: 0.57 | H37: 1.53105518 | I37: 55.51726752 | J37: 77.15147739 | K37: 50400 | L37: 112797.5855 | M37: 0.007405217611 | N37: 373.2229676 | O37: 0.5714249577 | P37: 50026.77703
F38: 540 | G38: 0.57 | H38: 1.53105518 | I38: 55.51726752 | J38: 76.58005243 | K38: 50000 | L38: 111956.0631 | M38: 0.00746046397 | N38: 373.0231985 | O38: 0.5711191002 | P38: 49626.9768
F39: 555 | G39: 0.57 | H39: 1.53105518 | I39: 55.51726752 | J39: 76.00893333 | K39: 49600 | L39: 111114.5408 | M39: 0.007516540852 | N39: 372.8204263 | O39: 0.5708086448 | P39: 49227.17957
F40: 570 | G40: 0.57 | H40: 1.53105518 | I40: 55.51726752 | J40: 75.43812468 | K40: 49300 | L40: 110273.0185 | M40: 0.007573467127 | N40: 373.3719294 | O40: 0.5716530264 | P40: 48926.62807
F41: 585 | G41: 0.57 | H41: 1.53105518 | I41: 55.51726752 | J41: 74.86647166 | K41: 48900 | L41: 109431.4962 | M41: 0.007631262241 | N41: 373.1687236 | O41: 0.5713419072 | P41: 48526.83128
F42: 600 | G42: 0.57 | H42: 1.53105518 | I42: 55.51726752 | J42: 74.29512975 | K42: 48500 | L42: 108589.9739 | M42: 0.007689946237 | N42: 372.9623925 | O42: 0.5710260029 | P42: 48127.03761
F43: 615 | G43: 0.57 | H43: 1.53105518 | I43: 55.51726752 | J43: 73.72410375 | K43: 48200 | L43: 107748.4515 | M43: 0.007749539782 | N43: 373.5278175 | O43: 0.5718916997 | P43: 47826.47218
F44: 630 | G44: 0.57 | H44: 1.53105518 | I44: 55.51726752 | J44: 73.15221205 | K44: 47800 | L44: 106906.9292 | M44: 0.007810064185 | N44: 373.321068 | O44: 0.5715751549 | P44: 47426.67893
F45: 645 | G45: 0.57 | H45: 1.53105518 | I45: 55.51726752 | J45: 72.58063689 | K45: 47400 | L45: 106065.4069 | M45: 0.007871541429 | N45: 373.1110637 | O45: 0.5712536267 | P45: 47026.88894
F46: 660 | G46: 0.57 | H46: 1.53105518 | I46: 55.51726752 | J46: 72.00938327 | K46: 47000 | L46: 105223.8846 | M46: 0.007933994193 | N46: 372.8977271 | O46: 0.5709269965 | P46: 46627.10227
F47: 675 | G47: 0.57 | H47: 1.53105518 | I47: 55.51726752 | J47: 71.43845627 | K47: 46700 | L47: 104382.3622 | M47: 0.007997445882 | N47: 373.4807227 | O47: 0.571819595 | P47: 46326.51928
F48: 690 | G48: 0.57 | H48: 1.53105518 | I48: 55.51726752 | J48: 70.86663668 | K48: 46300 | L48: 103540.8399 | M48: 0.008061920656 | N48: 373.2669264 | O48: 0.571492261 | P48: 45926.73307
F49: 705 | G49: 0.57 | H49: 1.53105518 | I49: 55.51726752 | J49: 70.29514441 | K49: 45900 | L49: 102699.3176 | M49: 0.00812744346 | N49: 373.0496548 | O49: 0.5711596063 | P49: 45526.95035
F50: 720 | G50: 0.57 | H50: 1.53105518 | I50: 55.51726752 | J50: 69.72398481 | K50: 45500 | L50: 101857.7953 | M50: 0.008194040057 | N50: 372.8288226 | O50: 0.5708215 | P50: 45127.17118
F51: 735 | G51: 0.57 | H51: 1.53105518 | I51: 55.51726752 | J51: 69.15316331 | K51: 45200 | L51: 101016.273 | M51: 0.008261737062 | N51: 373.4305152 | O51: 0.5717427246 | P51: 44826.56948
F52: 750 | G52: 0.57 | H52: 1.53105518 | I52: 55.51726752 | J52: 68.58142058 | K52: 44800 | L52: 100174.7506 | M52: 0.008330561975 | N52: 373.2091765 | O52: 0.5714038427 | P52: 44426.79082
F53: 765 | G53: 0.57 | H53: 1.53105518 | I53: 55.51726752 | J53: 68.01001674 | K53: 44400 | L53: 99333.22831 | M53: 0.00840054322 | N53: 372.984119 | O53: 0.5710592673 | P53: 44027.01588
F54: 780 | G54: 0.57 | H54: 1.53105518 | I54: 55.51726752 | J54: 67.43895747 | K54: 44000 | L54: 98491.70599 | M54: 0.008471710188 | N54: 372.7552483 | O54: 0.5707088536 | P54: 43627.24475
F55: 795 | G55: 0.57 | H55: 1.53105518 | I55: 55.51726752 | J55: 66.86824862 | K55: 43700 | L55: 97650.18367 | M55: 0.00854409327 | N55: 373.3768759 | O55: 0.5716605998 | P55: 43326.62312
F56: 810 | G56: 0.57 | H56: 1.53105518 | I56: 55.51726752 | J56: 66.29658802 | K56: 43300 | L56: 96808.66135 | M56: 0.008617723907 | N56: 373.1474452 | O56: 0.5713093287 | P56: 42926.85255
F57: 825 | G57: 0.57 | H57: 1.53105518 | I57: 55.51726752 | J57: 65.72527869 | K57: 42900 | L57: 95967.13902 | M57: 0.008692634632 | N57: 372.9140257 | O57: 0.5709519507 | P57: 42527.08597
F58: 840 | G58: 0.57 | H58: 1.53105518 | I58: 55.51726752 | J58: 65.15432674 | K58: 42600 | L58: 95125.6167 | M58: 0.008768859121 | N58: 373.5533985 | O58: 0.5719308657 | P58: 42226.4466
F59: 855 | G59: 0.57 | H59: 1.53105518 | I59: 55.51726752 | J59: 64.58239587 | K59: 42200 | L59: 94284.09438 | M59: 0.008846432239 | N59: 373.3194405 | O59: 0.571572663 | P59: 41826.68056
F60: 870 | G60: 0.57 | H60: 1.53105518 | I60: 55.51726752 | J60: 64.01082321 | K60: 41800 | L60: 93442.57206 | M60: 0.008925390097 | N60: 373.0813061 | O60: 0.5712080661 | P60: 41426.91869
F61: 885 | G61: 0.57 | H61: 1.53105518 | I61: 55.51726752 | J61: 63.43961515 | K61: 41400 | L61: 92601.04973 | M61: 0.009005770109 | N61: 372.8388825 | O61: 0.5708369023 | P61: 41027.16112
F62: 900 | G62: 0.57 | H62: 1.53105518 | I62: 55.51726752 | J62: 62.86877824 | K62: 41100 | L62: 91759.52741 | M62: 0.009087611045 | N62: 373.5008139 | O62: 0.5718503558 | P62: 40726.49919
F63: 915 | G63: 0.57 | H63: 1.53105518 | I63: 55.51726752 | J63: 62.29692789 | K63: 40700 | L63: 90918.00509 | M63: 0.009170953099 | N63: 373.2577911 | O63: 0.5714782745 | P63: 40326.74221
F64: 930 | G64: 0.57 | H64: 1.53105518 | I64: 55.51726752 | J64: 61.72544961 | K64: 40300 | L64: 90076.48277 | M64: 0.009255837955 | N64: 373.0102696 | O64: 0.5710993053 | P64: 39926.98973
F65: 945 | G65: 0.57 | H65: 1.53105518 | I65: 55.51726752 | J65: 61.15435031 | K65: 39900 | L65: 89234.96044 | M65: 0.009342308852 | N65: 372.7581232 | O65: 0.5707132553 | P65: 39527.24188
F66: 960 | G66: 0.57 | H66: 1.53105518 | I66: 55.51726752 | J66: 60.58363705 | K66: 39600 | L66: 88393.43812 | M66: 0.009430410661 | N66: 373.4442622 | O66: 0.5717637719 | P66: 39226.55574
F67: =F66+B$11 -> 975 | G67: =G66+(B$5/100)*(F67-F66)*60 -> 0.57 | H67: =($B$6-$B$6*($B$10/360.000000000001))+$B$4*PI()*(G67^2)*($B$10/360.000000000001) -> 1.53105518 | I67: 55.51726752 | J67: 60.01187328 | K67: 39200 | L67: =91140-26.5*F67+1480*B$2+449.5*I67-3.158*F67*B$2-0.3128*F67*I67-66.17*B$2+0.04497*F67*B$2*I67 -> 87551.9158 | M67: 0.009520189962 | N67: 373.1914465 | O67: 0.5713766972 | P67: 38826.80855
F68: 990 | G68: 0.57 | H68: 1.53105518 | I68: =($B$9/H68)*100 -> 55.51726752 | J68: 59.44049658 | K68: =IFERROR(ROUND(J68*1000000/(H68*1000),2-INT(LOG10(ABS(J68*1000000/(H68*1000))))),0) -> 38800 | L68: 86710.39348 | M68: =IFERROR(1-L68/L67,0) -> 0.009611695125 | N68: =M68*K68 -> 372.9337709 | O68: =N68/1000000*1000*H68 -> 0.5709821816 | P68: =K68-N68 -> 38427.06623
F69: 1005 | G69: 0.57 | H69: 1.53105518 | I69: 55.51726752 | J69: =IF(J68-O68>=0,J68-O68,0) -> 58.8695144 | K69: 38500 | L69: 85868.87116 | M69: 0.0097049764 | N69: 373.6415914 | O69: 0.5720658939 | P69: 38126.35841
F70: 1020 | G70: 0.57 | H70: 1.53105518 | I70: 55.51726752 | J70: 58.29744851 | K70: 38100 | L70: 85027.34883 | M70: 0.009800086003 | N70: 373.3832767 | O70: 0.5716703998 | P70: 37726.61672
F71: 1035 | G71: 0.57 | H71: 1.53105518 | I71: 55.51726752 | J71: 57.72577811 | K71: 37700 | L71: 84185.82651 | M71: 0.009897078221 | N71: 373.1198489 | O71: 0.5712670773 | P71: 37326.88015
F72: 1050 | G72: 0.57 | H72: 1.53105518 | I72: 55.51726752 | J72: 57.15451103 | K72: 37300 | L72: 83344.30419 | M72: 0.009996009509 | N72: 372.8511547 | O72: 0.5708556916 | P72: 36927.14885
F73: 1065 | G73: 0.57 | H73: 1.53105518 | I73: 55.51726752 | J73: 56.58365534 | K73: 37000 | L73: 82502.78187 | M73: 0.0100969386 | N73: 373.5867283 | O73: 0.5719818955 | P73: 36626.41327
F74: 1080 | G74: 0.57 | H74: 1.53105518 | I74: 55.51726752 | J74: 56.01167344 | K74: 36600 | L74: 81661.25954 | M74: 0.01019992664 | N74: 373.3173149 | O74: 0.5715694086 | P74: 36226.68269
B75: utifrån simulering | F75: 1095 | G75: 0.57 | H75: 1.53105518 | I75: 55.51726752 | J75: 55.44010403 | K75: 36200 | L75: 80819.73722 | M75: 0.01030503726 | N75: 373.0423488 | O75: 0.5711484204 | P75: 35826.95765
A76: P98; 18,5C; 0min; 73008,6ug/l | B76: 73200 | F76: 1110 | G76: 0.57 | H76: 1.53105518 | I76: 55.51726752 | J76: 54.86895561 | K76: 35800 | L76: 79978.2149 | M76: 0.01041233678 | N76: 372.7616567 | O76: 0.5707186652 | P76: 35427.23834
A77: P98; 18,5C; 1440min; 37,4ug/l | B77: 308 | F77: 1125 | G77: 0.57 | H77: 1.53105518 | I77: 55.51726752 | J77: 54.29823695 | K77: 35500 | L77: 79136.69258 | M77: 0.01052189429 | N77: 373.5272471 | O77: 0.5718908265 | P77: 35126.47275
A78: E85; 18,5C; 0min; 63582ug/l | B78: 63100 | F78: 1140 | G78: 0.57 | H78: 1.53105518 | I78: 55.51726752 | J78: 53.72634612 | K78: 35100 | L78: 78295.17025 | M78: 0.01063378181 | N78: 373.2457417 | O78: 0.5714598261 | P78: 34726.75426
A79: E85; 18,5C; 1440min; 660ug/l | B79: 446 | F79: 1155 | G79: 0.57 | H79: 1.53105518 | I79: 55.51726752 | J79: 53.1548863 | K79: 34700 | L79: 77453.64793 | M79: 0.01074807449 | N79: 372.9581849 | O79: 0.5710195608 | P79: 34327.04182
A80: P98; 10C; 0min; 107328ug/l | B80: 107000 | F80: 1170 | G80: 0.57 | H80: 1.53105518 | I80: 55.51726752 | J80: 52.58386674 | K80: 34300 | L80: 76612.12561 | M80: 0.01086485072 | N80: 372.6643796 | O80: 0.5705697287 | P80: 33927.33562
A81: P98; 10C; 1200min; 38324ug/l | B81: 9300 | F81: 1185 | G81: 0.57 | H81: 1.53105518 | I81: 55.51726752 | J81: 52.01329701 | K81: 34000 | L81: 75770.60329 | M81: 0.01098419233 | N81: 373.4625391 | O81: 0.571791755 | P81: 33626.53746
A82: E85; 10C; 0min; 104317ug/l | B82: 104000 | F82: 1200 | G82: 0.57 | H82: 1.53105518 | I82: 55.51726752 | J82: 51.44150525 | K82: 33600 | L82: 74929.08097 | M82: 0.0111061848 | N82: 373.1678092 | O82: 0.5713405072 | P82: 33226.83219
A83: E85; 10C; 1200min; 8925ug/l | B83: 22100 | F83: 1215 | G83: 0.57 | H83: 1.53105518 | I83: 55.51726752 | J83: 50.87016474 | K83: 33200 | L83: 74087.55864 | M83: 0.01123091744 | N83: 372.8664591 | O83: 0.5708791235 | P83: 32827.13354
A84: P98; 5C; 0min; 78455ug/l | B84: 78300 | F84: 1230 | G84: 0.57 | H84: 1.53105518 | I84: 55.51726752 | J84: 50.29928562 | K84: 32900 | L84: 73246.03632 | M84: 0.01135848363 | N84: 373.6941115 | O84: 0.5721463051 | P84: 32526.30589
A85: P98; 5C; 1440min; 32663ug/l | B85: 55000 | F85: 1245 | G85: 0.57 | H85: 1.53105518 | I85: 55.51726752 | J85: 49.72713932 | K85: 32500 | L85: 72404.514 | M85: 0.01148898104 | N85: 373.3918837 | O85: 0.5716835776 | P85: 32126.60812
A86: E85; 5C; 0min; 110472ug/l | B86: 110000 | F86: 1260 | G86: 0.57 | H86: 1.53105518 | I86: 55.51726752 | J86: 49.15545574 | K86: 32100 | L86: 71562.99168 | M86: 0.01162251185 | N86: 373.0826305 | O86: 0.571210094 | P86: 31726.91737
A87: E85; 5C; 1440min; 44850ug/l | B87: 38300 | F87: 1275 | G87: 0.57 | H87: 1.53105518 | I87: 55.51726752 | J87: 48.58424564 | K87: 31700 | L87: 70721.46935 | M87: 0.0117591831 | N87: 372.7661043 | O87: 0.5707254748 | P87: 31327.2339
F88: 1290 | G88: 0.57 | H88: 1.53105518 | I88: 55.51726752 | J88: 48.01352017 | K88: 31400 | L88: 69879.94703 | M88: 0.01189910688 | N88: 373.6319559 | O88: 0.5720511414 | P88: 31026.36804
F89: 1305 | G89: 0.57 | H89: 1.53105518 | I89: 55.51726752 | J89: 47.44146903 | K89: 31000 | L89: 69038.42471 | M89: 0.01204240069 | N89: 373.3144214 | O89: 0.5715649785 | P89: 30626.68558
F90: 1320 | G90: 0.57 | H90: 1.53105518 | I90: 55.51726752 | J90: 46.86990405 | K90: 30600 | L90: 68196.90239 | M90: 0.01218918777 | N90: 372.9891458 | O90: 0.5710669637 | P90: 30227.01085
F91: 1335 | G91: 0.57 | H91: 1.53105518 | I91: 55.51726752 | J91: 46.29883709 | K91: 30200 | L91: 67355.38006 | M91: 0.01233959744 | N91: 372.6558428 | O91: 0.5705566583 | P91: 29827.34416
F92: 1350 | G92: 0.57 | H92: 1.53105518 | I92: 55.51726752 | J92: 45.72828043 | K92: 29900 | L92: 66513.85774 | M92: 0.01249376548 | N92: 373.5635878 | O92: 0.5719464661 | P92: 29526.43641
F93: 1365 | G93: 0.57 | H93: 1.53105518 | I93: 55.51726752 | J93: 45.15633396 | K93: 29500 | L93: 65672.33542 | M93: 0.01265183453 | N93: 373.2291187 | O93: 0.5714343754 | P93: 29126.77088
F94: 1380 | G94: 0.57 | H94: 1.53105518 | I94: 55.51726752 | J94: 44.58489959 | K94: 29100 | L94: 64830.8131 | M94: 0.01281395457 | N94: 372.8860779 | O94: 0.570909161 | P94: 28727.11392
F95: 1395 | G95: 0.57 | H95: 1.53105518 | I95: 55.51726752 | J95: 44.01399043 | K95: 28700 | L95: 63989.29078 | M95: 0.01298028333 | N95: 372.5341315 | O95: 0.5703703116 | P95: 28327.46587
F96: 1410 | G96: 0.57 | H96: 1.53105518 | I96: 55.51726752 | J96: 43.44362011 | K96: 28400 | L96: 63147.76845 | M96: 0.01315098686 | N96: 373.4880269 | O96: 0.5718307781 | P96: 28026.51197
F97: 1425 | G97: 0.57 | H97: 1.53105518 | I97: 55.51726752 | J97: 42.87178934 | K97: 28000 | L97: 62306.24613 | M97: 0.01332624007 | N97: 373.134722 | O97: 0.5712898488 | P97: 27626.86528
F98: 1440 | G98: 0.57 | H98: 1.53105518 | I98: 55.51726752 | J98: 42.30049949 | K98: 27600 | L98: 61464.72381 | M98: 0.0135062273 | N98: 372.7718734 | O98: 0.5707343076 | P98: 27227.22813
F99: 1455 | G99: 0.57 | H99: 1.53105518 | I99: 55.51726752 | J99: 41.72976518 | K99: 27300 | L99: 60623.20149 | M99: 0.01369114299 | N99: 373.7682035 | O99: 0.572259744 | P99: 26926.2318
F100: 1470 | G100: 0.57 | H100: 1.53105518 | I100: 55.51726752 | J100: 41.15750544 | K100: 26900 | L100: 59781.67916 | M100: 0.01388119238 | N100: 373.4040749 | O100: 0.571702243 | P100: 26526.59593
F101: 1485 | G101: 0.57 | H101: 1.53105518 | I101: 55.51726752 | J101: 40.58580319 | K101: 26500 | L101: 58940.15684 | M101: 0.01407659226 | N101: 373.0296949 | O101: 0.5711290466 | P101: 26126.97031
F102: 1500 | G102: 0.57 | H102: 1.53105518 | I102: 55.51726752 | J102: 40.01467415 | K102: 26100 | L102: 58098.63452 | M102: 0.01427757182 | N102: 372.6446245 | O102: 0.5705394825 | P102: 25727.35538
F103: 1515 | G103: 0.57 | H103: 1.53105518 | I103: 55.51726752 | J103: 39.44413466 | K103: 25800 | L103: 57257.1122 | M103: 0.0144843735 | N103: 373.6968363 | O103: 0.5721504769 | P103: 25426.30316
F104: 1530 | G104: 0.57 | H104: 1.53105518 | I104: 55.51726752 | J104: 38.87198419 | K104: 25400 | L104: 56415.58988 | M104: 0.01469725402 | N104: 373.3102521 | O104: 0.5715585951 | P104: 25026.68975
F105: 1545 | G105: 0.57 | H105: 1.53105518 | I105: 55.51726752 | J105: 38.30042559 | K105: 25000 | L105: 55574.06755 | M105: 0.01491648539 | N105: 372.9121348 | O105: 0.5709490556 | P105: 24627.08787
F106: 1560 | G106: 0.57 | H106: 1.53105518 | I106: 55.51726752 | J106: 37.72947654 | K106: 24600 | L106: 54732.54523 | M106: 0.01514235613 | N106: 372.5019607 | O106: 0.5703210564 | P106: 24227.49804

Sheet Med avgång_exp (hidden)
A1: Mängd bränsle | B1: 1 | C1: m3 | F1: Tid (min) | G1: Radie (m) | H1: Volym (m3) | I1: Vol% etanol | J1: Mängd eter (g) | K1: Koncentration eter (ug/l) | L1: Teoretisk eter | M1: Avgång eter (%) | N1: Avgång eter (ug/l) | O1: Avgång eter (g) | P1: Koncentration eter ny (ug/l)
A2: Temperatur | B2: 5 | C2: C | F2: 0 | G2: =B3 -> 0.5 | H2: =B6 -> 0.879645943 | I2: =($B$9/H2)*100 -> 96.62978688 | J2: =B8 -> 96.5762247 | K2: =IFERROR(ROUND((J2)*1000000/(H2*1000),2-INT(LOG10(ABS((J2)*1000000/(H2*1000))))),0) -> 110000 | L2: =IF(EXP(12.861295-0.0020879*F2-0.1137143*B$2-0.0025489*I2)>=0,EXP(12.861295-0.0020879*F2-0.1137143*B$2-0.0025489*I2),0) -> 170488.6213 | P2: =K2-N2 -> 110000
A3: Initial spridningsradie | B3: 0.5 | C3: m | F3: =F2+B$11 -> 15 | G3: =G2+(B$5/100)*(F3-F2)*60 -> 0.5 | H3: =($B$6-$B$6*($B$10/360.000000000001))+$B$4*PI()*(G3^2)*($B$10/360.000000000001) -> 0.879645943 | I3: =($B$9/H3)*100 -> 96.62978688 | J3: =J2 -> 96.5762247 | K3: =IFERROR(ROUND((J3)*1000000/(H3*1000),2-INT(LOG10(ABS((J3)*1000000/(H3*1000))))),0) -> 110000 | L3: =IF(EXP(12.861295-0.0020879*F3-0.1137143*B$2-0.0025489*I3)>=0,EXP(12.861295-0.0020879*F3-0.1137143*B$2-0.0025489*I3),0) -> 165231.9191 | M3: =IFERROR(1-L3/L2,0) -> 0.03083315573 | N3: =M3*K2 -> 3391.64713 | O3: =N3/1000000*1000*H3 -> 2.983448638 | P3: =K3-N3 -> 106608.3529
A4: Djup råvattenintag | B4: 1.12 | C4: m | F4: 30 | G4: 0.5 | H4: =($B$6-$B$6*($B$10/360.000000000001))+$B$4*PI()*(G4^2)*($B$10/360.000000000001) -> 0.879645943 | I4: =($B$9/H4)*100 -> 96.62978688 | J4: =P3/1000000*1000*H3 -> 93.77760509 | K4: 107000 | L4: 160137.2976 | M4: =IFERROR(1-L4/L3,0) -> 0.03083315573 | N4: =M4*K3 -> 3391.64713 | O4: =N4/1000000*1000*H4 -> 2.983448638 | P4: =K4-N4 -> 103608.3529
A5: Vattenhastighet | B5: 0 | C5: cm/s | F5: 45 | G5: 0.5 | H5: 0.879645943 | I5: 96.62978688 | J5: =P4/1000000*1000*H4 -> 91.13866726 | K5: 104000 | L5: 155199.7594 | M5: 0.03083315573 | N5: 3299.147663 | O5: =N5/1000000*1000*H5 -> 2.902081857 | P5: =K5-N5 -> 100700.8523
A6: Inital volym | B6: =B4*PI()*B3^2 -> 0.879645943 | C6: m3 | F6: 60 | G6: 0.5 | H6: 0.879645943 | I6: 96.62978688 | J6: 88.58109622 | K6: 101000 | L6: 150414.461 | M6: 0.03083315573 | N6: 3206.648196 | O6: 2.820715076 | P6: 97793.3518
A7: Initial mängd eter | B7: =B1*B16*1000 -> 7610 | C7: g | F7: 75 | G7: 0.5 | H7: 0.879645943 | I7: 96.62978688 | J7: 86.02352517 | K7: 97800 | L7: 145776.7085 | M7: 0.03083315573 | N7: 3114.148728 | O7: 2.739348295 | P7: 94685.85127
A8: Initial mängd eter i lösning | B8: =B7*B18 -> 96.5762247 | C8: g | F8: 90 | G8: 0.5 | H8: 0.879645943 | I8: 96.62978688 | J8: 83.29002493 | K8: 94700 | L8: 141281.9526 | M8: 0.03083315573 | N8: 3015.48263 | O8: 2.652557062 | P8: 91684.51737
A9: Initial vol etanol i lösning | B9: =B1*B19/100 -> 0.85 | C9: m3 | F9: 105 | G9: 0.5 | H9: 0.879645943 | I9: 96.62978688 | J9: 80.64991374 | K9: 91700 | L9: 136925.7841 | M9: 0.03083315573 | N9: 2919.899847 | O9: 2.568478055 | P9: 88780.10015
A10: Spridningvinkel | B10: 45 | C10: grader | F10: 120 | G10: 0.5 | H10: 0.879645943 | I10: 96.62978688 | J10: 78.09505492 | K10: 88800 | L10: 132703.9301 | M10: 0.03083315573 | N10: 2827.40038 | O10: 2.487111274 | P10: 85972.59962
A11: delta t | B11: 15 | C11: min | F11: 135 | G11: 0.5 | H11: 0.879645943 | I11: 96.62978688 | J11: 75.62544847 | K11: 86000 | L11: 128612.2491 | M11: 0.03083315573 | N11: 2737.984228 | O11: 2.408456719 | P11: 83262.01577
F12: 150 | G12: 0.5 | H12: 0.879645943 | I12: 96.62978688 | J12: 73.24109438 | K12: 83300 | L12: 124646.7276 | M12: 0.03083315573 | N12: 2651.651392 | O12: 2.33251439 | P12: 80648.34861
F13: 165 | G13: 0.5 | H13: 0.879645943 | I13: 96.62978688 | J13: 70.94199266 | K13: 80600 | L13: 120803.4757 | M13: 0.03083315573 | N13: 2568.401872 | O13: 2.259284287 | P13: 78031.59813
A14: Insert bränsle | F14: 180 | G14: 0.5 | H14: 0.879645943 | I14: 96.62978688 | J14: 68.64017872 | K14: 78000 | L14: 117078.7233 | M14: 0.03083315573 | N14: 2485.152352 | O14: 2.186054184 | P14: 75514.84765
A15: Ethanol 85 | F15: 195 | G15: 0.5 | H15: 0.879645943 | I15: 96.62978688 | J15: 66.42632937 | K15: 75500 | L15: 113468.8168 | M15: 0.03083315573 | N15: 2404.986147 | O15: 2.115536307 | P15: 73095.01385
A16: koncentration eter | B16: =_xlfn.XLOOKUP(A15,'Attribut bränslen'!A2:A4,'Attribut bränslen'!C2:C4) -> 7.61 | C16: g/l | F16: 210 | G16: 0.5 | H16: 0.879645943 | I16: 96.62978688 | J16: 64.29773239 | K16: 73100 | L16: 109970.2151 | M16: 0.03083315573 | N16: 2327.903257 | O16: 2.047730656 | P16: 70772.09674
A17: koncentration eter i lösning | B17: =_xlfn.XLOOKUP('Med avgång_exp'!A15,'Attribut bränslen'!A2:A4,'Attribut bränslen'!D2:D4) -> 96576.2247 | C17: ug/l | F17: 225 | G17: 0.5 | H17: 0.879645943 | I17: 96.62978688 | J17: 62.25438778 | K17: 70800 | L17: 106579.4863 | M17: =IFERROR(1-L17/L16,0) -> 0.03083315573 | N17: 2253.903684 | O17: 1.982637231 | P17: 68546.09632
A18: Löslighet | B18: =B17/(B16*1000000) -> 0.0126906997 | F18: 240 | G18: 0.5 | H18: 0.879645943 | I18: 96.62978688 | J18: 60.29629553 | K18: 68500 | L18: 103293.3044 | M18: 0.03083315573 | N18: 2182.987425 | O18: 1.920256032 | P18: 66317.01257
A19: Andel etanol (%) | B19: =_xlfn.XLOOKUP(A15,'Attribut bränslen'!A2:A4,'Attribut bränslen'!B2:B4) -> 85 | F19: 255 | G19: 0.5 | H19: 0.879645943 | I19: 96.62978688 | J19: 58.33549106 | K19: 66300 | L19: 100108.4459 | M19: 0.03083315573 | N19: 2112.071167 | O19: 1.857874834 | P19: 64187.92883
F20: 270 | G20: 0.5 | H20: 0.879645943 | I20: 96.62978688 | J20: 56.46265119 | K20: 64200 | L20: 97021.78658 | M20: 0.03083315573 | N20: 2044.238225 | O20: 1.798205861 | P20: 62155.76178
F21: 285 | G21: 0.5 | H21: 0.879645943 | I21: 96.62978688 | J21: 54.67506368 | K21: 62200 | L21: 94030.29873 | M21: 0.03083315573 | N21: 1979.488598 | O21: 1.741249114 | P21: 60220.5114
A22: Tröskelvärde: | B22: 4 | C22: ug/l | F22: 300 | G22: 0.5 | H22: 0.879645943 | I22: 96.62978688 | J22: 52.97272854 | K22: 60200 | L22: 91131.04789 | M22: 0.03083315573 | N22: 1917.822286 | O22: 1.687004593 | P22: 58282.17771
A23: Tid till tröskelvärde | B23: =INDEX(F$2:F$1048576, _xlfn.XMATCH(MIN(ABS(P$2:P$1048576-B$22)), ABS(P$2:P$1048576-B$22), 0)) -> 0 | C23: min | F23: 315 | G23: 0.5 | H23: 0.879645943 | I23: 96.62978688 | J23: 51.26768118 | K23: 58300 | L23: 88321.1901 | M23: 0.03083315573 | N23: 1856.155975 | O23: 1.632760073 | P23: 56443.84403
A24: Radie till tröskelvärde | B24: =INDEX(G$2:G$1048576, _xlfn.XMATCH(MIN(ABS(P$2:P$1048576-B$22)), ABS(P$2:P$1048576-B$22), 0)) -> 0 | C24: m | F24: 330 | G24: 0.5 | H24: 0.879645943 | I24: 96.62978688 | J24: 49.6505984 | K24: 56400 | L24: 85597.96909 | M24: 0.03083315573 | N24: 1797.572979 | O24: 1.581227778 | P24: 54602.42702
F25: 345 | G25: 0.5 | H25: 0.879645943 | I25: 96.62978688 | J25: 48.03080341 | K25: 54600 | L25: 82958.71358 | M25: 0.03083315573 | N25: 1738.989983 | O25: 1.529695483 | P25: 52861.01002
A26: Att fixa | F26: 360 | G26: 0.5 | H26: 0.879645943 | I26: 96.62978688 | J26: 46.498973 | K26: 52900 | L26: 80400.83464 | M26: 0.03083315573 | N26: 1683.490303 | O26: 1.480875415 | P26: 51216.5097
A27: Temperatur -> löslighet (har bara vid 20 grader) | F27: 375 | G27: 0.5 | H27: 0.879645943 | I27: 96.62978688 | J27: 45.05239497 | K27: 51200 | L27: 77921.82319 | M27: 0.03083315573 | N27: 1631.073938 | O27: 1.434767572 | P27: 49568.92606
F28: 390 | G28: 0.5 | H28: 0.879645943 | I28: 96.62978688 | J28: 43.60310471 | K28: 49600 | L28: 75519.24748 | M28: 0.03083315573 | N28: 1578.657573 | O28: 1.38865973 | P28: 48021.34243
F29: 405 | G29: 0.5 | H29: 0.879645943 | I29: 96.62978688 | J29: 42.24177904 | K29: 48000 | L29: 73190.75076 | M29: 0.03083315573 | N29: 1529.324524 | O29: 1.345264113 | P29: 46470.67548
F30: 420 | G30: 0.5 | H30: 0.879645943 | I30: 96.62978688 | J30: 40.87774115 | K30: 46500 | L30: 70934.04894 | M30: 0.03083315573 | N30: 1479.991475 | O30: 1.301868497 | P30: 45020.00853
F31: 435 | G31: 0.5 | H31: 0.879645943 | I31: 96.62978688 | J31: 39.60166785 | K31: 45000 | L31: 68746.92837 | M31: 0.03083315573 | N31: 1433.741741 | O31: 1.261185106 | P31: 43566.25826
F32: 450 | G32: 0.5 | H32: 0.879645943 | I32: 96.62978688 | J32: 38.32288233 | K32: 43600 | L32: 66627.24362 | M32: 0.03083315573 | N32: 1387.492008 | O32: 1.220501716 | P32: 42212.50799
F33: 465 | G33: 0.5 | H33: 0.879645943 | I33: 96.62978688 | J33: 37.1320614 | K33: 42200 | L33: 64572.91544 | M33: 0.03083315573 | N33: 1344.32559 | O33: 1.182530551 | P33: 40855.67441
F34: 480 | G34: 0.5 | H34: 0.879645943 | I34: 96.62978688 | J34: 35.93852824 | K34: 40900 | L34: 62581.92868 | M34: 0.03083315573 | N34: 1301.159172 | O34: 1.144559387 | P34: 39598.84083
F35: 495 | G35: 0.5 | H35: 0.879645943 | I35: 96.62978688 | J35: 34.83295968 | K35: 39600 | L35: 60652.33033 | M35: 0.03083315573 | N35: 1261.076069 | O35: 1.109300448 | P35: 38338.92393
F36: 510 | G36: 0.5 | H36: 0.879645943 | I36: 96.62978688 | J36: 33.72467889 | K36: 38300 | L36: 58782.22758 | M36: 0.03083315573 | N36: 1220.992967 | O36: 1.07404151 | P36: 37079.00703
F37: 525 | G37: 0.5 | H37: 0.879645943 | I37: 96.62978688 | J37: 32.61639811 | K37: 37100 | L37: 56969.78601 | M37: 0.03083315573 | N37: 1180.909864 | O37: 1.038782571 | P37: 35919.09014
F38: 540 | G38: 0.5 | H38: 0.879645943 | I38: 96.62978688 | J38: 31.59608191 | K38: 35900 | L38: 55213.22772 | M38: 0.03083315573 | N38: 1143.910077 | O38: 1.006235859 | P38: 34756.08992
F39: 555 | G39: 0.5 | H39: 0.879645943 | I39: 96.62978688 | J39: 30.5730535 | K39: 34800 | L39: 53510.82967 | M39: 0.03083315573 | N39: 1106.910291 | O39: 0.9736891464 | P39: 33693.08971
F40: 570 | G40: 0.5 | H40: 0.879645943 | I40: 96.62978688 | J40: 29.63798967 | K40: 33700 | L40: 51860.92193 | M40: 0.03083315573 | N40: 1072.993819 | O40: 0.94385466 | P40: 32627.00618
F41: 585 | G41: 0.5 | H41: 0.879645943 | I41: 96.62978688 | J41: 28.70021362 | K41: 32600 | L41: 50261.88605 | M41: 0.03083315573 | N41: 1039.077348 | O41: 0.9140201736 | P41: 31560.92265
F42: 600 | G42: 0.5 | H42: 0.879645943 | I42: 96.62978688 | J42: 27.76243757 | K42: 31600 | L42: 48712.15349 | M42: 0.03083315573 | N42: 1005.160877 | O42: 0.8841856872 | P42: 30594.83912
F43: 615 | G43: 0.5 | H43: 0.879645943 | I43: 96.62978688 | J43: 26.91262611 | K43: 30600 | L43: 47210.20407 | M43: 0.03083315573 | N43: 974.327721 | O43: 0.8570634269 | P43: 29625.67228
F44: 630 | G44: 0.5 | H44: 0.879645943 | I44: 96.62978688 | J44: 26.06010243 | K44: 29600 | L44: 45754.5645 | M44: 0.03083315573 | N44: 943.4945652 | O44: 0.8299411665 | P44: 28656.50543
F45: 645 | G45: 0.5 | H45: 0.879645943 | I45: 96.62978688 | J45: 25.20757875 | K45: 28700 | L45: 44343.80689 | M45: 0.03083315573 | N45: 912.6614095 | O45: 0.8028189062 | P45: 27787.33859
F46: 660 | G46: 0.5 | H46: 0.879645943 | I46: 96.62978688 | J46: 24.44301966 | K46: 27800 | L46: 42976.54738 | M46: 0.03083315573 | N46: 884.9115693 | O46: 0.7784088719 | P46: 26915.08843
F47: 675 | G47: 0.5 | H47: 0.879645943 | I47: 96.62978688 | J47: 23.67574834 | K47: 26900 | L47: 41651.44481 | M47: 0.03083315573 | N47: 857.1617292 | O47: 0.7539988376 | P47: 26042.83827
F48: 690 | G48: 0.5 | H48: 0.879645943 | I48: 96.62978688 | J48: 22.90847703 | K48: 26000 | L48: 40367.19932 | M48: 0.03083315573 | N48: 829.411889 | O48: 0.7295888033 | P48: 25170.58811
F49: 705 | G49: 0.5 | H49: 0.879645943 | I49: 96.62978688 | J49: 22.14120571 | K49: 25200 | L49: 39122.55118 | M49: 0.03083315573 | N49: 801.6620489 | O49: 0.705178769 | P49: 24398.33795
F50: 720 | G50: 0.5 | H50: 0.879645943 | I50: 96.62978688 | J50: 21.46189899 | K50: 24400 | L50: 37916.27947 | M50: 0.03083315573 | N50: 776.9955243 | O50: 0.6834809607 | P50: 23623.00448
F51: 735 | G51: 0.5 | H51: 0.879645943 | I51: 96.62978688 | J51: 20.77988005 | K51: 23600 | L51: 36747.20092 | M51: 0.03083315573 | N51: 752.3289997 | O51: 0.6617831524 | P51: 22847.671
F52: 750 | G52: 0.5 | H52: 0.879645943 | I52: 96.62978688 | J52: 20.0978611 | K52: 22800 | L52: 35614.16875 | M52: 0.03083315573 | N52: 727.6624751 | O52: =N52/1000000*1000*H52 -> 0.6400853441 | P52: 22072.33752
F53: 765 | G53: 0.5 | H53: 0.879645943 | I53: 96.62978688 | J53: 19.41584216 | K53: 22100 | L53: 34516.07154 | M53: 0.03083315573 | N53: 702.9959506 | O53: 0.6183875359 | P53: 21397.00405
F54: 780 | G54: 0.5 | H54: 0.879645943 | I54: 96.62978688 | J54: 18.8217878 | K54: 21400 | L54: 33451.83213 | M54: 0.03083315573 | N54: 681.4127416 | O54: 0.5994019536 | P54: 20718.58726
F55: 795 | G55: 0.5 | H55: 0.879645943 | I55: 96.62978688 | J55: 18.22502123 | K55: 20700 | L55: 32420.40658 | M55: 0.03083315573 | N55: 659.8295325 | O55: 0.5804163714 | P55: 20040.17047
F56: 810 | G56: 0.5 | H56: 0.879645943 | I56: 96.62978688 | J56: 17.62825465 | K56: 20000 | L56: 31420.78314 | M56: =IFERROR(1-L56/L55,0) -> 0.03083315573 | N56: 638.2463235 | O56: 0.5614307891 | P56: 19361.75368
F57: 825 | G57: 0.5 | H57: 0.879645943 | I57: 96.62978688 | J57: 17.03148807 | K57: 19400 | L57: 30451.98124 | M57: 0.03083315573 | N57: 616.6631145 | O57: 0.5424452069 | P57: 18783.33689
F58: 840 | G58: 0.5 | H58: 0.879645943 | I58: 96.62978688 | J58: 16.52268609 | K58: 18800 | L58: 29513.05056 | M58: 0.03083315573 | N58: 598.1632211 | O58: 0.5261718507 | P58: 18201.83678
F59: 855 | G59: 0.5 | H59: 0.879645943 | I59: 96.62978688 | J59: 16.01117188 | K59: 18200 | L59: 28603.07007 | M59: 0.03083315573 | N59: 579.6633277 | O59: 0.5098984945 | P59: 17620.33667
F60: 870 | G60: 0.5 | H60: 0.879645943 | I60: 96.62978688 | J60: 15.49965767 | K60: 17600 | L60: 27721.14716 | M60: 0.03083315573 | N60: 561.1634342 | O60: 0.4936251383 | P60: 17038.83657
F61: 885 | G61: 0.5 | H61: 0.879645943 | I61: 96.62978688 | J61: 14.98814346 | K61: 17000 | L61: 26866.41671 | M61: 0.03083315573 | N61: 542.6635408 | O61: 0.4773517821 | P61: 16457.33646
F62: 900 | G62: 0.5 | H62: 0.879645943 | I62: 96.62978688 | J62: 14.47662925 | K62: 16500 | L62: 26038.0403 | M62: 0.03083315573 | N62: 524.1636473 | O62: 0.4610784259 | P62: 15975.83635
F63: 915 | G63: 0.5 | H63: 0.879645943 | I63: 96.62978688 | J63: 14.05307963 | K63: 16000 | L63: 25235.20535 | M63: 0.03083315573 | N63: 508.7470695 | O63: 0.4475172957 | P63: 15491.25293
F64: 930 | G64: 0.5 | H64: 0.879645943 | I64: 96.62978688 | J64: 13.62681779 | K64: 15500 | L64: 24457.12433 | M64: 0.03083315573 | N64: 493.3304916 | O64: 0.4339561655 | P64: 15006.66951
F65: 945 | G65: 0.5 | H65: 0.879645943 | I65: 96.62978688 | J65: 13.20055595 | K65: 15000 | L65: 23703.03401 | M65: 0.03083315573 | N65: 477.9139138 | O65: 0.4203950353 | P65: 14522.08609
F66: 960 | G66: 0.5 | H66: 0.879645943 | I66: 96.62978688 | J66: 12.77429411 | K66: 14500 | L66: 22972.19467 | M66: 0.03083315573 | N66: 462.4973359 | O66: 0.4068339052 | P66: 14037.50266
F67: =F66+B$11 -> 975 | G67: =G66+(B$5/100)*(F67-F66)*60 -> 0.5 | H67: 0.879645943 | I67: 96.62978688 | J67: 12.34803227 | K67: =IFERROR(ROUND((J67)*1000000/(H67*1000),2-INT(LOG10(ABS((J67)*1000000/(H67*1000))))),0) -> 14000 | L67: =IF(EXP(12.861295-0.0020879*F67-0.1137143*B$2-0.0025489*I67)>=0,EXP(12.861295-0.0020879*F67-0.1137143*B$2-0.0025489*I67),0) -> 22263.88942 | M67: 0.03083315573 | N67: 447.080758 | O67: 0.393272775 | P67: 13552.91924
F68: 990 | G68: 0.5 | H68: =($B$6-$B$6*($B$10/360.000000000001))+$B$4*PI()*(G68^2)*($B$10/360.000000000001) -> 0.879645943 | I68: =($B$9/H68)*100 -> 96.62978688 | J68: 11.92177043 | K68: 13600 | L68: 21577.42345 | M68: =IFERROR(1-L68/L67,0) -> 0.03083315573 | N68: =M68*K67 -> 431.6641802 | O68: 0.3797116448 | P68: 13168.33582
F69: 1005 | G69: 0.5 | H69: 0.879645943 | I69: 96.62978688 | J69: =P68/1000000*1000*H68 -> 11.58347318 | K69: 13200 | L69: 20912.12339 | M69: 0.03083315573 | N69: 419.3309179 | O69: =N69/1000000*1000*H69 -> 0.3688627407 | P69: =K69-N69 -> 12780.66908
F70: 1020 | G70: 0.5 | H70: 0.879645943 | I70: 96.62978688 | J70: 11.24246371 | K70: 12800 | L70: 20267.33663 | M70: 0.03083315573 | N70: 406.9976556 | O70: 0.3580138366 | P70: 12393.00234
F71: 1035 | G71: 0.5 | H71: 0.879645943 | I71: 96.62978688 | J71: 10.90145423 | K71: 12400 | L71: 19642.43069 | M71: 0.03083315573 | N71: 394.6643933 | O71: 0.3471649324 | P71: 12005.33561
F72: 1050 | G72: 0.5 | H72: 0.879645943 | I72: 96.62978688 | J72: 10.56044476 | K72: 12000 | L72: 19036.79256 | M72: 0.03083315573 | N72: 382.331131 | O72: 0.3363160283 | P72: 11617.66887
F73: 1065 | G73: 0.5 | H73: 0.879645943 | I73: 96.62978688 | J73: 10.21943529 | K73: 11600 | L73: 18449.82817 | M73: 0.03083315573 | N73: 369.9978687 | O73: 0.3254671241 | P73: 11230.00213
F74: 1080 | G74: 0.5 | H74: 0.879645943 | I74: 96.62978688 | J74: 9.878425815 | K74: 11200 | L74: 17880.96175 | M74: 0.03083315573 | N74: 357.6646064 | O74: 0.31461822 | P74: 10842.33539
F75: 1095 | G75: 0.5 | H75: 0.879645943 | I75: 96.62978688 | J75: 9.537416342 | K75: 10800 | L75: 17329.63527 | M75: 0.03083315573 | N75: 345.3313441 | O75: 0.3037693159 | P75: 10454.66866
F76: 1110 | G76: 0.5 | H76: 0.879645943 | I76: 96.62978688 | J76: 9.196406869 | K76: 10500 | L76: 16795.30793 | M76: 0.03083315573 | N76: 332.9980818 | O76: 0.2929204117 | P76: 10167.00192
F77: 1125 | G77: 0.5 | H77: 0.879645943 | I77: 96.62978688 | J77: 8.94336199 | K77: 10200 | L77: 16277.45558 | M77: 0.03083315573 | N77: 323.7481351 | O77: 0.2847837336 | P77: 9876.251865
F78: 1140 | G78: 0.5 | H78: 0.879645943 | I78: 96.62978688 | J78: 8.687604885 | K78: 9880 | L78: 15775.57026 | M78: 0.03083315573 | N78: 314.4981884 | O78: 0.2766470555 | P78: 9565.501812
F79: 1155 | G79: 0.5 | H79: 0.879645943 | I79: 96.62978688 | J79: 8.414254861 | K79: 9570 | L79: 15289.15964 | M79: 0.03083315573 | N79: 304.6315786 | O79: 0.2679679322 | P79: 9265.368421
F80: 1170 | G80: 0.5 | H80: 0.879645943 | I80: 96.62978688 | J80: 8.150243742 | K80: 9270 | L80: 14817.7466 | M80: 0.03083315573 | N80: 295.0733003 | O80: 0.2595600315 | P80: 8974.9267
F81: 1185 | G81: 0.5 | H81: 0.879645943 | I81: 96.62978688 | J81: 7.89475786 | K81: 8970 | L81: 14360.86871 | M81: 0.03083315573 | N81: 285.8233536 | O81: 0.2514233534 | P81: 8684.176646
B82: Utifrån simulering | F82: 1200 | G82: 0.5 | H82: 0.879645943 | I82: 96.62978688 | J82: 7.639000755 | K82: 8680 | L82: 13918.07781 | M82: 0.03083315573 | N82: 276.5734069 | O82: 0.2432866753 | P82: 8403.426593
A83: P98; 18,5C; 0min; 73008,6ug/l | B83: 72900 | F83: 1215 | G83: 0.5 | H83: 0.879645943 | I83: 96.62978688 | J83: 7.39204011 | K83: 8400 | L83: 13488.93955 | M83: 0.03083315573 | N83: 267.6317917 | O83: 0.2354212198 | P83: 8132.368208
A84: P98; 18,5C; 1440min; 37,4ug/l | B84: 3400 | F84: 1230 | G84: 0.5 | H84: 0.879645943 | I84: 96.62978688 | J84: 7.153604701 | K84: 8130 | L84: 13073.03298 | M84: 0.03083315573 | N84: 258.9985081 | O84: 0.2278269869 | P84: 7871.001492
A85: E85; 18,5C; 0min; 63582ug/l | B85: 63100 | F85: 1245 | G85: 0.5 | H85: 0.879645943 | I85: 96.62978688 | J85: 6.92369453 | K85: 7870 | L85: 12669.95012 | M85: 0.03083315573 | N85: 250.6735561 | O85: 0.2205039766 | P85: 7619.326444
A86: E85; 18,5C; 1440min; 660ug/l | B86: 2890 | F86: 1260 | G86: 0.5 | H86: 0.879645943 | I86: 96.62978688 | J86: 6.702309595 | K86: 7620 | L86: 12279.29557 | M86: 0.03083315573 | N86: 242.6569356 | O86: 0.2134521889 | P86: 7377.343064
A87: P98; 10C; 0min; 107328ug/l | B87: 107000 | F87: 1275 | G87: 0.5 | H87: 0.879645943 | I87: 96.62978688 | J87: 6.489449897 | K87: 7380 | L87: 11900.68614 | M87: 0.03083315573 | N87: 234.9486466 | O87: 0.2066716238 | P87: 7145.051353
A88: P98; 10C; 1200min; 38324ug/l | B88: 8400 | F88: 1290 | G88: 0.5 | H88: 0.879645943 | I88: 96.62978688 | J88: 6.285115436 | K88: 7150 | L88: 11533.75043 | M88: 0.03083315573 | N88: 227.5486893 | O88: 0.2001622813 | P88: 6922.451311
A89: E85; 10C; 0min; 104317ug/l | B89: 104000 | F89: 1305 | G89: 0.5 | H89: 0.879645943 | I89: 96.62978688 | J89: 6.089306211 | K89: 6920 | L89: 11178.12851 | M89: 0.03083315573 | N89: 220.4570634 | O89: 0.1939241615 | P89: 6699.542937
A90: E85; 10C; 1200min; 8925ug/l | B90: 8130 | F90: 1320 | G90: 0.5 | H90: 0.879645943 | I90: 96.62978688 | J90: 5.893225764 | K90: 6700 | L90: 10833.47153 | M90: 0.03083315573 | N90: 213.3654376 | O90: 0.1876860416 | P90: 6486.634562
A91: P98; 5C; 0min; 78455ug/l | B91: 78100 | F91: 1335 | G91: 0.5 | H91: 0.879645943 | I91: 96.62978688 | J91: 5.705941777 | K91: 6490 | L91: 10499.44142 | M91: 0.03083315573 | N91: 206.5821434 | O91: 0.1817191443 | P91: 6283.417857
A92: P98; 5C; 1440min; 32663ug/l | B92: 3630 | F92: 1350 | G92: 0.5 | H92: 0.879645943 | I92: 96.62978688 | J92: 5.527183026 | K92: 6280 | L92: 10175.7105 | M92: 0.03083315573 | N92: 200.1071807 | O92: 0.1760234696 | P92: 6079.892819
A93: E85; 5C; 0min; 110472ug/l | B93: 110000 | F93: 1365 | G93: 0.5 | H93: 0.879645943 | I93: 96.62978688 | J93: 5.348153052 | K93: 6080 | L93: 9861.961237 | M93: 0.03083315573 | N93: 193.632218 | O93: 0.170327795 | P93: 5886.367782
A94: E85; 5C; 1440min; 44850ug/l | B94: 5170 | F94: 1380 | G94: 0.5 | H94: 0.879645943 | I94: 96.62978688 | J94: 5.177919539 | K94: 5890 | L94: 9557.88585 | M94: 0.03083315573 | N94: 187.4655868 | O94: 0.1649033429 | P94: 5702.534413
F95: 1395 | G95: 0.5 | H95: 0.879645943 | I95: 96.62978688 | J95: 5.016211261 | K95: 5700 | L95: 9263.186068 | M95: 0.03083315573 | N95: 181.6072872 | O95: 0.1597501134 | P95: 5518.392713
F96: 1410 | G96: 0.5 | H96: 0.879645943 | I96: 96.62978688 | J96: 4.854231762 | K96: 5520 | L96: 8977.572809 | M96: 0.03083315573 | N96: 175.7489876 | O96: 0.154596884 | P96: 5344.251012
F97: 1425 | G97: 0.5 | H97: 0.879645943 | I97: 96.62978688 | J97: 4.701048721 | K97: 5340 | L97: 8700.765909 | M97: 0.03083315573 | N97: 170.1990196 | O97: 0.1497148771 | P97: 5169.80098
F98: 1440 | G98: 0.5 | H98: 0.879645943 | I98: 96.62978688 | J98: 4.547594459 | K98: 5170 | L98: 8432.493838 | M98: 0.03083315573 | N98: 164.6490516 | O98: 0.1448328702 | P98: 5005.350948
F99: 1455 | G99: 0.5 | H99: 0.879645943 | I99: 96.62978688 | J99: 4.402936655 | K99: 5010 | L99: 8172.493443 | M99: 0.03083315573 | N99: 159.4074151 | O99: 0.140222086 | P99: 4850.592585
F100: 1470 | G100: 0.5 | H100: 0.879645943 | I100: 96.62978688 | J100: 4.266804088 | K100: 4850 | L100: 7920.50968 | M100: 0.03083315573 | N100: 154.4741102 | O100: 0.1358825243 | P100: 4695.52589
F101: 1485 | G101: 0.5 | H101: 0.879645943 | I101: 96.62978688 | J101: 4.130400299 | K101: 4700 | L101: 7676.295371 | M101: 0.03083315573 | N101: 149.5408053 | O101: 0.1315429627 | P101: 4550.459195
F102: 1500 | G102: 0.5 | H102: 0.879645943 | I102: 96.62978688 | J102: 4.002792969 | K102: 4550 | L102: 7439.610961 | M102: 0.03083315573 | N102: 144.9158319 | O102: 0.1274746236 | P102: 4405.084168
F103: 1515 | G103: 0.5 | H103: 0.879645943 | I103: 96.62978688 | J103: 3.874914417 | K103: 4410 | L103: 7210.224277 | M103: 0.03083315573 | N103: 140.2908586 | O103: 0.1234062846 | P103: 4269.709141
F104: 1530 | G104: 0.5 | H104: 0.879645943 | I104: 96.62978688 | J104: 3.755832324 | K104: 4270 | L104: 6987.910309 | M104: 0.03083315573 | N104: 135.9742168 | O104: 0.1196091681 | P104: 4134.025783
F105: 1545 | G105: 0.5 | H105: 0.879645943 | I105: 96.62978688 | J105: 3.636479009 | K105: 4130 | L105: 6772.450983 | M105: 0.03083315573 | N105: 131.657575 | O105: 0.1158120517 | P105: 3998.342425
F106: 1560 | G106: 0.5 | H106: 0.879645943 | I106: 96.62978688 | J106: 3.517125693 | K106: 4000 | L106: 6563.634947 | M106: 0.03083315573 | N106: 127.3409331 | O106: 0.1120149352 | P106: 3872.659067

Sheet Med avgång_validera_ekv (hidden)
A1: Mängd bränsle | B1: 0.8 | C1: m3 | F1: Tid (min) | G1: Radie (m) | H1: Volym (m3) | I1: Vol% etanol | J1: Mängd eter (g) | K1: Koncentration eter (ug/l) | L1: Teoretisk avgång | M1: Avgång eter (%) | N1: Avgång eter (ug/l) | O1: Avgång eter (g) | P1: Koncentration eter ny (ug/l)
A2: Temperatur | B2: 20 | C2: C | F2: 0 | G2: =B3 -> 0.57 | H2: =B6 -> 1.020703453 | I2: =$B$9/H2 -> 0.03918865943 | J2: =B8 -> 82.4648418 | K2: =P2 -> 80800 | L2: =(126461.5-(53.61*F2)-(1936.09*B$2)-(224.59*B$19)) -> 86616.75 | P2: =ROUND((J2-M2)*1000000/(H2*1000),2-INT(LOG10(ABS((J2-M2)*1000000/(H2*1000))))) -> 80800
A3: Initial spridningsradie | B3: 0.57 | C3: m | F3: =F2+B$11 -> 40 | G3: =G2+(B$5/100)*(F3-F2)*60 -> 0.57 | H3: =($B$6-$B$6*($B$10/360.000000000001))+$B$4*PI()*(G3^2)*($B$10/360.000000000001) -> 1.020703453 | I3: =$B$9/H3 -> 0.03918865943 | J3: =J2 -> 82.4648418 | K3: =ROUND(J3*1000000/(H3*1000),2-INT(LOG10(ABS(J3*1000000/(H3*1000))))) -> 80800 | L3: =(126461.5-(53.61*F3)-(1936.09*B$2)-(224.59*B$19)) -> 84472.35 | M3: =1-L3/L2 -> 0.0247573362 | N3: =M3*K3 -> 2000.392765 | O3: =N3/1000000*1000*H3 -> 2.041807803 | P3: =K3-N3 -> 78799.60724
A4: Djup råvattenintag | B4: 1 | C4: m | F4: 80 | G4: 0.57 | H4: 1.020703453 | I4: =$B$9/H4 -> 0.03918865943 | J4: =J3-O3 -> 80.423034 | K4: =ROUND(J4*1000000/(H4*1000),2-INT(LOG10(ABS(J4*1000000/(H4*1000))))) -> 78800 | L4: =(126461.5-(53.61*F4)-(1936.09*B$2)-(224.59*B$19)) -> 82327.95 | M4: =1-L4/L3 -> 0.02538582151 | N4: =M4*K4 -> 2000.402735 | O4: =N4/1000000*1000*H4 -> 2.04181798 | P4: =K4-N4 -> 76799.59726
A5: Vattenhastighet | B5: 0 | C5: cm/s | F5: 120 | G5: 0.57 | H5: 1.020703453 | I5: 0.03918865943 | J5: =J4-O4 -> 78.38121602 | K5: =ROUND(J5*1000000/(H5*1000),2-INT(LOG10(ABS(J5*1000000/(H5*1000))))) -> 76800 | L5: 80183.55 | M5: 0.02604704721 | N5: 2000.413225 | O5: 2.041828687 | P5: 74799.58677
A6: Inital volym | B6: =B4*PI()*B3^2 -> 1.020703453 | C6: m3 | F6: 160 | G6: 0.57 | H6: 1.020703453 | I6: 0.03918865943 | J6: 76.33938733 | K6: 74800 | L6: 78039.15 | M6: 0.02674364006 | N6: 2000.424277 | O6: 2.041839967 | P6: 72799.57572
A7: Initial mängd eter | B7: =B1*B16*1000 -> 11992 | C7: g | F7: 200 | G7: 0.57 | H7: 1.020703453 | I7: 0.03918865943 | J7: 74.29754736 | K7: 72800 | L7: 75894.75 | M7: 0.02747851559 | N7: 2000.435935 | O7: 2.041851867 | P7: 70799.56406
A8: Initial mängd eter i lösning | B8: =B7*B18 -> 82.4648418 | C8: g | F8: 240 | G8: 0.57 | H8: 1.020703453 | I8: 0.03918865943 | J8: 72.2556955 | K8: 70800 | L8: 73750.35 | M8: 0.02825491882 | N8: 2000.448252 | O8: 2.041864439 | P8: 68799.55175
A9: Initial vol etanol i lösning | B9: =B1*B19/100 -> 0.04 | C9: m3 | F9: 280 | G9: 0.57 | H9: 1.020703453 | I9: 0.03918865943 | J9: 70.21383106 | K9: 68800 | L9: 71605.95 | M9: 0.02907647218 | N9: 2000.461286 | O9: 2.041877742 | P9: 66799.53871
A10: Spridningvinkel | B10: 45 | C10: grader | F10: 320 | G10: 0.57 | H10: 1.020703453 | I10: 0.03918865943 | J10: 68.17195331 | K10: 66800 | L10: 69461.55 | M10: 0.02994723204 | N10: 2000.4751 | O10: 2.041891843 | P10: 64799.5249
A11: delta t | B11: 40 | C11: min | F11: 360 | G11: 0.57 | H11: 1.020703453 | I11: 0.03918865943 | J11: 66.13006147 | K11: =ROUND(J11*1000000/(H11*1000),2-INT(LOG10(ABS(J11*1000000/(H11*1000))))) -> 64800 | L11: 67317.15 | M11: 0.03087175567 | N11: 2000.489767 | O11: 2.041906814 | P11: 62799.51023
F12: 400 | G12: 0.57 | H12: 1.020703453 | I12: 0.03918865943 | J12: 64.08815466 | K12: 62800 | L12: 65172.75 | M12: 0.03185518103 | N12: 2000.505369 | O12: 2.041922738 | P12: 60799.49463
F13: 440 | G13: 0.57 | H13: 1.020703453 | I13: 0.03918865943 | J13: 62.04623192 | K13: 60800 | L13: 63028.35 | M13: 0.03290332232 | N13: 2000.521997 | O13: 2.041939711 | P13: 58799.478
A14: Insert bränsle | F14: 480 | G14: 0.57 | H14: 1.020703453 | I14: 0.03918865943 | J14: 60.00429221 | K14: 58800 | L14: 60883.95 | M14: =1-L14/L13 -> 0.03402278498 | N14: 2000.539757 | O14: 2.041957838 | P14: 56799.46024
A15: Petrol 98 Octane | F15: 520 | G15: 0.57 | H15: 1.020703453 | I15: 0.03918865943 | J15: 57.96233437 | K15: 56800 | L15: 58739.55 | M15: 0.03522110507 | N15: 2000.558768 | O15: 2.041977243 | P15: 54799.44123
A16: koncentration eter | B16: =_xlfn.XLOOKUP(A15,'Attribut bränslen'!A2:A4,'Attribut bränslen'!C2:C4) -> 14.99 | C16: g/l | F16: 560 | G16: 0.57 | H16: 1.020703453 | I16: 0.03918865943 | J16: 55.92035713 | K16: 54800 | L16: 56595.15 | M16: 0.0365069191 | N16: 2000.579167 | O16: 2.041998064 | P16: 52799.42083
A17: koncentration eter i lösning | B17: =_xlfn.XLOOKUP('Med avgång_validera_ekv'!A15,'Attribut bränslen'!A2:A4,'Attribut bränslen'!D2:D4) -> 103081.0522 | C17: ug/l | F17: 600 | G17: 0.57 | H17: 1.020703453 | I17: 0.03918865943 | J17: 53.87835906 | K17: 52800 | L17: 54450.75 | M17: 0.03789017257 | N17: 2000.601112 | O17: 2.042020463 | P17: 50799.39889
A18: Löslighet | B18: =B17/(B16*1000000) -> 0.006876654586 | F18: 640 | G18: 0.57 | H18: 1.020703453 | I18: 0.03918865943 | J18: 51.8363386 | K18: 50800 | L18: 52306.35 | M18: 0.03938237765 | N18: 2000.624785 | O18: 2.042044626 | P18: 48799.37522
A19: Andel etanol (%) | B19: =_xlfn.XLOOKUP(A15,'Attribut bränslen'!A2:A4,'Attribut bränslen'!B2:B4) -> 5 | F19: 680 | G19: 0.57 | H19: 1.020703453 | I19: 0.03918865943 | J19: 49.79429397 | K19: 48800 | L19: 50161.95 | M19: 0.04099693441 | N19: 2000.650399 | O19: 2.042070771 | P19: 46799.3496
A20: Konc eter i lösning (funk) | B20: =(9.43+0.8444*LOG(B16)) -> 10.4228469 | C20: ug/l | F20: 720 | G20: 0.57 | H20: 1.020703453 | I20: 0.03918865943 | J20: 47.7522232 | K20: 46800 | L20: 48017.55 | M20: 0.04274953426 | N20: 2000.678203 | O20: 2.042099151 | P20: 44799.3218
A21: eter | B21: =10^B20 -> 2.647566631e+10 | C21: BLIR SKUMT! | F21: 760 | G21: 0.57 | H21: 1.020703453 | I21: 0.03918865943 | J21: 45.71012405 | K21: 44800 | L21: 45873.15 | M21: 0.04465867167 | N21: 2000.708491 | O21: 2.042130065 | P21: 42799.29151
F22: 800 | G22: 0.57 | H22: 1.020703453 | I22: 0.03918865943 | J22: 43.66799399 | K22: 42800 | L22: 43728.75 | M22: 0.04674629931 | N22: 2000.74161 | O22: 2.04216387 | P22: 40799.25839
A23: Att fixa | F23: 840 | G23: 0.57 | H23: 1.020703453 | I23: 0.03918865943 | J23: 41.62583012 | K23: 40800 | L23: 41584.35 | M23: 0.04903867593 | N23: 2000.777978 | O23: 2.042200991 | P23: 38799.22202
A24: Temperatur -> löslighet (har bara vid 20 grader) | F24: 880 | G24: 0.57 | H24: 1.020703453 | I24: 0.03918865943 | J24: 39.58362913 | K24: 38800 | L24: 39439.95 | M24: 0.05156747671 | N24: 2000.818096 | O24: 2.04224194 | P24: 36799.1819
A25: Val bränsle -> koncentration -> löslighet | F25: 920 | G25: 0.57 | H25: 1.020703453 | I25: 0.03918865943 | J25: 37.54138719 | K25: 36800 | L25: 37295.55 | M25: 0.05437126568 | N25: 2000.862577 | O25: 2.042287342 | P25: 34799.13742
A26: Avgång eter som funktion av temperatur och koncentration | F26: 960 | G26: 0.57 | H26: 1.020703453 | I26: 0.03918865943 | J26: 35.49909984 | K26: 34800 | L26: 35151.15 | M26: 0.05749747624 | N26: 2000.912173 | O26: 2.042337965 | P26: 32799.08783
A27: Luktgräns | F27: 1000 | G27: 0.57 | H27: 1.020703453 | I27: 0.03918865943 | J27: 33.45676188 | K27: 32800 | L27: 33006.75 | M27: 0.06100511648 | N27: 2000.96782 | O27: 2.042394764 | P27: 30799.03218
A28: Plocka ut radie när under 4 ug/l | F28: 1040 | G28: 0.57 | H28: 1.020703453 | I28: 0.03918865943 | J28: 31.41436712 | K28: 30800 | L28: 30862.35 | M28: 0.06496852916 | N28: 2001.030698 | O28: 2.042458944 | P28: 28798.9693
F29: 1080 | G29: 0.57 | H29: 1.020703453 | I29: 0.03918865943 | J29: 29.37190817 | K29: 28800 | L29: 28717.95 | M29: 0.06948271924 | N29: 2001.102314 | O29: 2.042532042 | P29: 26798.89769
F30: 1120 | G30: 0.57 | H30: 1.020703453 | I30: 0.03918865943 | J30: 27.32937613 | K30: 26800 | L30: 26573.55 | M30: 0.0746710681 | N30: 2001.184625 | O30: 2.042616057 | P30: 24798.81538
F31: 1160 | G31: 0.57 | H31: 1.020703453 | I31: 0.03918865943 | J31: 25.28676007 | K31: 24800 | L31: 24429.15 | M31: 0.08069678308 | N31: 2001.28022 | O31: 2.042713632 | P31: 22798.71978
F32: 1200 | G32: 0.57 | H32: 1.020703453 | I32: 0.03918865943 | J32: 23.24404644 | K32: 22800 | L32: 22284.75 | M32: 0.08778037713 | N32: 2001.392599 | O32: 2.042828336 | P32: 20798.6074
F33: 1240 | G33: 0.57 | H33: 1.020703453 | I33: 0.03918865943 | J33: 21.2012181 | K33: 20800 | L33: 20140.35 | M33: 0.0962272406 | N33: 2001.526605 | O33: 2.042965117 | P33: 18798.4734
F34: 1280 | G34: 0.57 | H34: 1.020703453 | I34: 0.03918865943 | J34: 19.15825299 | K34: 18800 | L34: 17995.95 | M34: 0.1064728269 | N34: 2001.689146 | O34: 2.043131024 | P34: 16798.31085
F35: =F34+B$11 -> 1320 | G35: =G34+(B$5/100)*(F35-F34)*60 -> 0.57 | H35: =($B$6-$B$6*($B$10/360.000000000001))+$B$4*PI()*(G35^2)*($B$10/360.000000000001) -> 1.020703453 | I35: 0.03918865943 | J35: 17.11512196 | K35: 16800 | L35: 15851.55 | M35: 0.1191601444 | N35: 2001.890425 | O35: 2.04333647 | P35: 14798.10957
F36: 1360 | G36: 0.57 | H36: 1.020703453 | I36: 0.03918865943 | J36: 15.07178549 | K36: 14800 | L36: 13707.15 | M36: 0.1352801461 | N36: 2002.146162 | O36: 2.043597502 | P36: 12797.85384
F37: 1400 | G37: 0.57 | H37: 1.020703453 | I37: 0.03918865943 | J37: 13.02818799 | K37: 12800 | L37: 11562.75 | M37: 0.1564438997 | N37: 2002.481916 | O37: 2.043940207 | P37: 10797.51808
F38: 1440 | G38: 0.57 | H38: 1.020703453 | I38: 0.03918865943 | J38: 10.98424779 | K38: 10800 | L38: 9418.35 | M38: 0.1854576117 | N38: 2002.942207 | O38: 2.044410027 | P38: 8797.057793
F39: 1480 | G39: 0.57 | H39: 1.020703453 | I39: 0.03918865943 | J39: 8.939837759 | K39: 8760 | L39: 7273.95 | M39: 0.2276831929 | N39: 1994.50477 | O39: 2.035797906 | P39: 6765.49523
F40: 1520 | G40: 0.57 | H40: 1.020703453 | I40: 0.03918865943 | J40: 6.904039853 | K40: 6760 | L40: 5129.55 | M40: 0.2948054358 | N40: 1992.884746 | O40: 2.034144342 | P40: 4767.115254
F41: 1560 | G41: 0.57 | H41: 1.020703453 | I41: 0.03918865943 | J41: 4.86989551 | K41: 4770 | L41: 2985.15 | M41: 0.4180483668 | N41: 1994.09071 | O41: 2.035375273 | P41: 2775.90929
F42: 1600 | G42: 0.57 | H42: 1.020703453 | I42: 0.03918865943 | J42: 2.834520237 | K42: 2780 | L42: 840.75 | M42: 0.7183558615 | N42: 1997.029295 | O42: 2.038374697 | P42: 782.970705
F43: 1640 | G43: 0.57 | H43: 1.020703453 | I43: 0.03918865943 | J43: 0.7961455396 | K43: 780 | L43: -1303.65 | M43: 2.550579839 | N43: 1989.452275 | O43: 2.030640807 | P43: -1209.452275
F44: 1680 | G44: 0.57 | H44: 1.020703453 | I44: 0.03918865943 | J44: -1.234495267 | K44: -1210 | L44: -3448.05 | M44: -1.644920032 | N44: 1990.353239 | O44: 2.031560424 | P44: -3200.353239
F45: 1720 | G45: 0.57 | H45: 1.020703453 | I45: 0.03918865943 | J45: -3.266055691 | K45: -3200 | L45: -5592.45 | M45: -0.6219167355 | N45: 1990.133554 | O45: 2.031336191 | P45: -5190.133554
F46: 1760 | G46: 0.57 | H46: 1.020703453 | I46: 0.03918865943 | J46: -5.297391882 | K46: -5190 | L46: -7736.85 | M46: -0.3834455382 | N46: 1990.082343 | O46: 2.03128392 | P46: -7180.082343
F47: 1800 | G47: 0.57 | H47: 1.020703453 | I47: 0.03918865943 | J47: -7.328675801 | K47: -7180 | L47: -9881.25 | M47: -0.2771670641 | N47: 1990.05952 | O47: 2.031260624 | P47: -9170.05952
F48: 1840 | G48: 0.57 | H48: 1.020703453 | I48: 0.03918865943 | J48: -9.359936426 | K48: -9170 | L48: -12025.65 | M48: -0.2170170778 | N48: 1990.046603 | O48: 2.03124744 | P48: -11160.0466
F49: 1880 | G49: 0.57 | H49: 1.020703453 | I49: 0.03918865943 | J49: -11.39118387 | K49: -11200 | L49: -14170.05 | M49: -0.1783188435 | N49: 1997.171047 | O49: 2.038519384 | P49: -13197.17105
F50: 1920 | G50: 0.57 | H50: 1.020703453 | I50: 0.03918865943 | J50: -13.42970325 | K50: -13200 | L50: -16314.45 | M50: -0.1513332698 | N50: 1997.599162 | O50: 2.038956362 | P50: -15197.59916
F51: 1960 | G51: 0.57 | H51: 1.020703453 | I51: 0.03918865943 | J51: -15.46865961 | K51: -15200 | L51: -18458.85 | M51: -0.1314417587 | N51: 1997.914732 | O51: 2.039278466 | P51: -17197.91473
F52: 2000 | G52: 0.57 | H52: 1.020703453 | I52: 0.03918865943 | J52: -17.50793808 | K52: -17200 | L52: -20603.25 | M52: -0.1161719175 | N52: 1998.156982 | O52: 2.039525731 | P52: -19198.15698
F53: 2040 | G53: 0.57 | H53: 1.020703453 | I53: 0.03918865943 | J53: -19.54746381 | K53: -19200 | L53: -22747.65 | M53: -0.1040806669 | N53: 1998.348804 | O53: 2.039721525 | P53: -21198.3488
F54: 2080 | G54: 0.57 | H54: 1.020703453 | I54: 0.03918865943 | J54: -21.58718533 | K54: -21100 | L54: -24892.05 | M54: -0.09426907834 | N54: 1989.077553 | O54: 2.030258327 | P54: -23089.07755
F55: 2120 | G55: 0.57 | H55: 1.020703453 | I55: 0.03918865943 | J55: -23.61744366 | K55: -23100 | L55: -27036.45 | M55: -0.08614798701 | N55: 1990.0185 | O55: 2.031218755 | P55: -25090.0185
F56: 2160 | G56: 0.57 | H56: 1.020703453 | I56: 0.03918865943 | J56: -25.64866242 | K56: -25100 | L56: -29180.85 | M56: -0.07931514677 | N56: 1990.810184 | O56: 2.032026829 | P56: -27090.81018
F57: 2200 | G57: 0.57 | H57: 1.020703453 | I57: 0.03918865943 | J57: -27.68068925 | K57: -27100 | L57: -31325.25 | M57: -0.07348655025 | N57: 1991.485512 | O57: 2.032716139 | P57: -29091.48551
F58: 2240 | G58: 0.57 | H58: 1.020703453 | I58: 0.03918865943 | J58: -29.71340538 | K58: -29100 | L58: -33469.65 | M58: -0.06845595805 | N58: 1992.068379 | O58: 2.033311074 | P58: -31092.06838
F59: 2280 | G59: 0.57 | H59: 1.020703453 | I59: 0.03918865943 | J59: -31.74671646 | K59: -31100 | L59: -35614.05 | M59: -0.06406998579 | N59: 1992.576558 | O59: 2.033829774 | P59: -33092.57656
F60: 2320 | G60: 0.57 | H60: 1.020703453 | I60: 0.03918865943 | J60: -33.78054623 | K60: -33100 | L60: -37758.45 | M60: -0.06021219154 | N60: 1993.02354 | O60: 2.034286009 | P60: -35093.02354
F61: 2360 | G61: 0.57 | H61: 1.020703453 | I61: 0.03918865943 | J61: -35.81483224 | K61: -35100 | L61: -39902.85 | M61: -0.0567925855 | N61: 1993.419751 | O61: 2.034690424 | P61: -37093.41975
F62: 2400 | G62: 0.57 | H62: 1.020703453 | I62: 0.03918865943 | J62: -37.84952266 | K62: -37100 | L62: -42047.25 | M62: -0.05374052229 | N62: 1993.773377 | O62: 2.035051371 | P62: -39093.77338
